Service Area,Service Area Categorisation,Service Division Categorisation,Responsible Unit,Expenses Types,Detailed Expenses Type,Expense Code,Narrative,Invoice Date,Payment Date,Amount,Capital/Revenue,Supplier Name
"Commercial, Corporate & landlord Services",Property Services & Facilities Management,Resources,Gwent Police Collaboration,Premises,"Repairs, Alterations & Maintenance of Buildings",Building Improvements / Maintenance,,31/01/2024,07/02/2024,12869.37,,Lorne Stewart  Plc
"Leisure, Youth & Outdoor Adventure",Play,MonLife Directorate,Holiday Playworks,Supplies & Services,"Equipment, Furniture and Materials",Equipment Purchases,,12/02/2024,15/02/2024,51.59,,Baker Ross Ltd
"Leisure, Youth & Outdoor Adventure",Play,MonLife Directorate,Holiday Playworks,Supplies & Services,"Equipment, Furniture and Materials",Equipment Purchases,,08/02/2024,15/02/2024,113.14,,Hope Education Ltd
"Facilities, Fleet & Decarbonisation",Home to School Transport Dept,Communities & Place,SCH Transport,Transport,Contract Hire and Operating Leases,PTU Vehicle Contracts,,18/01/2024,08/02/2024,4144,,Zahid Limited
"Facilities, Fleet & Decarbonisation",Home to School Transport Dept,Communities & Place,SCH Transport,Transport,Contract Hire and Operating Leases,PTU Vehicle Contracts,,18/01/2024,08/02/2024,10200,,Zahid Limited
"Facilities, Fleet & Decarbonisation",Home to School Transport Dept,Communities & Place,School Transport � External,Transport,Contract Hire and Operating Leases,PTU Vehicle Contracts,,13/02/2024,14/02/2024,11241.5,,S R Transport
"Facilities, Fleet & Decarbonisation",Home to School Transport Dept,Communities & Place,School Transport � External,Transport,Contract Hire and Operating Leases,PTU Vehicle Contracts,,13/02/2024,14/02/2024,8496.25,,Newport Transport Ltd
"Facilities, Fleet & Decarbonisation",Home to School Transport Dept,Communities & Place,School Transport � External,Transport,Contract Hire and Operating Leases,PTU Vehicle Contracts,,13/02/2024,14/02/2024,7792.76,,REDACTED PERSONAL DATA
"Facilities, Fleet & Decarbonisation",Home to School Transport Dept,Communities & Place,School Transport � External,Transport,Contract Hire and Operating Leases,PTU Vehicle Contracts,,13/02/2024,14/02/2024,1512,,Veezu Ltd
"Facilities, Fleet & Decarbonisation",Home to School Transport Dept,Communities & Place,School Transport � External,Transport,Contract Hire and Operating Leases,PTU Vehicle Contracts,,13/02/2024,14/02/2024,652.5,,Queenie's Private Hire
"Facilities, Fleet & Decarbonisation",Home to School Transport Dept,Communities & Place,School Transport � External,Transport,Contract Hire and Operating Leases,PTU Vehicle Contracts,,13/02/2024,14/02/2024,1574.21,,Ed's Taxis
"Facilities, Fleet & Decarbonisation",Home to School Transport Dept,Communities & Place,SCH Transport,Transport,Contract Hire and Operating Leases,PTU Vehicle Contracts,,30/09/2023,08/02/2024,530,,Fast Cars of Abergavenny
"Commercial, Corporate & landlord Services",Property Services & Facilities Management,Resources,Gwent Police Collaboration,Premises,"Repairs, Alterations & Maintenance of Buildings",Building Improvements / Maintenance,,09/01/2024,23/02/2024,1706.87,,Circuit Compliance t/a Circuit Electrical Testing Ltd
Neighbourhood Services,Highways,Communities & Place,Internal others,Transport,Contract Hire and Operating Leases,Plant Hire Charge,,31/01/2024,22/02/2024,1640.9,,Speedy Asset Services Limited
"Facilities, Fleet & Decarbonisation",Home to School Transport Dept,Communities & Place,School Transport � External,Transport,Contract Hire and Operating Leases,PTU Vehicle Contracts,,13/02/2024,14/02/2024,1413.09,,Tiger Taxis
"Facilities, Fleet & Decarbonisation",Home to School Transport Dept,Communities & Place,School Transport � External,Transport,Contract Hire and Operating Leases,PTU Vehicle Contracts,,13/02/2024,14/02/2024,9250,,BRIANS BUS
"Facilities, Fleet & Decarbonisation",Home to School Transport Dept,Communities & Place,School Transport � External,Transport,Contract Hire and Operating Leases,PTU Vehicle Contracts,,13/02/2024,14/02/2024,6615,,BAM Travel LTD
"Facilities, Fleet & Decarbonisation",Home to School Transport Dept,Communities & Place,School Transport � External,Transport,Contract Hire and Operating Leases,PTU Vehicle Contracts,,13/02/2024,14/02/2024,2520,,Celtic Connect
"Facilities, Fleet & Decarbonisation",Home to School Transport Dept,Communities & Place,School Transport � External,Transport,Contract Hire and Operating Leases,PTU Vehicle Contracts,,13/02/2024,14/02/2024,3141.5,,A & T Taxis
"Facilities, Fleet & Decarbonisation",Home to School Transport Dept,Communities & Place,School Transport � External,Transport,Contract Hire and Operating Leases,PTU Vehicle Contracts,,13/02/2024,14/02/2024,1558.33,,Abergavenny Taxis Ltd
"Facilities, Fleet & Decarbonisation",Home to School Transport Dept,Communities & Place,School Transport � External,Transport,Contract Hire and Operating Leases,PTU Vehicle Contracts,,13/02/2024,14/02/2024,2205,,REDACTED PERSONAL DATA
"Facilities, Fleet & Decarbonisation",Home to School Transport Dept,Communities & Place,School Transport � External,Transport,Contract Hire and Operating Leases,PTU Vehicle Contracts,,13/02/2024,14/02/2024,2681.75,,Ace Taxis & Minibus
"Facilities, Fleet & Decarbonisation",Home to School Transport Dept,Communities & Place,School Transport � External,Transport,Contract Hire and Operating Leases,PTU Vehicle Contracts,,13/02/2024,14/02/2024,2224.4,,REDACTED PERSONAL DATA
"Facilities, Fleet & Decarbonisation",Home to School Transport Dept,Communities & Place,School Transport � External,Transport,Contract Hire and Operating Leases,PTU Vehicle Contracts,,13/02/2024,14/02/2024,3714.1,,REDACTED PERSONAL DATA
"Facilities, Fleet & Decarbonisation",Home to School Transport Dept,Communities & Place,School Transport � External,Transport,Contract Hire and Operating Leases,PTU Vehicle Contracts,,13/02/2024,14/02/2024,4265.55,,REDACTED PERSONAL DATA
"Facilities, Fleet & Decarbonisation",Home to School Transport Dept,Communities & Place,School Transport � External,Transport,Contract Hire and Operating Leases,PTU Vehicle Contracts,,13/02/2024,14/02/2024,3150,,REDACTED PERSONAL DATA
"Facilities, Fleet & Decarbonisation",Home to School Transport Dept,Communities & Place,School Transport � External,Transport,Contract Hire and Operating Leases,PTU Vehicle Contracts,,13/02/2024,14/02/2024,22125.29,,REDACTED PERSONAL DATA
"Facilities, Fleet & Decarbonisation",Home to School Transport Dept,Communities & Place,School Transport � External,Transport,Contract Hire and Operating Leases,PTU Vehicle Contracts,,13/02/2024,14/02/2024,7249.39,,REDACTED PERSONAL DATA
"Facilities, Fleet & Decarbonisation",Home to School Transport Dept,Communities & Place,School Transport � External,Transport,Contract Hire and Operating Leases,PTU Vehicle Contracts,,13/02/2024,14/02/2024,22871.36,,REDACTED PERSONAL DATA
"Facilities, Fleet & Decarbonisation",Home to School Transport Dept,Communities & Place,School Transport � External,Transport,Contract Hire and Operating Leases,PTU Vehicle Contracts,,13/02/2024,14/02/2024,1955.05,,REDACTED PERSONAL DATA
Schools Total,School Group 1 � Pupil Capacity 1-143,MCC Schools,Llanvihangel Crucorney Primary School,Supplies & Services,"Equipment, Furniture and Materials",Rental / Hire,,01/12/2023,05/02/2024,45,,Black Mountain Mineral Water
"Leisure, Youth & Outdoor Adventure",Youth & Education,MonLife Directorate,Gilwern,Transport,Contract Hire and Operating Leases,Plant Hire Charge,,31/01/2024,15/03/2024,-25,,Eagle Plant
"Commercial, Corporate & landlord Services",Property Services & Facilities Management,Resources,Gwent Police Collaboration,Premises,"Repairs, Alterations & Maintenance of Buildings",Building Improvements / Maintenance,,19/02/2024,21/02/2024,279.92,,Ambassador Fire & Security LTD
Neighbourhood Services,Highways,Communities & Place,Overhead - Mon Highways,Transport,Contract Hire and Operating Leases,Plant Hire Charge,,31/10/2023,21/02/2024,7612.5,,F&J Plant Hire
Schools Total,School Group 2 � Pupil Capacity 144-314,MCC Schools,Ysgol Gymraeg Y Fenni,Supplies & Services,"Equipment, Furniture and Materials",Rental / Hire,,30/06/2023,21/02/2024,104.98,,Phs Group
"Commercial, Corporate & landlord Services",Property Services & Facilities Management,Resources,Gwent Police Collaboration,Premises,"Repairs, Alterations & Maintenance of Buildings",Building Improvements / Maintenance,,31/01/2024,21/02/2024,44.96,,Fire Safety Direct
Countryside & Culture,Countryside,MonLife Directorate,Gwent Green Grid Partnership (Colette Bosley),Supplies & Services,"Equipment, Furniture and Materials",Equipment Purchases,,05/02/2024,14/02/2024,224.15,,Amazon Payments UK Limited
"Commercial, Corporate & landlord Services",Property Services & Facilities Management,Resources,Gwent Police Collaboration,Premises,"Repairs, Alterations & Maintenance of Buildings",Building Improvements / Maintenance,,08/02/2024,14/02/2024,140,,Industrial Door Services
"Commercial, Corporate & landlord Services",Property Services & Facilities Management,Resources,Gwent Police Collaboration,Premises,"Repairs, Alterations & Maintenance of Buildings",Building Improvements / Maintenance,,08/02/2024,14/02/2024,125,,Industrial Door Services
"Commercial, Corporate & landlord Services",Property Services & Facilities Management,Resources,Gwent Police Collaboration,Premises,"Repairs, Alterations & Maintenance of Buildings",Building Improvements / Maintenance,,08/02/2024,14/02/2024,125,,Industrial Door Services
"Leisure, Youth & Outdoor Adventure",Leisure Services,MonLife Directorate,Abergavenny Leisure Centre,Supplies & Services,"Equipment, Furniture and Materials",Equipment Purchases,,01/02/2024,12/02/2024,46.9,,J P Lennard Ltd
"Leisure, Youth & Outdoor Adventure",Leisure Services,MonLife Directorate,Abergavenny Leisure Centre,Supplies & Services,"Equipment, Furniture and Materials",Equipment Purchases,,01/02/2024,12/02/2024,46.9,,J P Lennard Ltd
"Leisure, Youth & Outdoor Adventure",Leisure Services,MonLife Directorate,Abergavenny Leisure Centre,Supplies & Services,"Equipment, Furniture and Materials",Equipment Purchases,,01/02/2024,12/02/2024,16.2,,J P Lennard Ltd
"Commercial, Corporate & landlord Services",Property Services & Facilities Management,Resources,Gwent Police Collaboration,Premises,"Repairs, Alterations & Maintenance of Buildings",Building Improvements / Maintenance,,12/02/2024,14/02/2024,50,,Ambassador Fire & Security LTD
"Leisure, Youth & Outdoor Adventure",Leisure Services,MonLife Directorate,Abergavenny Leisure Centre,Premises,"Repairs, Alterations & Maintenance of Buildings",Premises Repairs And Maintenance,,07/02/2024,28/02/2024,660,,UNIVAR
Neighbourhood Services,Highways,Communities & Place,External Contracts,Transport,Contract Hire and Operating Leases,Plant Hire Charge,,20/02/2024,28/02/2024,448,,Notchface Ltd T/A AFG Engineering
Neighbourhood Services,Highways,Communities & Place,External Contracts,Transport,Contract Hire and Operating Leases,Plant Hire Charge,,20/02/2024,28/02/2024,-448,,Notchface Ltd T/A AFG Engineering
Neighbourhood Services,Highways,Communities & Place,External Contracts,Transport,Contract Hire and Operating Leases,Plant Hire Charge,,20/02/2024,28/02/2024,4985,,Notchface Ltd T/A AFG Engineering
Neighbourhood Services,Highways,Communities & Place,Internal others,Transport,Contract Hire and Operating Leases,Plant Hire Charge,,31/10/2023,28/02/2024,434.73,,Travis Perkins Trading Co Ltd
"Commercial, Corporate & landlord Services",Property Services & Facilities Management,Resources,Gwent Police Collaboration,Premises,"Repairs, Alterations & Maintenance of Buildings",Building Improvements / Maintenance,,14/11/2023,28/02/2024,148.3,,EFS Systems (UK) Ltd
Schools Total,School Group 7 � Pupil Capacity 501-1800,MCC Schools,Monmouth Comprehensive,Premises,"Repairs, Alterations & Maintenance of Buildings",Premises Repairs And Maintenance,,21/02/2024,28/02/2024,9.79,,Screwfix Trade UK
"Commercial, Corporate & landlord Services",Property Services & Facilities Management,Resources,Gwent Police Collaboration,Premises,"Repairs, Alterations & Maintenance of Buildings",Building Improvements / Maintenance,,19/02/2024,21/02/2024,50,,Ambassador Fire & Security LTD
Schools Total,School Group 7 � Pupil Capacity 501-1800,MCC Schools,Chepstow School,Supplies & Services,"Equipment, Furniture and Materials",Rental / Hire,,30/01/2024,09/02/2024,1280,,HLM Scaffolding Limited
Schools Total,School Group 7 � Pupil Capacity 501-1800,MCC Schools,Chepstow School,Supplies & Services,"Equipment, Furniture and Materials",Rental / Hire,,30/01/2024,09/02/2024,384,,HLM Scaffolding Limited
Schools Total,School Group 7 � Pupil Capacity 501-1800,MCC Schools,Chepstow School,Supplies & Services,"Equipment, Furniture and Materials",Rental / Hire,,30/01/2024,09/02/2024,-384,,HLM Scaffolding Limited
"Facilities, Fleet & Decarbonisation",Home to School Transport Dept,Communities & Place,School Transport � External,Transport,Contract Hire and Operating Leases,PTU Vehicle Contracts,,30/12/2023,09/02/2024,1144,,C and P Transport
Schools Total,School Group 7 � Pupil Capacity 501-1800,MCC Schools,Chepstow School,Supplies & Services,"Equipment, Furniture and Materials",Health & Safety Equipment.,,19/01/2024,05/02/2024,56,,Defib Store Ltd
Schools Total,School Group 7 � Pupil Capacity 501-1800,MCC Schools,Chepstow School,Supplies & Services,"Equipment, Furniture and Materials",Health & Safety Equipment.,,19/01/2024,05/02/2024,205,,Defib Store Ltd
Schools Total,School Group 7 � Pupil Capacity 501-1800,MCC Schools,Chepstow School,Supplies & Services,"Equipment, Furniture and Materials",Health & Safety Equipment.,,19/01/2024,05/02/2024,10,,Defib Store Ltd
"Commercial, Corporate & landlord Services",Property Services & Facilities Management,Resources,Gwent Police Collaboration,Premises,"Repairs, Alterations & Maintenance of Buildings",Building Improvements / Maintenance,,26/01/2024,14/02/2024,23370,,EFS Systems (UK) Ltd
"Commercial, Corporate & landlord Services",Property Services & Facilities Management,Resources,Gwent Police Collaboration,Premises,"Repairs, Alterations & Maintenance of Buildings",Building Improvements / Maintenance,,23/01/2024,14/02/2024,191.9,,A.J Quinn Building Contractors Ltd
"Commercial, Corporate & landlord Services",Property Services & Facilities Management,Resources,Gwent Police Collaboration,Premises,"Repairs, Alterations & Maintenance of Buildings",Building Improvements / Maintenance,,19/02/2024,21/02/2024,218,,Ambassador Fire & Security LTD
"Facilities, Fleet & Decarbonisation",Home to School Transport Dept,Communities & Place,SCH Transport,Transport,Contract Hire and Operating Leases,PTU Vehicle Contracts,,31/01/2024,21/02/2024,1530,,REDACTED PERSONAL DATA
Schools Total,School Group 2 � Pupil Capacity 144-314,MCC Schools,Dewstow Primary School,Supplies & Services,"Equipment, Furniture and Materials",Rental / Hire,,06/12/2023,21/02/2024,670.07,,Initial Washrooms & Hygiene
Neighbourhood Services,Highways,Communities & Place,Internal others,Transport,Contract Hire and Operating Leases,Plant Hire Charge,,27/11/2023,28/02/2024,347.78,,Travis Perkins Trading Co Ltd
Schools Total,School Group 1 � Pupil Capacity 1-143,MCC Schools,Ysgol Gymraeg Y Ffin,Supplies & Services,"Equipment, Furniture and Materials",Rental / Hire,,19/02/2024,28/02/2024,440,,Investec Asset Finance
"Leisure, Youth & Outdoor Adventure",Youth & Education,MonLife Directorate,Gilwern,Supplies & Services,"Equipment, Furniture and Materials",Rental / Hire,,02/02/2024,28/02/2024,218.26,,Phs Group
Schools Total,School Group 7 � Pupil Capacity 501-1800,MCC Schools,Monmouth Comprehensive,Supplies & Services,"Equipment, Furniture and Materials",Health & Safety Equipment.,,23/02/2024,28/02/2024,95,,Cleapss
"Commercial, Corporate & landlord Services",Property Services & Facilities Management,Resources,Gwent Police Collaboration,Premises,"Repairs, Alterations & Maintenance of Buildings",Building Improvements / Maintenance,,23/11/2023,12/02/2024,198.88,,A.J Quinn Building Contractors Ltd
"Commercial, Corporate & landlord Services",Property Services & Facilities Management,Resources,Office Services,Supplies & Services,"Equipment, Furniture and Materials",Equipment Purchases,,07/02/2024,12/02/2024,30,,Zenith Print and Packaging Ltd
"Commercial, Corporate & landlord Services",Property Services & Facilities Management,Resources,Gwent Police Collaboration,Premises,"Repairs, Alterations & Maintenance of Buildings",Building Improvements / Maintenance,,23/01/2024,14/02/2024,52.41,,A.J Quinn Building Contractors Ltd
"Commercial, Corporate & landlord Services",Property Services & Facilities Management,Resources,Gwent Police Collaboration,Premises,"Repairs, Alterations & Maintenance of Buildings",Building Improvements / Maintenance,,23/01/2024,14/02/2024,96,,A.J Quinn Building Contractors Ltd
"Commercial, Corporate & landlord Services",Property Services & Facilities Management,Resources,Gwent Police Collaboration,Premises,"Repairs, Alterations & Maintenance of Buildings",Building Improvements / Maintenance,,25/01/2024,14/02/2024,46,,A.J Quinn Building Contractors Ltd
"Commercial, Corporate & landlord Services",Property Services & Facilities Management,Resources,Gwent Police Collaboration,Premises,"Repairs, Alterations & Maintenance of Buildings",Building Improvements / Maintenance,,08/02/2024,12/02/2024,350,,MORGAN ENVIRONMENTAL LTD
Finance & Business Devlopment,Borough Theatre,MonLife Directorate,Borough Theatre General,Supplies & Services,"Equipment, Furniture and Materials",Equipment Purchases,,08/02/2024,12/02/2024,721,,Stage Lighting Services
"Leisure, Youth & Outdoor Adventure",Youth & Education,MonLife Directorate,Gilwern,Supplies & Services,"Equipment, Furniture and Materials",Rental / Hire,,31/07/2023,28/02/2024,221.26,,Phs Group
"Commercial, Corporate & landlord Services",Property Services & Facilities Management,Resources,Gwent Police Collaboration,Premises,"Repairs, Alterations & Maintenance of Buildings",Building Improvements / Maintenance,,21/11/2023,12/02/2024,749.56,,A.J Quinn Building Contractors Ltd
"Commercial, Corporate & landlord Services",Property Services & Facilities Management,Resources,Gwent Police Collaboration,Premises,"Repairs, Alterations & Maintenance of Buildings",Building Improvements / Maintenance,,15/11/2023,12/02/2024,626.17,,A.J Quinn Building Contractors Ltd
"Commercial, Corporate & landlord Services",Property Services & Facilities Management,Resources,Gwent Police Collaboration,Premises,"Repairs, Alterations & Maintenance of Buildings",Building Improvements / Maintenance,,21/11/2023,12/02/2024,148.68,,A.J Quinn Building Contractors Ltd
"Commercial, Corporate & landlord Services",Property Services & Facilities Management,Resources,Gwent Police Collaboration,Premises,"Repairs, Alterations & Maintenance of Buildings",Building Improvements / Maintenance,,26/01/2024,14/02/2024,17700,,EFS Systems (UK) Ltd
"Commercial, Corporate & landlord Services",Property Services & Facilities Management,Resources,Gwent Police Collaboration,Premises,"Repairs, Alterations & Maintenance of Buildings",Building Improvements / Maintenance,,26/01/2024,14/02/2024,28716,,EFS Systems (UK) Ltd
"Facilities, Fleet & Decarbonisation",Home to School Transport Dept,Communities & Place,SEN Post 16 Travel,Transport,Contract Hire and Operating Leases,PTU Vehicle Contracts,,13/02/2024,14/02/2024,4376.34,,C and P Transport
"Facilities, Fleet & Decarbonisation",Home to School Transport Dept,Communities & Place,School Transport � External,Transport,Contract Hire and Operating Leases,PTU Vehicle Contracts,,13/02/2024,14/02/2024,4305.31,,Avenue Taxis
"Facilities, Fleet & Decarbonisation",Home to School Transport Dept,Communities & Place,School Transport � External,Transport,Contract Hire and Operating Leases,PTU Vehicle Contracts,,13/02/2024,14/02/2024,1559.25,,Blackhouse Travel
"Facilities, Fleet & Decarbonisation",Home to School Transport Dept,Communities & Place,School Transport � External,Transport,Contract Hire and Operating Leases,PTU Vehicle Contracts,,13/02/2024,14/02/2024,2209.09,,Blackhouse Travel
"Facilities, Fleet & Decarbonisation",Home to School Transport Dept,Communities & Place,School Transport � External,Transport,Contract Hire and Operating Leases,PTU Vehicle Contracts,,13/02/2024,14/02/2024,15103.31,,C and P Transport
"Facilities, Fleet & Decarbonisation",Home to School Transport Dept,Communities & Place,School Transport � External,Transport,Contract Hire and Operating Leases,PTU Vehicle Contracts,,13/02/2024,14/02/2024,17003.58,,C and P Transport
"Facilities, Fleet & Decarbonisation",Home to School Transport Dept,Communities & Place,School Transport � External,Transport,Contract Hire and Operating Leases,PTU Vehicle Contracts,,13/02/2024,14/02/2024,6958.98,,CDS Hire Limited
"Facilities, Fleet & Decarbonisation",Home to School Transport Dept,Communities & Place,School Transport � External,Transport,Contract Hire and Operating Leases,PTU Vehicle Contracts,,13/02/2024,14/02/2024,2190.04,,CDS Hire Limited
"Commercial, Corporate & landlord Services",Property Services & Facilities Management,Resources,Gwent Police Collaboration,Premises,"Repairs, Alterations & Maintenance of Buildings",Building Improvements / Maintenance,,25/01/2024,12/02/2024,158,,P&P Pest Control
"Facilities, Fleet & Decarbonisation",Home to School Transport Dept,Communities & Place,SCH Transport,Transport,Contract Hire and Operating Leases,PTU Vehicle Contracts,,05/02/2024,01/03/2024,3663,,C and P Transport
"Facilities, Fleet & Decarbonisation",Home to School Transport Dept,Communities & Place,SCH Transport,Transport,Contract Hire and Operating Leases,PTU Vehicle Contracts,,05/02/2024,01/03/2024,140,,C and P Transport
"Facilities, Fleet & Decarbonisation",Home to School Transport Dept,Communities & Place,SCH Transport,Transport,Contract Hire and Operating Leases,PTU Vehicle Contracts,,05/02/2024,01/03/2024,2556,,C and P Transport
"Facilities, Fleet & Decarbonisation",Home to School Transport Dept,Communities & Place,School Transport � External,Transport,Contract Hire and Operating Leases,PTU Vehicle Contracts,,13/02/2024,14/02/2024,8347.5,,Celtic Minibuses Ltd
"Facilities, Fleet & Decarbonisation",Home to School Transport Dept,Communities & Place,School Transport � External,Transport,Contract Hire and Operating Leases,PTU Vehicle Contracts,,13/02/2024,14/02/2024,2362.5,,Fast Cars of Abergavenny
"Facilities, Fleet & Decarbonisation",Home to School Transport Dept,Communities & Place,School Transport � External,Transport,Contract Hire and Operating Leases,PTU Vehicle Contracts,,13/02/2024,14/02/2024,787.5,,G & H Minibus
"Facilities, Fleet & Decarbonisation",Home to School Transport Dept,Communities & Place,School Transport � External,Transport,Contract Hire and Operating Leases,PTU Vehicle Contracts,,13/02/2024,14/02/2024,2972.69,,G & H Minibus
"Facilities, Fleet & Decarbonisation",Home to School Transport Dept,Communities & Place,School Transport � External,Transport,Contract Hire and Operating Leases,PTU Vehicle Contracts,,13/02/2024,14/02/2024,3508.17,,REDACTED PERSONAL DATA
"Facilities, Fleet & Decarbonisation",Home to School Transport Dept,Communities & Place,School Transport � External,Transport,Contract Hire and Operating Leases,PTU Vehicle Contracts,,13/02/2024,14/02/2024,6507.5,,Jaks Minibus Hire
"Facilities, Fleet & Decarbonisation",Home to School Transport Dept,Communities & Place,School Transport � External,Transport,Contract Hire and Operating Leases,PTU Vehicle Contracts,,13/02/2024,14/02/2024,718.33,,REDACTED PERSONAL DATA
"Facilities, Fleet & Decarbonisation",Home to School Transport Dept,Communities & Place,School Transport � External,Transport,Contract Hire and Operating Leases,PTU Vehicle Contracts,,13/02/2024,14/02/2024,882.5,,Jay's Taxis
"Facilities, Fleet & Decarbonisation",Home to School Transport Dept,Communities & Place,School Transport � External,Transport,Contract Hire and Operating Leases,PTU Vehicle Contracts,,13/02/2024,14/02/2024,14212.99,,K & M Taxis Executive Hire Ltd
"Facilities, Fleet & Decarbonisation",Home to School Transport Dept,Communities & Place,School Transport � External,Transport,Contract Hire and Operating Leases,PTU Vehicle Contracts,,13/02/2024,14/02/2024,8157.59,,K & M Taxis Executive Hire Ltd
"Facilities, Fleet & Decarbonisation",Home to School Transport Dept,Communities & Place,School Transport � External,Transport,Contract Hire and Operating Leases,PTU Vehicle Contracts,,13/02/2024,14/02/2024,1433.25,,REDACTED PERSONAL DATA
"Facilities, Fleet & Decarbonisation",Home to School Transport Dept,Communities & Place,SEN Post 16 Travel,Transport,Contract Hire and Operating Leases,PTU Vehicle Contracts,,13/02/2024,14/02/2024,1416.67,,G & H Minibus
"Facilities, Fleet & Decarbonisation",Home to School Transport Dept,Communities & Place,SEN Post 16 Travel,Transport,Contract Hire and Operating Leases,PTU Vehicle Contracts,,13/02/2024,14/02/2024,10742.5,,Maniver Hussain Ali LTD
"Facilities, Fleet & Decarbonisation",Home to School Transport Dept,Communities & Place,School Transport � External,Transport,Contract Hire and Operating Leases,PTU Vehicle Contracts,,13/02/2024,14/02/2024,2205,,Magor taxis
"Facilities, Fleet & Decarbonisation",Home to School Transport Dept,Communities & Place,School Transport � External,Transport,Contract Hire and Operating Leases,PTU Vehicle Contracts,,13/02/2024,14/02/2024,1653.75,,Murrays Minibus Hire
"Facilities, Fleet & Decarbonisation",Home to School Transport Dept,Communities & Place,School Transport � External,Transport,Contract Hire and Operating Leases,PTU Vehicle Contracts,,13/02/2024,14/02/2024,5906.25,,Murrays Minibus Hire
"Facilities, Fleet & Decarbonisation",Home to School Transport Dept,Communities & Place,School Transport � External,Transport,Contract Hire and Operating Leases,PTU Vehicle Contracts,,13/02/2024,14/02/2024,7562.02,,Murrays Minibus Hire
"Facilities, Fleet & Decarbonisation",Home to School Transport Dept,Communities & Place,School Transport � External,Transport,Contract Hire and Operating Leases,PTU Vehicle Contracts,,13/02/2024,14/02/2024,4000.5,,Murrays Minibus Hire
"Facilities, Fleet & Decarbonisation",Home to School Transport Dept,Communities & Place,School Transport � External,Transport,Contract Hire and Operating Leases,PTU Vehicle Contracts,,13/02/2024,14/02/2024,2520,,Platinum Private Hire
"Facilities, Fleet & Decarbonisation",Home to School Transport Dept,Communities & Place,School Transport � External,Transport,Contract Hire and Operating Leases,PTU Vehicle Contracts,,13/02/2024,14/02/2024,7638.75,,Rees Motor (Travel)
"Facilities, Fleet & Decarbonisation",Home to School Transport Dept,Communities & Place,School Transport � External,Transport,Contract Hire and Operating Leases,PTU Vehicle Contracts,,13/02/2024,14/02/2024,2671.67,,Rideout Travel
"Facilities, Fleet & Decarbonisation",Home to School Transport Dept,Communities & Place,School Transport � External,Transport,Contract Hire and Operating Leases,PTU Vehicle Contracts,,13/02/2024,14/02/2024,5355,,Rideout Travel
"Facilities, Fleet & Decarbonisation",Home to School Transport Dept,Communities & Place,School Transport � External,Transport,Contract Hire and Operating Leases,PTU Vehicle Contracts,,13/02/2024,14/02/2024,1732.5,,RST TAXIS
"Facilities, Fleet & Decarbonisation",Home to School Transport Dept,Communities & Place,School Transport � External,Transport,Contract Hire and Operating Leases,PTU Vehicle Contracts,,13/02/2024,14/02/2024,2651.25,,RST TAXIS
"Facilities, Fleet & Decarbonisation",Home to School Transport Dept,Communities & Place,School Transport � External,Transport,Contract Hire and Operating Leases,PTU Vehicle Contracts,,13/02/2024,14/02/2024,1102.5,,REDACTED PERSONAL DATA
"Facilities, Fleet & Decarbonisation",Home to School Transport Dept,Communities & Place,School Transport � External,Transport,Contract Hire and Operating Leases,PTU Vehicle Contracts,,13/02/2024,14/02/2024,1512,,Terrys Taxis
Schools Total,School Group 2 � Pupil Capacity 144-314,MCC Schools,Shirenewton Primary School,Supplies & Services,"Equipment, Furniture and Materials",Rental / Hire,,30/06/2023,26/02/2024,26.42,,Phs Group
"Facilities, Fleet & Decarbonisation",Home to School Transport Dept,Communities & Place,School Transport � External,Transport,Contract Hire and Operating Leases,PTU Vehicle Contracts,,13/02/2024,14/02/2024,3460,,Terrys Taxis
"Facilities, Fleet & Decarbonisation",Home to School Transport Dept,Communities & Place,School Transport � External,Transport,Contract Hire and Operating Leases,PTU Vehicle Contracts,,13/02/2024,14/02/2024,13230,,Varteg Motors Ltd
"Facilities, Fleet & Decarbonisation",Home to School Transport Dept,Communities & Place,School Transport � External,Transport,Contract Hire and Operating Leases,PTU Vehicle Contracts,,13/02/2024,14/02/2024,3622.5,,Varteg Motors Ltd
"Facilities, Fleet & Decarbonisation",Home to School Transport Dept,Communities & Place,School Transport � External,Transport,Contract Hire and Operating Leases,PTU Vehicle Contracts,,13/02/2024,14/02/2024,3464.84,,REDACTED PERSONAL DATA
"Facilities, Fleet & Decarbonisation",Home to School Transport Dept,Communities & Place,School Transport � External,Transport,Contract Hire and Operating Leases,PTU Vehicle Contracts,,13/02/2024,14/02/2024,8307.65,,REDACTED PERSONAL DATA
"Facilities, Fleet & Decarbonisation",Home to School Transport Dept,Communities & Place,School Transport � External,Transport,Contract Hire and Operating Leases,PTU Vehicle Contracts,,13/02/2024,14/02/2024,2047.35,,REDACTED PERSONAL DATA
"Facilities, Fleet & Decarbonisation",Home to School Transport Dept,Communities & Place,School Transport � External,Transport,Contract Hire and Operating Leases,PTU Vehicle Contracts,,13/02/2024,14/02/2024,2992.35,,REDACTED PERSONAL DATA
"Facilities, Fleet & Decarbonisation",Home to School Transport Dept,Communities & Place,School Transport � External,Transport,Contract Hire and Operating Leases,PTU Vehicle Contracts,,13/02/2024,14/02/2024,5197.5,,REDACTED PERSONAL DATA
"Facilities, Fleet & Decarbonisation",Home to School Transport Dept,Communities & Place,School Transport � External,Transport,Contract Hire and Operating Leases,PTU Vehicle Contracts,,13/02/2024,14/02/2024,4961.25,,REDACTED PERSONAL DATA
"Facilities, Fleet & Decarbonisation",Home to School Transport Dept,Communities & Place,School Transport � External,Transport,Contract Hire and Operating Leases,PTU Vehicle Contracts,,13/02/2024,14/02/2024,11733.75,,Zahid Limited
"Facilities, Fleet & Decarbonisation",Home to School Transport Dept,Communities & Place,School Transport � External,Transport,Contract Hire and Operating Leases,PTU Vehicle Contracts,,13/02/2024,14/02/2024,1968.75,,REDACTED PERSONAL DATA
"Facilities, Fleet & Decarbonisation",Home to School Transport Dept,Communities & Place,School Transport � External,Transport,Contract Hire and Operating Leases,PTU Vehicle Contracts,,13/02/2024,14/02/2024,1968.75,,REDACTED PERSONAL DATA
Individual School Budget,Individual Schools Budget,Children & Young People,ISB Primary Schools,Transport,Contract Hire and Operating Leases,PTU Vehicle Contracts,,13/02/2024,14/02/2024,1386,,Gwent Travel Solutions Ltd
"Commercial, Corporate & landlord Services",Property Services & Facilities Management,Resources,Gwent Police Collaboration,Premises,"Repairs, Alterations & Maintenance of Buildings",Building Improvements / Maintenance,,21/02/2024,26/02/2024,864.15,,Power Electrics (Bristol) Ltd
"Commercial, Corporate & landlord Services",Property Services & Facilities Management,Resources,Gwent Police Collaboration,Premises,"Repairs, Alterations & Maintenance of Buildings",Building Improvements / Maintenance,,21/02/2024,26/02/2024,55,,Power Electrics (Bristol) Ltd
Public Protection,Public Protection,Social Care and Health,Licensing,Supplies & Services,"Equipment, Furniture and Materials",Equipment Purchases,,27/02/2024,29/02/2024,203.9,,Mogo Uk
Adult Services,Direct Care Residential,Social Care and Health,Severn View Residential,Supplies & Services,"Equipment, Furniture and Materials",Equipment Purchases,,13/02/2024,19/02/2024,834.45,,REDACTED DATA
Schools Total,School Group 7 � Pupil Capacity 501-1800,MCC Schools,Monmouth Comprehensive,Premises,"Repairs, Alterations & Maintenance of Buildings",Premises Repairs And Maintenance,,30/01/2024,08/02/2024,14.99,,Screwfix Trade UK
Schools Total,School Group 2 � Pupil Capacity 144-314,MCC Schools,Dewstow Primary School,Supplies & Services,"Equipment, Furniture and Materials",Health & Safety Equipment.,,11/12/2023,15/02/2024,31.66,,Screwfix Trade UK
Finance & Business Devlopment,Attractions,MonLife Directorate,Tourist Information Centres,Supplies & Services,"Equipment, Furniture and Materials",Equipment Purchases,,06/02/2024,08/02/2024,10.3,,Eureka 1st Aid & Safety for Schools
Finance & Business Devlopment,Attractions,MonLife Directorate,Tourist Information Centres,Supplies & Services,"Equipment, Furniture and Materials",Equipment Purchases,,06/02/2024,08/02/2024,18.8,,Eureka 1st Aid & Safety for Schools
Finance & Business Devlopment,Attractions,MonLife Directorate,Tourist Information Centres,Supplies & Services,"Equipment, Furniture and Materials",Equipment Purchases,,06/02/2024,08/02/2024,8.65,,Eureka 1st Aid & Safety for Schools
Schools Total,School Group 7 � Pupil Capacity 501-1800,MCC Schools,Monmouth Comprehensive,Supplies & Services,"Equipment, Furniture and Materials",Health & Safety Equipment.,,01/02/2024,08/02/2024,168,,P&P Pest Control
"Commercial, Corporate & landlord Services",Property Services & Facilities Management,Resources,Facilities,Supplies & Services,"Equipment, Furniture and Materials",Equipment Purchases,,07/02/2024,08/02/2024,52,,Newport Locksmiths Ltd
"Commercial, Corporate & landlord Services",Property Services & Facilities Management,Resources,Gwent Police Collaboration,Premises,"Repairs, Alterations & Maintenance of Buildings",Building Improvements / Maintenance,,31/01/2024,05/02/2024,125,,Industrial Door Services
"Commercial, Corporate & landlord Services",Property Services & Facilities Management,Resources,Gwent Police Collaboration,Premises,"Repairs, Alterations & Maintenance of Buildings",Building Improvements / Maintenance,,31/01/2024,05/02/2024,349.16,,Gemini Blinds Gwent
Neighbourhood Services,Highways,Communities & Place,Internal others,Transport,Contract Hire and Operating Leases,Plant Hire Charge,,08/01/2024,15/02/2024,280,,DJS Civil Engineering Ltd
"Commercial, Corporate & landlord Services",Property Services & Facilities Management,Resources,Gwent Police Collaboration,Premises,"Repairs, Alterations & Maintenance of Buildings",Building Improvements / Maintenance,,31/01/2024,06/02/2024,959.18,,REDACTED PERSONAL DATA
"Commercial, Corporate & landlord Services",Property Services & Facilities Management,Resources,Gwent Police Collaboration,Premises,"Repairs, Alterations & Maintenance of Buildings",Building Improvements / Maintenance,,01/02/2024,06/02/2024,385.42,,REDACTED PERSONAL DATA
"Commercial, Corporate & landlord Services",Property Services & Facilities Management,Resources,Gwent Police Collaboration,Premises,"Repairs, Alterations & Maintenance of Buildings",Building Improvements / Maintenance,,01/02/2024,06/02/2024,145.8,,REDACTED PERSONAL DATA
"Commercial, Corporate & landlord Services",Property Services & Facilities Management,Resources,Gwent Police Collaboration,Premises,"Repairs, Alterations & Maintenance of Buildings",Building Improvements / Maintenance,,01/02/2024,06/02/2024,70.2,,REDACTED PERSONAL DATA
"Commercial, Corporate & landlord Services",Property Services & Facilities Management,Resources,Gwent Police Collaboration,Premises,"Repairs, Alterations & Maintenance of Buildings",Building Improvements / Maintenance,,01/02/2024,06/02/2024,357.89,,REDACTED PERSONAL DATA
"Commercial, Corporate & landlord Services",Property Services & Facilities Management,Resources,Gwent Police Collaboration,Premises,"Repairs, Alterations & Maintenance of Buildings",Building Improvements / Maintenance,,01/02/2024,06/02/2024,165.18,,REDACTED PERSONAL DATA
"Commercial, Corporate & landlord Services",Property Services & Facilities Management,Resources,Gwent Police Collaboration,Premises,"Repairs, Alterations & Maintenance of Buildings",Building Improvements / Maintenance,,01/02/2024,06/02/2024,165.18,,REDACTED PERSONAL DATA
"Commercial, Corporate & landlord Services",Property Services & Facilities Management,Resources,Gwent Police Collaboration,Premises,"Repairs, Alterations & Maintenance of Buildings",Building Improvements / Maintenance,,01/02/2024,06/02/2024,87.45,,REDACTED PERSONAL DATA
Schools Total,School Group 7 � Pupil Capacity 501-1800,MCC Schools,Chepstow School,Supplies & Services,"Equipment, Furniture and Materials",Rental / Hire,,26/01/2024,05/02/2024,282.74,,Phs Group
"Enterprise, Housing & Community Animation",Business Growth & Enterprise,Communities & Place,Multiply SPF,Supplies & Services,"Equipment, Furniture and Materials",Equipment Purchases,,01/02/2024,05/02/2024,65.58,,Amazon Payments UK Limited
Standards,Early Years,Children & Young People,Flying Start Grant,Supplies & Services,"Equipment, Furniture and Materials",Equipment Purchases,,26/01/2024,06/02/2024,9.97,,Hope Education Ltd
"Commercial, Corporate & landlord Services",Property Services & Facilities Management,Resources,Gwent Police Collaboration,Premises,"Repairs, Alterations & Maintenance of Buildings",Building Improvements / Maintenance,,31/01/2024,06/02/2024,2267.22,,REDACTED PERSONAL DATA
Schools Total,School Group 2 � Pupil Capacity 144-314,MCC Schools,Pembroke Primary School,Premises,"Repairs, Alterations & Maintenance of Buildings",Premises Repairs And Maintenance,,01/02/2024,23/02/2024,1054.14,,G4S Secure Solutions (UK) Ltd
Neighbourhood Services,Highways,Communities & Place,Task Orders,Transport,Contract Hire and Operating Leases,Plant Hire Charge,,27/02/2024,05/04/2024,-2463.72,,Gap Group Limited
Neighbourhood Services,Highways,Communities & Place,Overhead - Mon Highways,Supplies & Services,"Equipment, Furniture and Materials",Health & Safety Equipment.,,27/11/2023,13/02/2024,195.52,,Industrial Rugbi Supplies
"Commercial, Corporate & landlord Services",Property Services & Facilities Management,Resources,Gwent Police Collaboration,Premises,"Repairs, Alterations & Maintenance of Buildings",Building Improvements / Maintenance,,17/01/2024,13/02/2024,102.72,,Fire Safety Direct
"Commercial, Corporate & landlord Services",Property Services & Facilities Management,Resources,Gwent Police Collaboration,Premises,"Repairs, Alterations & Maintenance of Buildings",Building Improvements / Maintenance,,18/01/2024,13/02/2024,6.9,,Fire Safety Direct
Schools Total,School Group 2 � Pupil Capacity 144-314,MCC Schools,Thornwell Primary School,Supplies & Services,"Equipment, Furniture and Materials",Equipment Purchases,,19/01/2024,07/02/2024,21.57,,Amazon Payments UK Limited
Schools Total,School Group 2 � Pupil Capacity 144-314,MCC Schools,Ysgol Gymraeg Y Fenni,Premises,"Repairs, Alterations & Maintenance of Buildings",Building Improvements / Maintenance,,30/01/2024,23/02/2024,222.66,,A.J Quinn Building Contractors Ltd
"Facilities, Fleet & Decarbonisation",Home to School Transport Dept,Communities & Place,School Transport � External,Transport,Public Transport,Season Tickets,,21/02/2024,23/02/2024,3950.8,,Stagecoach Services Ltd
"Facilities, Fleet & Decarbonisation",Transport Department,Communities & Place,Transport,Transport,Direct Transport Costs,All Other Non-Contract Transport Work.,,06/02/2024,08/02/2024,624,,Euro Commercials (South Wales) L
Schools Total,SCHGRP3 � School Group 3 � Pupil Capacity 315-500,MCC Schools,Deri View Primary School,Premises,"Repairs, Alterations & Maintenance of Buildings",Building Improvements / Maintenance,,18/01/2024,07/02/2024,104.56,,EFS Systems (UK) Ltd
"Facilities, Fleet & Decarbonisation",Transport Department,Communities & Place,Transport,Transport,Direct Transport Costs,All Other Non-Contract Transport Work.,,31/01/2024,08/02/2024,962.33,,Trojan Garage
Schools Total,School Group 7 � Pupil Capacity 501-1800,MCC Schools,King Henry 3-19 School,Supplies & Services,"Equipment, Furniture and Materials",Equipment Purchases,,31/01/2024,12/02/2024,28.2,,Amazon Payments UK Limited
Schools Total,School Group 2 � Pupil Capacity 144-314,MCC Schools,Thornwell Primary School,Supplies & Services,"Equipment, Furniture and Materials",Equipment Purchases,,28/09/2023,28/02/2024,228.65,,Sportsafe UK Ltd
Finance & Business Devlopment,Museums,MonLife Directorate,Museum Grants,Transport,Public Transport,Clients (Public Transport),,26/01/2024,21/02/2024,14.4,,Wood Art Works
Schools Total,School Group 7 � Pupil Capacity 501-1800,MCC Schools,King Henry 3-19 School,Supplies & Services,"Equipment, Furniture and Materials",Equipment Purchases,,31/01/2024,14/02/2024,3.32,,Amazon Payments UK Limited
"Commercial, Corporate & landlord Services",Property Services & Facilities Management,Resources,Programmed Maintenance,Premises,"Repairs, Alterations & Maintenance of Buildings",Building Improvements / Maintenance,,01/02/2024,08/02/2024,114.98,,REDACTED PERSONAL DATA
"Commercial, Corporate & landlord Services",Property Services & Facilities Management,Resources,Programmed Maintenance,Premises,"Repairs, Alterations & Maintenance of Buildings",Building Improvements / Maintenance,,01/02/2024,08/02/2024,166.8,,REDACTED PERSONAL DATA
"Facilities, Fleet & Decarbonisation",Transport Department,Communities & Place,Transport,Transport,Direct Transport Costs,All Other Non-Contract Transport Work.,,29/01/2024,08/02/2024,1050,,Farmbank Towing Ltd
"Facilities, Fleet & Decarbonisation",Transport Department,Communities & Place,Transport,Transport,Direct Transport Costs,All Other Non-Contract Transport Work.,,02/02/2024,08/02/2024,180.64,,Walls Truck Services
"Facilities, Fleet & Decarbonisation",Transport Department,Communities & Place,Transport,Transport,Direct Transport Costs,All Other Non-Contract Transport Work.,,31/01/2024,08/02/2024,114.95,,Fast Fluid Power Ltd
Schools Total,School Group 2 � Pupil Capacity 144-314,MCC Schools,Trellech Primary School,Premises,"Repairs, Alterations & Maintenance of Buildings",Building Improvements / Maintenance,,08/02/2024,26/02/2024,57.5,,A.J Quinn Building Contractors Ltd
Schools Total,SCHGRP3 � School Group 3 � Pupil Capacity 315-500,MCC Schools,Magor CiW Primary School (VA),Supplies & Services,"Equipment, Furniture and Materials",Equipment Purchases,,23/02/2024,28/02/2024,9.33,,Hope Education Ltd
Schools Total,School Group 7 � Pupil Capacity 501-1800,MCC Schools,King Henry 3-19 School,Supplies & Services,"Equipment, Furniture and Materials",Equipment Purchases,,07/02/2024,26/02/2024,4.95,,Amazon Payments UK Limited
Schools Total,School Group 1 � Pupil Capacity 1-143,MCC Schools,Llanvihangel Crucorney Primary School,Supplies & Services,"Equipment, Furniture and Materials",Equipment Purchases,,02/02/2024,21/02/2024,8.79,,Amazon Payments UK Limited
Schools Total,School Group 1 � Pupil Capacity 1-143,MCC Schools,Llanvihangel Crucorney Primary School,Supplies & Services,"Equipment, Furniture and Materials",Equipment Purchases,,02/02/2024,21/02/2024,4.16,,Amazon Payments UK Limited
Schools Total,School Group 2 � Pupil Capacity 144-314,MCC Schools,Ysgol Gymraeg Y Fenni,Supplies & Services,"Equipment, Furniture and Materials",Equipment Purchases,,05/02/2024,21/02/2024,257.33,,Hope Education Ltd
Schools Total,School Group 2 � Pupil Capacity 144-314,MCC Schools,Llantilio Pertholey CiW Primary School (VC),Premises,"Repairs, Alterations & Maintenance of Buildings",Building Improvements / Maintenance,,19/02/2024,28/02/2024,39.27,,Robert Price Ltd
Schools Total,School Group 2 � Pupil Capacity 144-314,MCC Schools,Kymin View Primary School,Supplies & Services,"Equipment, Furniture and Materials",Equipment Purchases,,05/02/2024,12/02/2024,1.94,,Hope Education Ltd
Finance & Business Devlopment,Attractions,MonLife Directorate,Old Station Tintern,Premises,"Repairs, Alterations & Maintenance of Buildings",Building Improvements / Maintenance,,12/02/2024,14/02/2024,180,,Perrygrove Railway
Schools Total,School Group 7 � Pupil Capacity 501-1800,MCC Schools,King Henry VIII Comprehensive,Premises,"Repairs, Alterations & Maintenance of Buildings",Building Improvements / Maintenance,,18/01/2024,07/02/2024,43.43,,EFS Systems (UK) Ltd
"Enterprise, Housing & Community Animation",General Fund Housing,Communities & Place,Lodgings Scheme,Premises,"Repairs, Alterations & Maintenance of Buildings",Building Improvements / Maintenance,,08/02/2024,15/02/2024,42.1,,Monmouthshire Housing Association Ltd
Capital Division,Capital Dept,Capital,Capital Programme,Premises,"Repairs, Alterations & Maintenance of Buildings",Building Improvements / Maintenance,,06/02/2024,14/02/2024,5184.75,,GKR Maintenance & Building Co Ltd
"Facilities, Fleet & Decarbonisation",Transport Department,Communities & Place,Transport,Transport,Direct Transport Costs,All Other Non-Contract Transport Work.,,31/01/2024,09/02/2024,330,,Porth Auto-Electrics
Schools Total,School Group 7 � Pupil Capacity 501-1800,MCC Schools,Chepstow School,Premises,"Repairs, Alterations & Maintenance of Buildings",Building Improvements / Maintenance,,31/01/2024,09/02/2024,1810.5,,REDACTED PERSONAL DATA
Schools Total,School Group 7 � Pupil Capacity 501-1800,MCC Schools,King Henry 3-19 School,Supplies & Services,"Equipment, Furniture and Materials",Equipment Purchases,,19/02/2024,01/03/2024,98.05,,Hope Education Ltd
Schools Total,School Group 7 � Pupil Capacity 501-1800,MCC Schools,King Henry 3-19 School,Supplies & Services,"Equipment, Furniture and Materials",Equipment Purchases,,19/02/2024,26/02/2024,18.32,,Amazon Payments UK Limited
Schools Total,School Group 7 � Pupil Capacity 501-1800,MCC Schools,Monmouth Comprehensive,Premises,"Repairs, Alterations & Maintenance of Buildings",Building Improvements / Maintenance,,07/02/2024,12/02/2024,180,,Drain Rod Ltd
Appropriations,Appropriations,Appropriations,Attributable Costs - Fixed Asset Disposal,Premises,"Repairs, Alterations & Maintenance of Buildings",Building Improvements / Maintenance,,31/01/2024,12/02/2024,750,,Asbri Planning Ltd
Schools Total,School Group 2 � Pupil Capacity 144-314,MCC Schools,Ysgol Gymraeg Y Fenni,Employees,Indirect Employee Expenses,"Course, Conference And Seminar Fees",,11/01/2024,07/02/2024,360,,Torfaen County Borough Council
"Commercial, Corporate & landlord Services",Property Services & Facilities Management,Resources,Programmed Maintenance,Premises,"Repairs, Alterations & Maintenance of Buildings",Premises Repairs And Maintenance,,25/01/2024,08/02/2024,4.14,,Fire Safety Direct
"Facilities, Fleet & Decarbonisation",Transport Department,Communities & Place,Transport,Supplies & Services,"Equipment, Furniture and Materials",Small Plant & Tools.,,01/02/2024,08/02/2024,134.97,,Mon & Border Motor Factors Ltd
"Facilities, Fleet & Decarbonisation",Transport Department,Communities & Place,Transport,Supplies & Services,"Equipment, Furniture and Materials",Small Plant & Tools.,,31/01/2024,08/02/2024,19.95,,Fast Fluid Power Ltd
Democratic Services,Democratic Services,People & Governance,Electoral Management,Employees,Indirect Employee Expenses,"Course, Conference And Seminar Fees",,08/02/2024,15/02/2024,139,,Association of Electoral Administrators
"Facilities, Fleet & Decarbonisation",Property Services -  Cleaning,Communities & Place,Building Cleaning,Supplies & Services,"Equipment, Furniture and Materials",Cleaning Materials.,,01/02/2024,12/02/2024,12.94,,Newhall Janitorial Ltd
Schools Total,School Group 1 � Pupil Capacity 1-143,MCC Schools,Llandogo Primary School,Supplies & Services,"Equipment, Furniture and Materials",Cleaning Materials.,,06/02/2024,12/02/2024,69.12,,Newhall Janitorial Ltd
Schools Total,School Group 1 � Pupil Capacity 1-143,MCC Schools,Llandogo Primary School,Supplies & Services,"Equipment, Furniture and Materials",Cleaning Materials.,,06/02/2024,12/02/2024,6.5,,Newhall Janitorial Ltd
Schools Total,School Group 1 � Pupil Capacity 1-143,MCC Schools,Llandogo Primary School,Supplies & Services,"Equipment, Furniture and Materials",Cleaning Materials.,,06/02/2024,12/02/2024,6.5,,Newhall Janitorial Ltd
Schools Total,School Group 1 � Pupil Capacity 1-143,MCC Schools,Llandogo Primary School,Supplies & Services,"Equipment, Furniture and Materials",Cleaning Materials.,,06/02/2024,12/02/2024,7.8,,Newhall Janitorial Ltd
Schools Total,School Group 1 � Pupil Capacity 1-143,MCC Schools,Llandogo Primary School,Supplies & Services,"Equipment, Furniture and Materials",Cleaning Materials.,,06/02/2024,12/02/2024,3.13,,Newhall Janitorial Ltd
Schools Total,School Group 1 � Pupil Capacity 1-143,MCC Schools,Llandogo Primary School,Supplies & Services,"Equipment, Furniture and Materials",Cleaning Materials.,,06/02/2024,12/02/2024,4.16,,Newhall Janitorial Ltd
Adult Services,Direct Care Residential,Social Care and Health,Severn View Residential,Supplies & Services,"Equipment, Furniture and Materials",Provisions.,,26/01/2024,14/02/2024,33.9,,Dole
"Commercial, Corporate & landlord Services",Property Services & Facilities Management,Resources,Programmed Maintenance,Premises,"Repairs, Alterations & Maintenance of Buildings",Premises Repairs And Maintenance,,12/02/2024,14/02/2024,80,,Ambassador Fire & Security LTD
"Commercial, Corporate & landlord Services",Property Services & Facilities Management,Resources,External Clients,Premises,"Repairs, Alterations & Maintenance of Buildings",Premises Repairs And Maintenance,,12/02/2024,14/02/2024,128,,Ambassador Fire & Security LTD
Schools Total,School Group 2 � Pupil Capacity 144-314,MCC Schools,St Mary�s RC Primary School (VA),Supplies & Services,"Equipment, Furniture and Materials",Materials & Consumables.,,21/02/2024,28/02/2024,25.84,,Amazon Payments UK Limited
"Commercial, Corporate & landlord Services",Property Services & Facilities Management,Resources,Programmed Maintenance,Premises,"Repairs, Alterations & Maintenance of Buildings",Premises Repairs And Maintenance,,22/01/2024,28/02/2024,3865.09,,Circuit Compliance t/a Circuit Electrical Testing Ltd
"Commercial, Corporate & landlord Services",Property Services & Facilities Management,Resources,Programmed Maintenance,Premises,"Repairs, Alterations & Maintenance of Buildings",Premises Repairs And Maintenance,,02/02/2024,28/02/2024,14.75,,Circuit Compliance t/a Circuit Electrical Testing Ltd
"Commercial, Corporate & landlord Services",Property Services & Facilities Management,Resources,Programmed Maintenance,Premises,"Repairs, Alterations & Maintenance of Buildings",Premises Repairs And Maintenance,,31/01/2024,28/02/2024,718.62,,Circuit Compliance t/a Circuit Electrical Testing Ltd
Schools Total,SCHGRP3 � School Group 3 � Pupil Capacity 315-500,MCC Schools,Overmonnow Primary School,Supplies & Services,"Equipment, Furniture and Materials",Materials & Consumables.,,23/02/2024,28/02/2024,231.18,,Hope Education Ltd
Schools Total,School Group 2 � Pupil Capacity 144-314,MCC Schools,Our Lady & St Michael's (OLSM) RC Primary School (VA),Premises,Ground Maintenance Costs,Grounds Maintenance - Direct.,,13/12/2023,28/02/2024,750,,Treescape Tree Services
Schools Total,School Group 2 � Pupil Capacity 144-314,MCC Schools,Our Lady & St Michael's (OLSM) RC Primary School (VA),Supplies & Services,"Equipment, Furniture and Materials",Materials & Consumables.,,29/01/2024,28/02/2024,75,,REDACTED PERSONAL DATA
"Leisure, Youth & Outdoor Adventure",Leisure Services,MonLife Directorate,Chepstow Leisure Centre,Supplies & Services,"Equipment, Furniture and Materials",Cleaning Materials.,,15/02/2024,21/02/2024,319.2,,Newhall Janitorial Ltd
"Commercial, Corporate & landlord Services",Property Services & Facilities Management,Resources,External Clients,Premises,"Repairs, Alterations & Maintenance of Buildings",Premises Repairs And Maintenance,,12/12/2023,21/02/2024,131.57,,Circuit Compliance t/a Circuit Electrical Testing Ltd
"Commercial, Corporate & landlord Services",Property Services & Facilities Management,Resources,Reactive Maintenance,Premises,"Repairs, Alterations & Maintenance of Buildings",Premises Repairs And Maintenance,,07/11/2023,21/02/2024,340,,Fire Safety Direct
"Commercial, Corporate & landlord Services",Property Services & Facilities Management,Resources,Programmed Maintenance,Premises,"Repairs, Alterations & Maintenance of Buildings",Premises Repairs And Maintenance,,07/11/2023,21/02/2024,340,,Fire Safety Direct
"Commercial, Corporate & landlord Services",Property Services & Facilities Management,Resources,Programmed Maintenance,Premises,"Repairs, Alterations & Maintenance of Buildings",Premises Repairs And Maintenance,,29/01/2024,21/02/2024,2.76,,Fire Safety Direct
"Commercial, Corporate & landlord Services",Property Services & Facilities Management,Resources,Programmed Maintenance,Premises,"Repairs, Alterations & Maintenance of Buildings",Premises Repairs And Maintenance,,12/12/2023,21/02/2024,10.62,,Circuit Compliance t/a Circuit Electrical Testing Ltd
Adult Services,Direct Care Residential,Social Care and Health,Severn View Residential,Employees,Indirect Employee Expenses,Staff Welfare,,31/12/2023,19/03/2024,-50,,Redacted Data
Schools Total,School Group 2 � Pupil Capacity 144-314,MCC Schools,Thornwell Primary School,Supplies & Services,"Equipment, Furniture and Materials",Materials & Consumables.,,21/01/2024,14/02/2024,9.37,,Amazon Payments UK Limited
Schools Total,School Group 2 � Pupil Capacity 144-314,MCC Schools,Shirenewton Primary School,Supplies & Services,"Equipment, Furniture and Materials",Materials & Consumables.,,07/02/2024,14/02/2024,55.22,,Hope Education Ltd
"Commercial, Corporate & landlord Services",Property Services & Facilities Management,Resources,Programmed Maintenance,Premises,"Repairs, Alterations & Maintenance of Buildings",Premises Repairs And Maintenance,,04/01/2024,14/02/2024,80,,Ambassador Fire & Security LTD
"Commercial, Corporate & landlord Services",Property Services & Facilities Management,Resources,Programmed Maintenance,Premises,"Repairs, Alterations & Maintenance of Buildings",Premises Repairs And Maintenance,,06/02/2024,14/02/2024,420,,Development Plus Limited
"Commercial, Corporate & landlord Services",Property Services & Facilities Management,Resources,Programmed Maintenance,Premises,"Repairs, Alterations & Maintenance of Buildings",Premises Repairs And Maintenance,,07/02/2024,14/02/2024,603.75,,Development Plus Limited
Adult Services,Direct Care Residential,Social Care and Health,Severn View Residential,Supplies & Services,"Equipment, Furniture and Materials",Provisions.,,06/02/2024,12/02/2024,630.9,,Castell Howell Foods Ltd
"Leisure, Youth & Outdoor Adventure",Leisure Services,MonLife Directorate,Monmouth Leisure Centre,Supplies & Services,"Equipment, Furniture and Materials",Chemicals.,,02/02/2024,12/02/2024,1163.69,,UNIVAR
Adult Services,Direct Care Residential,Social Care and Health,Severn View Residential,Supplies & Services,"Equipment, Furniture and Materials",Provisions.,,18/01/2024,05/02/2024,528.39,,Castell Howell Foods Ltd
Adult Services,Direct Care Residential,Social Care and Health,Severn View Residential,Supplies & Services,"Equipment, Furniture and Materials",Provisions.,,18/01/2024,05/02/2024,-21.17,,Castell Howell Foods Ltd
Adult Services,Direct Care Residential,Social Care and Health,Severn View Residential,Supplies & Services,"Equipment, Furniture and Materials",Provisions.,,18/01/2024,05/02/2024,21.17,,Castell Howell Foods Ltd
Adult Services,Direct Care Residential,Social Care and Health,Severn View Residential,Supplies & Services,"Equipment, Furniture and Materials",Provisions.,,23/01/2024,05/02/2024,584.75,,Castell Howell Foods Ltd
Adult Services,Direct Care Residential,Social Care and Health,Severn View Residential,Supplies & Services,"Equipment, Furniture and Materials",Provisions.,,23/01/2024,05/02/2024,-64,,Castell Howell Foods Ltd
Adult Services,Direct Care Residential,Social Care and Health,Severn View Residential,Supplies & Services,"Equipment, Furniture and Materials",Provisions.,,23/01/2024,05/02/2024,64,,Castell Howell Foods Ltd
Adult Services,Direct Care Residential,Social Care and Health,Severn View Residential,Supplies & Services,"Equipment, Furniture and Materials",Provisions.,,25/01/2024,05/02/2024,573.41,,Castell Howell Foods Ltd
Adult Services,Direct Care Residential,Social Care and Health,Severn View Residential,Supplies & Services,"Equipment, Furniture and Materials",Provisions.,,25/01/2024,05/02/2024,-100.92,,Castell Howell Foods Ltd
Neighbourhood Services,Highways,Communities & Place,Overhead - SWTRA / External,Employees,Indirect Employee Expenses,"Course, Conference And Seminar Fees",,15/09/2023,09/02/2024,1011,,Bridgend College
"Enterprise, Housing & Community Animation",General Fund Housing,Communities & Place,Homelessness,Premises,"Repairs, Alterations & Maintenance of Buildings",Security Of Premises.,,06/02/2024,09/02/2024,4000.92,,M J Events Support Ltd
Schools Total,School Group 7 � Pupil Capacity 501-1800,MCC Schools,Chepstow School,Premises,"Repairs, Alterations & Maintenance of Buildings",Security Maintenance.,,23/01/2024,05/02/2024,42.5,,Chamberlains Security
Adult Services,Direct Care Residential,Social Care and Health,Severn View Residential,Supplies & Services,"Equipment, Furniture and Materials",Provisions.,,25/01/2024,05/02/2024,100.92,,Castell Howell Foods Ltd
Adult Services,Direct Care Residential,Social Care and Health,Severn View Residential,Supplies & Services,"Equipment, Furniture and Materials",Provisions.,,06/02/2024,12/02/2024,-100.42,,Castell Howell Foods Ltd
Adult Services,Direct Care Residential,Social Care and Health,Severn View Residential,Supplies & Services,"Equipment, Furniture and Materials",Provisions.,,06/02/2024,12/02/2024,100.42,,Castell Howell Foods Ltd
"Commercial, Corporate & landlord Services",Property Services & Facilities Management,Resources,Programmed Maintenance,Premises,"Repairs, Alterations & Maintenance of Buildings",Premises Repairs And Maintenance,,13/12/2023,21/02/2024,296.77,,Circuit Compliance t/a Circuit Electrical Testing Ltd
"Leisure, Youth & Outdoor Adventure",Leisure Services,MonLife Directorate,Monmouth Leisure Centre,Supplies & Services,"Equipment, Furniture and Materials",Cleaning Materials.,,22/02/2024,28/02/2024,40.05,,Newhall Janitorial Ltd
"Facilities, Fleet & Decarbonisation",Property Services -  Cleaning,Communities & Place,Building Cleaning,Supplies & Services,"Equipment, Furniture and Materials",Cleaning Materials.,,14/02/2024,28/02/2024,1986.98,,Newhall Janitorial Ltd
Schools Total,School Group 2 � Pupil Capacity 144-314,MCC Schools,Ysgol Gymraeg Y Fenni,Supplies & Services,"Equipment, Furniture and Materials",Cleaning Materials.,,26/02/2024,28/02/2024,45.3,,H D Adcock (Nelson) Ltd
Schools Total,School Group 2 � Pupil Capacity 144-314,MCC Schools,Ysgol Gymraeg Y Fenni,Supplies & Services,"Equipment, Furniture and Materials",Cleaning Materials.,,26/02/2024,28/02/2024,32.64,,H D Adcock (Nelson) Ltd
Schools Total,School Group 2 � Pupil Capacity 144-314,MCC Schools,Ysgol Gymraeg Y Fenni,Supplies & Services,"Equipment, Furniture and Materials",Cleaning Materials.,,26/02/2024,28/02/2024,8.7,,H D Adcock (Nelson) Ltd
Schools Total,School Group 2 � Pupil Capacity 144-314,MCC Schools,Ysgol Gymraeg Y Fenni,Supplies & Services,"Equipment, Furniture and Materials",Cleaning Materials.,,26/02/2024,28/02/2024,53.28,,H D Adcock (Nelson) Ltd
Schools Total,School Group 2 � Pupil Capacity 144-314,MCC Schools,Ysgol Gymraeg Y Fenni,Supplies & Services,"Equipment, Furniture and Materials",Cleaning Materials.,,26/02/2024,28/02/2024,13.96,,H D Adcock (Nelson) Ltd
Schools Total,School Group 2 � Pupil Capacity 144-314,MCC Schools,Ysgol Gymraeg Y Fenni,Supplies & Services,"Equipment, Furniture and Materials",Cleaning Materials.,,26/02/2024,28/02/2024,16.25,,H D Adcock (Nelson) Ltd
Adult Services,Direct Care Residential,Social Care and Health,Severn View Residential,Supplies & Services,"Equipment, Furniture and Materials",Provisions.,,28/01/2024,05/02/2024,351,,Raglan Dairy Ltd
Schools Total,School Group 2 � Pupil Capacity 144-314,MCC Schools,Shirenewton Primary School,Supplies & Services,"Equipment, Furniture and Materials",Materials & Consumables.,,22/01/2024,14/02/2024,1175,,Community Playthings
Schools Total,School Group 2 � Pupil Capacity 144-314,MCC Schools,Llantilio Pertholey CiW Primary School (VC),Premises,Ground Maintenance Costs,Grounds Maintenance - Direct.,,24/01/2024,12/02/2024,312.5,,Morris's Grounds Maintenance Ltd
Adult Services,Direct Care Residential,Social Care and Health,Severn View Residential,Supplies & Services,"Equipment, Furniture and Materials",Provisions.,,08/02/2024,19/02/2024,470.06,,Castell Howell Foods Ltd
"Commercial, Corporate & landlord Services",Property Services & Facilities Management,Resources,Programmed Maintenance,Premises,"Repairs, Alterations & Maintenance of Buildings",Premises Repairs And Maintenance,,13/02/2024,14/02/2024,80,,Ambassador Fire & Security LTD
"Commercial, Corporate & landlord Services",Property Services & Facilities Management,Resources,Programmed Maintenance,Premises,"Repairs, Alterations & Maintenance of Buildings",Premises Repairs And Maintenance,,13/02/2024,14/02/2024,80,,Ambassador Fire & Security LTD
"Commercial, Corporate & landlord Services",Property Services & Facilities Management,Resources,Programmed Maintenance,Premises,"Repairs, Alterations & Maintenance of Buildings",Premises Repairs And Maintenance,,13/02/2024,14/02/2024,80,,Ambassador Fire & Security LTD
Schools Total,School Group 2 � Pupil Capacity 144-314,MCC Schools,Our Lady & St Michael's (OLSM) RC Primary School (VA),Supplies & Services,"Equipment, Furniture and Materials",Materials & Consumables.,,29/01/2024,05/02/2024,36.62,,Hope Education Ltd
Adult Services,Direct Care Residential,Social Care and Health,Severn View Residential,Supplies & Services,"Equipment, Furniture and Materials",Provisions.,,30/01/2024,05/02/2024,254.1,,Castell Howell Foods Ltd
"Leisure, Youth & Outdoor Adventure",Leisure Services,MonLife Directorate,Caldicot Leisure Centre,Supplies & Services,"Equipment, Furniture and Materials",General Goods For Resale.,,19/02/2024,22/02/2024,13.45,,Splash About International Ltd
"Leisure, Youth & Outdoor Adventure",Leisure Services,MonLife Directorate,Caldicot Leisure Centre,Supplies & Services,"Equipment, Furniture and Materials",General Goods For Resale.,,19/02/2024,22/02/2024,21,,Splash About International Ltd
"Leisure, Youth & Outdoor Adventure",Leisure Services,MonLife Directorate,Caldicot Leisure Centre,Supplies & Services,"Equipment, Furniture and Materials",General Goods For Resale.,,19/02/2024,22/02/2024,21,,Splash About International Ltd
"Leisure, Youth & Outdoor Adventure",Leisure Services,MonLife Directorate,Caldicot Leisure Centre,Supplies & Services,"Equipment, Furniture and Materials",General Goods For Resale.,,19/02/2024,22/02/2024,17.4,,Splash About International Ltd
"Leisure, Youth & Outdoor Adventure",Leisure Services,MonLife Directorate,Caldicot Leisure Centre,Supplies & Services,"Equipment, Furniture and Materials",General Goods For Resale.,,19/02/2024,22/02/2024,65.04,,Splash About International Ltd
"Leisure, Youth & Outdoor Adventure",Leisure Services,MonLife Directorate,Caldicot Leisure Centre,Supplies & Services,"Equipment, Furniture and Materials",General Goods For Resale.,,19/02/2024,22/02/2024,34.8,,Splash About International Ltd
"Leisure, Youth & Outdoor Adventure",Leisure Services,MonLife Directorate,Caldicot Leisure Centre,Supplies & Services,"Equipment, Furniture and Materials",General Goods For Resale.,,19/02/2024,22/02/2024,50.16,,Splash About International Ltd
"Leisure, Youth & Outdoor Adventure",Leisure Services,MonLife Directorate,Caldicot Leisure Centre,Supplies & Services,"Equipment, Furniture and Materials",General Goods For Resale.,,19/02/2024,22/02/2024,40.44,,Splash About International Ltd
"Leisure, Youth & Outdoor Adventure",Leisure Services,MonLife Directorate,Chepstow Leisure Centre,Supplies & Services,"Printing, Stationery and General Office Expenses",Stationery,,06/02/2024,08/02/2024,124.19,,Mr Paper Ltd
"Leisure, Youth & Outdoor Adventure",Leisure Services,MonLife Directorate,Abergavenny Leisure Centre,Supplies & Services,"Equipment, Furniture and Materials",Sanitac Units,,31/07/2023,15/02/2024,128.82,,Phs Group
Capital Division,Capital Dept,Capital,Capital Programme,Supplies & Services,Services,Professional And Specialist Fees,,22/01/2024,07/02/2024,4196.4,,Archaeological Perspectives Analysis Consultancy
Capital Division,Capital Dept,Capital,Capital Programme,Supplies & Services,Services,Professional And Specialist Fees,,30/11/2023,08/02/2024,2075.95,,REDACTED PERSONAL DATA
Capital Division,Capital Dept,Capital,Capital Programme,Supplies & Services,Services,Professional And Specialist Fees,,31/12/2023,08/02/2024,4986,,REDACTED PERSONAL DATA
Capital Division,Capital Dept,Capital,Capital Programme,Supplies & Services,Services,Professional And Specialist Fees,,31/01/2024,08/02/2024,1044,,REDACTED PERSONAL DATA
Capital Division,Capital Dept,Capital,Capital Programme,Supplies & Services,Services,Professional And Specialist Fees,,31/12/2023,15/02/2024,5500,,Pentan Partnership Ltd
"Leisure, Youth & Outdoor Adventure",Leisure Services,MonLife Directorate,Raglan CRC,Supplies & Services,"Equipment, Furniture and Materials",Sanitac Units,,02/02/2024,15/02/2024,2.94,,Phs Group
Schools Total,School Group 2 � Pupil Capacity 144-314,MCC Schools,Shirenewton Primary School,Supplies & Services,"Equipment, Furniture and Materials",Furniture Purchases / Replacement,,09/02/2024,15/02/2024,213.86,,Amazon Payments UK Limited
Finance & Business Devlopment,Borough Theatre,MonLife Directorate,Borough Theatre General,Supplies & Services,"Equipment, Furniture and Materials",Bar,,02/02/2024,14/02/2024,254.2,,Tanners Wines Ltd
"Policy, Scrutiny & Customer Service",Community Hubs,Chief Executive's Unit,Strategic Management,Supplies & Services,"Printing, Stationery and General Office Expenses",Book Purchases,,31/01/2024,14/02/2024,198.6,,Gwynedd Council
Children Services,Children Services Other,Social Care and Health,St David�s Day Fund (Grant),Supplies & Services,"Equipment, Furniture and Materials",Domestic Supplies.,,09/02/2024,14/02/2024,100,,REDACTED PERSONAL DATA
Children Services,Children Services Other,Social Care and Health,St David�s Day Fund (Grant),Supplies & Services,"Equipment, Furniture and Materials",Domestic Supplies.,,09/02/2024,14/02/2024,100,,REDACTED PERSONAL DATA
Children Services,Children Services Other,Social Care and Health,St David�s Day Fund (Grant),Supplies & Services,"Equipment, Furniture and Materials",Domestic Supplies.,,09/02/2024,14/02/2024,100,,REDACTED PERSONAL DATA
Children Services,Children Services Teams,Social Care and Health,MyST,Supplies & Services,"Equipment, Furniture and Materials",Furniture Purchases / Replacement,,19/02/2024,21/02/2024,684,,BOF Group Ltd T/A bof
"Policy, Scrutiny & Customer Service",Community Hubs,Chief Executive's Unit,Community Hub - Monmouth,Supplies & Services,"Printing, Stationery and General Office Expenses",Publications,,13/01/2024,14/02/2024,118.6,,News Team
Children Services,Children Services Other,Social Care and Health,St David�s Day Fund (Grant),Supplies & Services,"Equipment, Furniture and Materials",Domestic Supplies.,,09/02/2024,14/02/2024,100,,REDACTED PERSONAL DATA
Children Services,Children Services Other,Social Care and Health,St David�s Day Fund (Grant),Supplies & Services,"Equipment, Furniture and Materials",Domestic Supplies.,,09/02/2024,14/02/2024,100,,REDACTED PERSONAL DATA
Schools Total,School Group 7 � Pupil Capacity 501-1800,MCC Schools,Chepstow School,Supplies & Services,Expenses,Exam Fees (Schools),,25/01/2024,11/03/2024,51.2,,Pearson Education LTD
Schools Total,School Group 7 � Pupil Capacity 501-1800,MCC Schools,King Henry 3-19 School,Supplies & Services,Expenses,Exam Fees (Schools),,13/10/2023,12/02/2024,428.45,,AQA
Schools Total,School Group 7 � Pupil Capacity 501-1800,MCC Schools,King Henry 3-19 School,Supplies & Services,Expenses,Exam Fees (Schools),,25/01/2024,11/03/2024,87.66,,Pearson Education LTD
Schools Total,School Group 2 � Pupil Capacity 144-314,MCC Schools,Archbishop Rowan Williams CiW Primary School (VA),Employees,Direct Employee Expenses,Travel Claims Allowance,,30/01/2024,28/02/2024,22,,Unveiling Islam Cardiff
Schools Total,SCHGRP3 � School Group 3 � Pupil Capacity 315-500,MCC Schools,Overmonnow Primary School,Supplies & Services,"Equipment, Furniture and Materials",Sanitac Units,,15/01/2024,28/02/2024,129.2,,Initial Washrooms & Hygiene
Schools Total,School Group 7 � Pupil Capacity 501-1800,MCC Schools,Caldicot School,Supplies & Services,Expenses,Exam Fees (Schools),,07/02/2024,12/02/2024,519,,SWEET EDUCATION
Schools Total,School Group 7 � Pupil Capacity 501-1800,MCC Schools,Caldicot School,Supplies & Services,Expenses,Exam Fees (Schools),,07/02/2024,12/02/2024,25,,SWEET EDUCATION
Neighbourhood Services,Highways,Communities & Place,Overhead - Mon Highways,Supplies & Services,"Equipment, Furniture and Materials",Small Plant & Tools.,,08/02/2024,12/02/2024,79.98,,Aztec Chemicals Ltd
Corporate (COL),Corporate (COL),Corporate Costs & Levies,Corporate Suspense,Supplies & Services,Services,Professional And Specialist Fees,,08/02/2024,12/02/2024,15000,,Ove Arup & Partners Limited
Neighbourhood Services,Highways,Communities & Place,Overhead - Mon Highways,Supplies & Services,"Equipment, Furniture and Materials",Small Plant & Tools.,,08/02/2024,12/02/2024,36.72,,Aztec Chemicals Ltd
Neighbourhood Services,Highways,Communities & Place,Overhead - Mon Highways,Supplies & Services,"Equipment, Furniture and Materials",Small Plant & Tools.,,08/02/2024,12/02/2024,120,,Aztec Chemicals Ltd
"Enterprise, Housing & Community Animation",Business Growth & Enterprise,Communities & Place,Business Monmouthshire,Supplies & Services,"Printing, Stationery and General Office Expenses",Publications,,28/02/2024,01/03/2024,612,,Torfaen CBC
Capital Division,Capital Dept,Capital,Capital Programme,Supplies & Services,Services,Professional And Specialist Fees,,26/02/2024,05/03/2024,20,,Habitat Aid Ltd
Schools Total,School Group 7 � Pupil Capacity 501-1800,MCC Schools,Chepstow School,Supplies & Services,Expenses,Exam Fees (Schools),,25/01/2024,11/03/2024,81.88,,Pearson Education LTD
Standards,Inclusions,Children & Young People,Community Focused Schools Childcare Grant,Supplies & Services,Expenses,Non Employee Training Courses,,22/01/2024,26/02/2024,2800,,The Froebel Trust
Schools Total,School Group 2 � Pupil Capacity 144-314,MCC Schools,Shirenewton Primary School,Supplies & Services,"Equipment, Furniture and Materials",Furniture Purchases / Replacement,,07/02/2024,26/02/2024,259,,Viking Direct Ltd
Capital Division,Capital Dept,Capital,Capital Programme,Supplies & Services,Services,Professional And Specialist Fees,,27/02/2024,29/02/2024,554,,Owen Davies Consulting Ltd
Schools Total,School Group 2 � Pupil Capacity 144-314,MCC Schools,St Mary�s RC Primary School (VA),Supplies & Services,"Printing, Stationery and General Office Expenses",Printing,,31/01/2024,08/02/2024,440,,Solutions In Technology Ltd
Standards,Early Years,Children & Young People,Flying Start Grant,Supplies & Services,"Printing, Stationery and General Office Expenses",Printing,,31/01/2024,08/02/2024,306,,Zenith Print and Packaging Ltd
"Leisure, Youth & Outdoor Adventure",Leisure Services,MonLife Directorate,Caldicot Leisure Centre,Supplies & Services,"Printing, Stationery and General Office Expenses",Stationery,,06/02/2024,08/02/2024,45.39,,Mr Paper Ltd
Schools Total,School Group 7 � Pupil Capacity 501-1800,MCC Schools,Monmouth Comprehensive,Supplies & Services,Expenses,Exam Fees (Schools),,30/01/2024,08/02/2024,1454.69,,WJEC CBAC Limited
Standards,Inclusions,Children & Young People,Community Focused Schools Childcare Grant,Supplies & Services,Expenses,Non Employee Training Courses,,07/02/2024,08/02/2024,50,,Llandogo Early Years
Control Division,Control Dept,Control,Payroll Monthly 2 (Schools),Current Liabilities,Short Term Creditors,Resource Link Payments,,31/01/2024,06/02/2024,1350.4,,Unison
Control Division,Control Dept,Control,Payroll Monthly General,Current Liabilities,Short Term Creditors,Resource Link Payments,,31/01/2024,06/02/2024,4318.16,,Unison
Control Division,Control Dept,Control,Payroll MCCL3,Current Liabilities,Short Term Creditors,Resource Link Payments,,31/01/2024,06/02/2024,273.69,,Unison
"Leisure, Youth & Outdoor Adventure",Leisure Services,MonLife Directorate,Monmouth Leisure Centre,Supplies & Services,"Equipment, Furniture and Materials",Sanitac Units,,02/02/2024,15/02/2024,279.83,,Phs Group
Capital Division,Capital Dept,Capital,Capital Programme,Supplies & Services,Services,Professional And Specialist Fees,,14/02/2024,15/02/2024,890,,Pure Ecology
Capital Division,Capital Dept,Capital,Capital Programme,Supplies & Services,Services,Professional And Specialist Fees,,14/02/2024,15/02/2024,1530,,Pure Ecology
Capital Division,Capital Dept,Capital,Capital Programme,Supplies & Services,Services,Professional And Specialist Fees,,14/02/2024,15/02/2024,1805,,Pure Ecology
Capital Division,Capital Dept,Capital,Capital Programme,Supplies & Services,Services,Professional And Specialist Fees,,14/02/2024,15/02/2024,4005,,Pure Ecology
Adult Services,Direct Care Residential,Social Care and Health,Severn View Residential,Supplies & Services,"Printing, Stationery and General Office Expenses",Stationery,,13/02/2024,19/02/2024,30.58,,REDACTED DATA
"Leisure, Youth & Outdoor Adventure",Leisure Services,MonLife Directorate,Abergavenny Leisure Centre,Supplies & Services,"Printing, Stationery and General Office Expenses",Stationery,,01/02/2024,05/02/2024,40.75,,Mr Paper Ltd
Schools Total,School Group 7 � Pupil Capacity 501-1800,MCC Schools,Chepstow School,Supplies & Services,Expenses,Exam Fees (Schools),,30/01/2024,05/02/2024,1625.48,,WJEC CBAC Limited
Schools Total,School Group 7 � Pupil Capacity 501-1800,MCC Schools,Chepstow School,Supplies & Services,Expenses,Exam Fees (Schools),,16/01/2024,08/02/2024,51.2,,Pearson Education LTD
Schools Total,School Group 7 � Pupil Capacity 501-1800,MCC Schools,Caldicot School,Supplies & Services,Expenses,Exam Fees (Schools),,02/02/2024,06/02/2024,297,,SWEET EDUCATION
Schools Total,School Group 2 � Pupil Capacity 144-314,MCC Schools,Thornwell Primary School,Supplies & Services,"Equipment, Furniture and Materials",Furniture Purchases / Replacement,,31/01/2024,05/02/2024,83.32,,Amazon Payments UK Limited
Schools Total,School Group 2 � Pupil Capacity 144-314,MCC Schools,Thornwell Primary School,Supplies & Services,"Printing, Stationery and General Office Expenses",Book Purchases,,13/01/2024,05/02/2024,23.23,,Amazon Payments UK Limited
Schools Total,School Group 2 � Pupil Capacity 144-314,MCC Schools,Thornwell Primary School,Supplies & Services,"Printing, Stationery and General Office Expenses",Book Purchases,,13/01/2024,05/02/2024,31.99,,Amazon Payments UK Limited
Schools Total,School Group 2 � Pupil Capacity 144-314,MCC Schools,Thornwell Primary School,Supplies & Services,"Printing, Stationery and General Office Expenses",Book Purchases,,13/01/2024,05/02/2024,22.18,,Amazon Payments UK Limited
"Leisure, Youth & Outdoor Adventure",Leisure Services,MonLife Directorate,Chepstow Leisure Centre,Supplies & Services,"Equipment, Furniture and Materials",General Goods For Resale.,,19/02/2024,26/02/2024,34.2,,Splash About International Ltd
"Leisure, Youth & Outdoor Adventure",Leisure Services,MonLife Directorate,Chepstow Leisure Centre,Supplies & Services,"Equipment, Furniture and Materials",General Goods For Resale.,,19/02/2024,26/02/2024,-34.2,,Splash About International Ltd
Adult Services,Direct Care Residential,Social Care and Health,Severn View Residential,Employees,Direct Employee Expenses,Agency Staff,,17/01/2024,07/02/2024,163.52,,Support Ethics Ltd
Adult Services,Direct Care Residential,Social Care and Health,Severn View Residential,Employees,Direct Employee Expenses,Agency Staff,,17/01/2024,07/02/2024,441.9,,Support Ethics Ltd
Adult Services,Direct Care Residential,Social Care and Health,Severn View Residential,Employees,Direct Employee Expenses,Agency Staff,,17/01/2024,07/02/2024,303.08,,Support Ethics Ltd
"Commercial, Corporate & landlord Services",Property Services & Facilities Management,Resources,External Clients,Premises,"Repairs, Alterations & Maintenance of Buildings",Building Improvements / Maintenance,,19/02/2024,22/02/2024,185,,Hightech Water Services
Neighbourhood Services,Highways,Communities & Place,Stores,Current Assets,Inventories,Stock Received Suspense,,20/12/2023,22/02/2024,1062.3,,Evolve Corporate Ltd T/A PK Safety
Neighbourhood Services,Highways,Communities & Place,Stores,Current Assets,Inventories,Stock Received Suspense,,11/01/2024,22/02/2024,33.9,,Evolve Corporate Ltd T/A PK Safety
Neighbourhood Services,Highways,Communities & Place,Stores,Current Assets,Inventories,Stock Received Suspense,,11/01/2024,22/02/2024,4170.8,,Evolve Corporate Ltd T/A PK Safety
Neighbourhood Services,Highways,Communities & Place,Stores,Current Assets,Inventories,Stock Received Suspense,,09/01/2024,22/02/2024,347.5,,Evolve Corporate Ltd T/A PK Safety
Neighbourhood Services,Highways,Communities & Place,Stores,Current Assets,Inventories,Stock Received Suspense,,09/01/2024,22/02/2024,119.7,,Evolve Corporate Ltd T/A PK Safety
Children Services,Children Services Teams,Social Care and Health,Long Term Support Team,Employees,Direct Employee Expenses,Agency Staff,,06/02/2024,08/02/2024,924.96,,NonStop Recruitment Ltd.
"Commercial, Corporate & landlord Services",Property Services & Facilities Management,Resources,Central Accommodation,Premises,"Repairs, Alterations & Maintenance of Buildings",Building Improvements / Maintenance,,02/02/2024,15/02/2024,8.82,,Phs Group
"Commercial, Corporate & landlord Services",Property Services & Facilities Management,Resources,Magor Accommodation,Premises,"Repairs, Alterations & Maintenance of Buildings",Building Improvements / Maintenance,,02/02/2024,15/02/2024,427.45,,Phs Group
Adult Services,Direct Care Residential,Social Care and Health,Severn View Residential,Employees,Direct Employee Expenses,Agency Staff,,17/01/2024,07/02/2024,159.9,,Support Ethics Ltd
Adult Services,Direct Care Residential,Social Care and Health,Severn View Residential,Employees,Direct Employee Expenses,Agency Staff,,24/01/2024,07/02/2024,122.2,,Support Ethics Ltd
Adult Services,Direct Care Residential,Social Care and Health,Severn View Residential,Employees,Direct Employee Expenses,Agency Staff,,24/01/2024,07/02/2024,529.94,,Support Ethics Ltd
Adult Services,Direct Care Residential,Social Care and Health,Severn View Residential,Employees,Direct Employee Expenses,Agency Staff,,24/01/2024,07/02/2024,181.22,,Support Ethics Ltd
Adult Services,Direct Care Residential,Social Care and Health,Severn View Residential,Employees,Direct Employee Expenses,Agency Staff,,24/01/2024,07/02/2024,141,,Support Ethics Ltd
Adult Services,Direct Care Residential,Social Care and Health,Severn View Residential,Employees,Direct Employee Expenses,Agency Staff,,31/01/2024,07/02/2024,471.46,,Support Ethics Ltd
"Commercial, Corporate & landlord Services",Property Services & Facilities Management,Resources,Reactive Maintenance,Premises,"Repairs, Alterations & Maintenance of Buildings",Building Improvements / Maintenance,,18/01/2024,07/02/2024,134.75,,EFS Systems (UK) Ltd
Adult Services,Community Care Team,Social Care and Health,Monmouth Adult Team,Employees,Direct Employee Expenses,Agency Staff,,03/01/2024,15/02/2024,5.5,,Piers Meadows Recruitment Limited
Adult Services,Community Care Team,Social Care and Health,Monmouth Adult Team,Employees,Direct Employee Expenses,Agency Staff,,03/01/2024,15/02/2024,-5.5,,Piers Meadows Recruitment Limited
Adult Services,Community Care Team,Social Care and Health,Monmouth Adult Team,Employees,Direct Employee Expenses,Agency Staff,,10/01/2024,15/02/2024,1099.43,,Piers Meadows Recruitment Limited
Adult Services,Community Care Team,Social Care and Health,Monmouth Adult Team,Employees,Direct Employee Expenses,Agency Staff,,10/01/2024,15/02/2024,22,,Piers Meadows Recruitment Limited
Adult Services,Community Care Team,Social Care and Health,Monmouth Adult Team,Employees,Direct Employee Expenses,Agency Staff,,10/01/2024,15/02/2024,-22,,Piers Meadows Recruitment Limited
Adult Services,Community Care Team,Social Care and Health,Monmouth Adult Team,Employees,Direct Employee Expenses,Agency Staff,,17/01/2024,15/02/2024,1009.32,,Piers Meadows Recruitment Limited
Adult Services,Community Care Team,Social Care and Health,Monmouth Adult Team,Employees,Direct Employee Expenses,Agency Staff,,17/01/2024,15/02/2024,14,,Piers Meadows Recruitment Limited
Adult Services,Community Care Team,Social Care and Health,Monmouth Adult Team,Employees,Direct Employee Expenses,Agency Staff,,17/01/2024,15/02/2024,-14,,Piers Meadows Recruitment Limited
Children Services,Children Services Teams,Social Care and Health,Family Support and Protection Team � North,Employees,Direct Employee Expenses,Agency Staff,,12/02/2024,15/02/2024,1298.44,,Leaders In Care
Adult Services,Community Care Team,Social Care and Health,Monmouth Adult Team,Employees,Direct Employee Expenses,Agency Staff,,24/01/2024,15/02/2024,1080.46,,Piers Meadows Recruitment Limited
Adult Services,Direct Care Residential,Social Care and Health,Severn View Residential,Employees,Direct Employee Expenses,Agency Staff,,24/01/2024,12/02/2024,136.3,,Support Ethics Ltd
"Commercial, Corporate & landlord Services",Property Services & Facilities Management,Resources,External Clients,Premises,"Repairs, Alterations & Maintenance of Buildings",Building Improvements / Maintenance,,30/01/2024,14/02/2024,5727.05,,Industrial Door Services
"Commercial, Corporate & landlord Services",Property Services & Facilities Management,Resources,Reactive Maintenance,Premises,"Repairs, Alterations & Maintenance of Buildings",Building Improvements / Maintenance,,23/01/2024,28/02/2024,142,,Ambassador Fire & Security LTD
Schools Total,School Group 7 � Pupil Capacity 501-1800,MCC Schools,King Henry 3-19 School,Employees,Indirect Employee Expenses,Replacement,,07/02/2024,26/02/2024,590,,Back Office Support Services Ltd (Education Supply Pool)
"Commercial, Corporate & landlord Services",Property Services & Facilities Management,Resources,Reactive Maintenance,Premises,"Repairs, Alterations & Maintenance of Buildings",Building Improvements / Maintenance,,22/02/2024,28/02/2024,293,,Ambassador Fire & Security LTD
"Commercial, Corporate & landlord Services",Property Services & Facilities Management,Resources,External Clients,Premises,"Repairs, Alterations & Maintenance of Buildings",Building Improvements / Maintenance,,11/01/2024,28/02/2024,124.5,,REDACTED PERSONAL DATA
"Commercial, Corporate & landlord Services",Property Services & Facilities Management,Resources,External Clients,Premises,"Repairs, Alterations & Maintenance of Buildings",Building Improvements / Maintenance,,22/02/2024,28/02/2024,381,,Ambassador Fire & Security LTD
Children Services,Children Services Teams,Social Care and Health,Long Term Support Team,Employees,Direct Employee Expenses,Agency Staff,,09/02/2024,14/02/2024,967.5,,Hoop
Children Services,Children Services Teams,Social Care and Health,Family Support and Protection Team � North,Employees,Direct Employee Expenses,Agency Staff,,07/02/2024,12/02/2024,65.36,,Leaders In Care
#N/A,#N/A,#N/A,#N/A,Current Assets,Short Term Debtors,Output Vat,,24/11/2023,09/02/2024,-0.97,,Aramark Plc
"Commercial, Corporate & landlord Services",Property Services & Facilities Management,Resources,External Clients,Premises,"Repairs, Alterations & Maintenance of Buildings",Building Improvements / Maintenance,,26/01/2024,21/02/2024,183.75,,Hightech Water Services
Schools Total,School Group 7 � Pupil Capacity 501-1800,MCC Schools,King Henry 3-19 School,Employees,Indirect Employee Expenses,Replacement,,14/02/2024,26/02/2024,590,,Back Office Support Services Ltd (Education Supply Pool)
Schools Total,School Group 7 � Pupil Capacity 501-1800,MCC Schools,King Henry 3-19 School,Employees,Indirect Employee Expenses,Replacement,,13/02/2024,26/02/2024,217,,Vetro Recruitment Limited
Schools Total,School Group 7 � Pupil Capacity 501-1800,MCC Schools,King Henry 3-19 School,Employees,Indirect Employee Expenses,Replacement,,07/02/2024,26/02/2024,600,,Axcis Education Recruitment
Schools Total,School Group 7 � Pupil Capacity 501-1800,MCC Schools,King Henry 3-19 School,Employees,Indirect Employee Expenses,Replacement,,07/02/2024,26/02/2024,118,,Axcis Education Recruitment
Schools Total,School Group 7 � Pupil Capacity 501-1800,MCC Schools,King Henry 3-19 School,Employees,Indirect Employee Expenses,Replacement,,14/02/2024,26/02/2024,145.64,,Axcis Education Recruitment
Schools Total,School Group 7 � Pupil Capacity 501-1800,MCC Schools,King Henry 3-19 School,Employees,Indirect Employee Expenses,Replacement,,07/02/2024,26/02/2024,1094.7,,Teaching Personnel
Children Services,Children Services Teams,Social Care and Health,Family Support and Protection Team � North,Employees,Direct Employee Expenses,Agency Staff,,21/02/2024,28/02/2024,1412.06,,Liquid Personnel
Children Services,Children Services Teams,Social Care and Health,Family Support and Protection Team - South,Employees,Direct Employee Expenses,Agency Staff,,23/02/2024,28/02/2024,1706.81,,Hoop
Adult Services,Direct Care Residential,Social Care and Health,Severn View Residential,Employees,Direct Employee Expenses,Agency Staff,,07/02/2024,12/02/2024,164.5,,Support Ethics Ltd
Adult Services,Direct Care Residential,Social Care and Health,Severn View Residential,Employees,Direct Employee Expenses,Agency Staff,,17/01/2024,12/02/2024,159.9,,Support Ethics Ltd
Adult Services,Direct Care Residential,Social Care and Health,Severn View Residential,Employees,Direct Employee Expenses,Agency Staff,,07/02/2024,12/02/2024,141,,Support Ethics Ltd
Children Services,Children Services Teams,Social Care and Health,Family Support and Protection Team � North,Employees,Direct Employee Expenses,Agency Staff,,07/02/2024,12/02/2024,1815.55,,Liquid Personnel
Children Services,Children Services Teams,Social Care and Health,Family Support and Protection Team � North,Employees,Direct Employee Expenses,Agency Staff,,08/02/2024,12/02/2024,1694.23,,Leaders In Care
"Commercial, Corporate & landlord Services",Property Services & Facilities Management,Resources,Central Accommodation,Premises,"Repairs, Alterations & Maintenance of Buildings",Building Improvements / Maintenance,,02/02/2024,14/02/2024,92.17,,Phs Group
Schools Total,School Group 7 � Pupil Capacity 501-1800,MCC Schools,King Henry 3-19 School,Employees,Indirect Employee Expenses,Replacement,,04/02/2024,26/02/2024,214.43,,New Directions Education Ltd
Schools Total,School Group 7 � Pupil Capacity 501-1800,MCC Schools,King Henry 3-19 School,Employees,Indirect Employee Expenses,Replacement,,07/02/2024,26/02/2024,149.42,,Teaching Personnel
Schools Total,School Group 7 � Pupil Capacity 501-1800,MCC Schools,King Henry 3-19 School,Employees,Indirect Employee Expenses,Replacement,,07/02/2024,26/02/2024,134.88,,Teaching Personnel
Schools Total,School Group 7 � Pupil Capacity 501-1800,MCC Schools,King Henry 3-19 School,Employees,Indirect Employee Expenses,Replacement,,07/02/2024,26/02/2024,129.01,,Teaching Personnel
Schools Total,School Group 7 � Pupil Capacity 501-1800,MCC Schools,King Henry 3-19 School,Employees,Indirect Employee Expenses,Replacement,,07/02/2024,26/02/2024,387.03,,Teaching Personnel
Schools Total,School Group 7 � Pupil Capacity 501-1800,MCC Schools,King Henry 3-19 School,Employees,Indirect Employee Expenses,Replacement,,07/02/2024,26/02/2024,792.5,,Teaching Personnel
Schools Total,School Group 7 � Pupil Capacity 501-1800,MCC Schools,King Henry 3-19 School,Employees,Indirect Employee Expenses,Replacement,,07/02/2024,26/02/2024,645.05,,Teaching Personnel
Schools Total,School Group 7 � Pupil Capacity 501-1800,MCC Schools,King Henry 3-19 School,Employees,Indirect Employee Expenses,Replacement,,07/02/2024,26/02/2024,645.05,,Teaching Personnel
Schools Total,School Group 7 � Pupil Capacity 501-1800,MCC Schools,King Henry 3-19 School,Employees,Indirect Employee Expenses,Replacement,,07/02/2024,26/02/2024,209.76,,Teaching Personnel
Schools Total,School Group 7 � Pupil Capacity 501-1800,MCC Schools,King Henry 3-19 School,Employees,Indirect Employee Expenses,Replacement,,31/01/2024,26/02/2024,208,,Back Office Support Services Ltd (Education Supply Pool)
Schools Total,School Group 7 � Pupil Capacity 501-1800,MCC Schools,King Henry 3-19 School,Employees,Indirect Employee Expenses,Replacement,,31/01/2024,26/02/2024,123.2,,Teaching Personnel
Schools Total,School Group 7 � Pupil Capacity 501-1800,MCC Schools,King Henry 3-19 School,Employees,Indirect Employee Expenses,Replacement,,31/01/2024,26/02/2024,492.96,,Teaching Personnel
Schools Total,School Group 7 � Pupil Capacity 501-1800,MCC Schools,King Henry 3-19 School,Employees,Indirect Employee Expenses,Replacement,,05/02/2024,26/02/2024,169.24,,ANZUK Education Ltd
Schools Total,School Group 7 � Pupil Capacity 501-1800,MCC Schools,King Henry 3-19 School,Employees,Indirect Employee Expenses,Replacement,,01/02/2024,26/02/2024,140.01,,Prospero Teaching
Schools Total,School Group 7 � Pupil Capacity 501-1800,MCC Schools,King Henry 3-19 School,Employees,Indirect Employee Expenses,Replacement,,01/02/2024,26/02/2024,145,,Prospero Teaching
Schools Total,School Group 7 � Pupil Capacity 501-1800,MCC Schools,King Henry 3-19 School,Employees,Indirect Employee Expenses,Replacement,,01/02/2024,26/02/2024,653.45,,Prospero Teaching
"Commercial, Corporate & landlord Services",Property Services & Facilities Management,Resources,Reactive Maintenance,Premises,"Repairs, Alterations & Maintenance of Buildings",Building Improvements / Maintenance,,13/02/2024,14/02/2024,138,,Ambassador Fire & Security LTD
"Commercial, Corporate & landlord Services",Property Services & Facilities Management,Resources,Reactive Maintenance,Premises,"Repairs, Alterations & Maintenance of Buildings",Building Improvements / Maintenance,,13/02/2024,14/02/2024,86,,Ambassador Fire & Security LTD
"Commercial, Corporate & landlord Services",Property Services & Facilities Management,Resources,Reactive Maintenance,Premises,"Repairs, Alterations & Maintenance of Buildings",Building Improvements / Maintenance,,30/11/2023,01/03/2024,54.59,,EFS Systems (UK) Ltd
"Commercial, Corporate & landlord Services",Property Services & Facilities Management,Resources,Reactive Maintenance,Premises,"Repairs, Alterations & Maintenance of Buildings",Building Improvements / Maintenance,,22/02/2024,01/03/2024,35.97,,A.J Quinn Building Contractors Ltd
"Commercial, Corporate & landlord Services",Property Services & Facilities Management,Resources,Reactive Maintenance,Premises,"Repairs, Alterations & Maintenance of Buildings",Building Improvements / Maintenance,,14/02/2024,01/03/2024,61.5,,EFS Systems (UK) Ltd
"Commercial, Corporate & landlord Services",Property Services & Facilities Management,Resources,Reactive Maintenance,Premises,"Repairs, Alterations & Maintenance of Buildings",Building Improvements / Maintenance,,13/02/2024,01/03/2024,96.77,,A.J Quinn Building Contractors Ltd
Adult Services,INTEGRATED CARE FUND,Social Care and Health,Intermediate Care Fund,Employees,Direct Employee Expenses,Agency Staff,,31/01/2024,15/02/2024,814.73,,Piers Meadows Recruitment Limited
Adult Services,INTEGRATED CARE FUND,Social Care and Health,Intermediate Care Fund,Employees,Direct Employee Expenses,Agency Staff,,31/01/2024,15/02/2024,13.5,,Piers Meadows Recruitment Limited
Adult Services,INTEGRATED CARE FUND,Social Care and Health,Intermediate Care Fund,Employees,Direct Employee Expenses,Agency Staff,,31/01/2024,15/02/2024,-13.5,,Piers Meadows Recruitment Limited
Children Services,Children Services Teams,Social Care and Health,Family Support and Protection Team � North,Employees,Direct Employee Expenses,Agency Staff,,29/01/2024,05/02/2024,1811.96,,Leaders In Care
Schools Total,School Group 7 � Pupil Capacity 501-1800,MCC Schools,King Henry 3-19 School,Employees,Indirect Employee Expenses,Replacement,,31/01/2024,26/02/2024,480,,Axcis Education Recruitment
Schools Total,School Group 7 � Pupil Capacity 501-1800,MCC Schools,King Henry 3-19 School,Employees,Indirect Employee Expenses,Replacement,,31/01/2024,26/02/2024,118,,Axcis Education Recruitment
Schools Total,School Group 7 � Pupil Capacity 501-1800,MCC Schools,King Henry 3-19 School,Employees,Indirect Employee Expenses,Replacement,,31/01/2024,26/02/2024,108.96,,Axcis Education Recruitment
Schools Total,School Group 7 � Pupil Capacity 501-1800,MCC Schools,King Henry 3-19 School,Employees,Indirect Employee Expenses,Replacement,,31/01/2024,26/02/2024,128,,Axcis Education Recruitment
Adult Services,Direct Care Residential,Social Care and Health,Severn View Residential,Employees,Direct Employee Expenses,Agency Staff,,07/02/2024,19/02/2024,181.22,,Support Ethics Ltd
Adult Services,Direct Care Residential,Social Care and Health,Severn View Residential,Employees,Direct Employee Expenses,Agency Staff,,07/02/2024,19/02/2024,136.3,,Support Ethics Ltd
Adult Services,Direct Care Residential,Social Care and Health,Severn View Residential,Employees,Direct Employee Expenses,Agency Staff,,07/02/2024,19/02/2024,159.9,,Support Ethics Ltd
Adult Services,Direct Care Residential,Social Care and Health,Severn View Residential,Employees,Direct Employee Expenses,Agency Staff,,07/02/2024,19/02/2024,126.94,,Support Ethics Ltd
Adult Services,Direct Care Residential,Social Care and Health,Severn View Residential,Employees,Direct Employee Expenses,Agency Staff,,07/02/2024,19/02/2024,164.48,,Support Ethics Ltd
Adult Services,Direct Care Residential,Social Care and Health,Severn View Residential,Employees,Direct Employee Expenses,Agency Staff,,07/02/2024,19/02/2024,164.48,,Support Ethics Ltd
Finance,Revenues Department,Resources,Debtors,Current Liabilities,Short Term Creditors,SD Refunds,,07/02/2024,13/02/2024,364.16,,Monmouthshire C.C.
Children Services,Children Services Teams,Social Care and Health,Family Support and Protection Team � North,Employees,Direct Employee Expenses,Agency Staff,,09/02/2024,13/02/2024,860,,Leaders In Care
Adult Services,Direct Care Residential,Social Care and Health,Severn View Residential,Employees,Direct Employee Expenses,Agency Staff,,17/01/2024,15/02/2024,253.8,,Support Ethics Ltd
Adult Services,Direct Care Residential,Social Care and Health,Severn View Residential,Employees,Direct Employee Expenses,Agency Staff,,07/02/2024,15/02/2024,263.2,,Support Ethics Ltd
Adult Services,Direct Care Residential,Social Care and Health,Severn View Residential,Employees,Direct Employee Expenses,Agency Staff,,07/02/2024,15/02/2024,149.24,,Support Ethics Ltd
Children Services,Children Services Teams,Social Care and Health,Family Support and Protection Team � North,Employees,Direct Employee Expenses,Agency Staff,,31/01/2024,05/02/2024,1763.3,,Liquid Personnel
Adult Services,Community Care Team,Social Care and Health,Mental Health Care Team,Employees,Direct Employee Expenses,Agency Staff,,31/01/2024,05/02/2024,1259.4,,Liquid Personnel
"Commercial, Corporate & landlord Services",Property Services & Facilities Management,Resources,External Clients,Premises,"Repairs, Alterations & Maintenance of Buildings",Building Improvements / Maintenance,,01/02/2024,06/02/2024,156.27,,REDACTED PERSONAL DATA
"Commercial, Corporate & landlord Services",Property Services & Facilities Management,Resources,External Clients,Premises,"Repairs, Alterations & Maintenance of Buildings",Building Improvements / Maintenance,,31/01/2024,06/02/2024,1767.6,,REDACTED PERSONAL DATA
"Commercial, Corporate & landlord Services",Property Services & Facilities Management,Resources,Magor Accommodation,Premises,"Repairs, Alterations & Maintenance of Buildings",Building Improvements / Maintenance,,13/02/2024,15/02/2024,203.99,,Seton
"Commercial, Corporate & landlord Services",Property Services & Facilities Management,Resources,External Clients,Premises,"Repairs, Alterations & Maintenance of Buildings",Building Improvements / Maintenance,,15/02/2024,29/02/2024,103.45,,EFS Systems (UK) Ltd
Children Services,Children Services Other,Social Care and Health,External Placements - CLA,Third Party Payments,Third Party,Fostering/Adoption Allowances,,01/02/2024,09/02/2024,-2139.96,,Foster Care Associates Limited (FCA)
Schools Total,School Group 2 � Pupil Capacity 144-314,MCC Schools,Thornwell Primary School,Supplies & Services,"Equipment, Furniture and Materials",Provisions.,,01/02/2024,06/02/2024,-3.71,,Castell Howell Foods Ltd
Schools Total,School Group 2 � Pupil Capacity 144-314,MCC Schools,Thornwell Primary School,Supplies & Services,"Equipment, Furniture and Materials",Provisions.,,01/02/2024,06/02/2024,-0.74,,Castell Howell Foods Ltd
Schools Total,School Group 7 � Pupil Capacity 501-1800,MCC Schools,Chepstow School,Supplies & Services,"Equipment, Furniture and Materials",Provisions.,,06/02/2024,12/02/2024,7.1,,Scientific Laboratory Supplies Ltd
Schools Total,School Group 2 � Pupil Capacity 144-314,MCC Schools,Ysgol Gymraeg Y Fenni,Supplies & Services,"Equipment, Furniture and Materials",Provisions.,,19/02/2024,21/02/2024,34.15,,Dole Foodservice (Hereford)
Children Services,Children Services Other,Social Care and Health,External Placements - CLA,Third Party Payments,Third Party,Fostering/Adoption Allowances,,29/02/2024,14/02/2024,3344.86,,Pathway Care Ltd T/A Calon Cymru
Children Services,Children Services Other,Social Care and Health,External Placements - CLA,Third Party Payments,Third Party,Fostering/Adoption Allowances,,29/02/2024,14/02/2024,3501.17,,Pathway Care Ltd T/A Calon Cymru
Standards,Additional Learning Needs,Children & Young People,Additional Learning Needs,Third Party Payments,Third Party,Placement Fees,,21/02/2024,28/02/2024,4125,,HIT EDUCATION
Schools Total,School Group 2 � Pupil Capacity 144-314,MCC Schools,Thornwell Primary School,Supplies & Services,"Equipment, Furniture and Materials",Provisions.,,29/01/2024,05/02/2024,86.22,,Castell Howell Foods Ltd
Schools Total,School Group 2 � Pupil Capacity 144-314,MCC Schools,Thornwell Primary School,Supplies & Services,"Equipment, Furniture and Materials",Provisions.,,29/01/2024,05/02/2024,-9.28,,Castell Howell Foods Ltd
Schools Total,School Group 2 � Pupil Capacity 144-314,MCC Schools,Thornwell Primary School,Supplies & Services,"Equipment, Furniture and Materials",Provisions.,,29/01/2024,05/02/2024,9.28,,Castell Howell Foods Ltd
Information Communication Technology,Technology & Organisational Design,Resources,Digital Program Office,Third Party Payments,Third Party,IT Support,,31/01/2024,01/03/2024,47731.83,,Caerphilly County Borough Council
Information Communication Technology,Technology & Organisational Design,Resources,Digital Program Office,Third Party Payments,Third Party,IT Support,,31/01/2024,01/03/2024,-47731.83,,Caerphilly County Borough Council
Information Communication Technology,Technology & Organisational Design,Resources,Digital Program Office,Third Party Payments,Third Party,IT Support,,31/01/2024,01/03/2024,54519.31,,Caerphilly County Borough Council
Information Communication Technology,Technology & Organisational Design,Resources,Digital Program Office,Third Party Payments,Third Party,IT Support,,31/01/2024,01/03/2024,-54519.31,,Caerphilly County Borough Council
Children Services,Children Services Other,Social Care and Health,External Placements - CLA,Third Party Payments,Third Party,Fostering/Adoption Allowances,,31/01/2024,09/02/2024,-2078.25,,Foster Care Associates Limited (FCA)
Schools Total,School Group 2 � Pupil Capacity 144-314,MCC Schools,Thornwell Primary School,Supplies & Services,"Equipment, Furniture and Materials",Provisions.,,26/02/2024,29/02/2024,134.09,,Castell Howell Foods Ltd
Children Services,Children Services Other,Social Care and Health,External Placements - CLA,Third Party Payments,Third Party,Fostering/Adoption Allowances,,29/02/2024,15/02/2024,3657.48,,Pathway Care Ltd T/A Calon Cymru
Children Services,Children Services Other,Social Care and Health,External Placements - CLA,Third Party Payments,Third Party,Fostering/Adoption Allowances,,29/02/2024,15/02/2024,4689.3,,Pathway Care Ltd T/A Calon Cymru
Standards,Additional Learning Needs,Children & Young People,Additional Learning Needs,Third Party Payments,Third Party,Placement Fees,,05/01/2024,08/02/2024,13978,,Newport City Council
Schools Total,School Group 7 � Pupil Capacity 501-1800,MCC Schools,Monmouth Comprehensive,Third Party Payments,Third Party,School Meal Service,,01/02/2024,08/02/2024,533.81,,Litmus Partnership Ltd
Schools Total,School Group 2 � Pupil Capacity 144-314,MCC Schools,Thornwell Primary School,Supplies & Services,"Equipment, Furniture and Materials",Provisions.,,01/02/2024,05/02/2024,29.59,,Dole
Schools Total,School Group 2 � Pupil Capacity 144-314,MCC Schools,Thornwell Primary School,Supplies & Services,"Equipment, Furniture and Materials",Provisions.,,22/01/2024,02/02/2024,41.41,,Castell Howell Foods Ltd
Children Services,Children Services Other,Social Care and Health,External Placements - CLA,Third Party Payments,Third Party,Fostering/Adoption Allowances,,31/12/2023,26/02/2024,1385.7,,Compass Fostering Wales Limited
Schools Total,School Group 2 � Pupil Capacity 144-314,MCC Schools,Thornwell Primary School,Supplies & Services,"Equipment, Furniture and Materials",Provisions.,,22/02/2024,23/02/2024,20.59,,Dole
Schools Total,School Group 7 � Pupil Capacity 501-1800,MCC Schools,Monmouth Comprehensive,Third Party Payments,Third Party,School Meal Service,,20/02/2024,26/02/2024,28.82,,Amazon Payments UK Limited
Standards,Additional Learning Needs,Children & Young People,Additional Learning Needs,Third Party Payments,Third Party,Placement Fees,,20/12/2023,12/02/2024,7775.37,,Talocher School Priory
Standards,Additional Learning Needs,Children & Young People,Additional Learning Needs,Third Party Payments,Third Party,Placement Fees,,18/01/2024,21/02/2024,11729,,Cabot Learning Federation
Schools Total,School Group 2 � Pupil Capacity 144-314,MCC Schools,Cantref Primary School,Third Party Payments,Third Party,School Music Service,,19/02/2024,23/02/2024,645,,Upbeat Music And Arts Service Ltd
Schools Total,School Group 2 � Pupil Capacity 144-314,MCC Schools,Thornwell Primary School,Supplies & Services,"Equipment, Furniture and Materials",Provisions.,,08/02/2024,22/02/2024,19.76,,Dole
Schools Total,School Group 7 � Pupil Capacity 501-1800,MCC Schools,Chepstow School,Supplies & Services,"Equipment, Furniture and Materials",Provisions.,,16/02/2024,22/02/2024,76.72,,Better Equipped Educational Supplies
Capital Division,Capital Dept,Capital,Capital Programme,Third Party Payments,Third Party,Hedge/Tree Cutting,,05/02/2024,23/02/2024,3270,,Eco Vigour Ltd
Schools Total,School Group 7 � Pupil Capacity 501-1800,MCC Schools,King Henry 3-19 School,Third Party Payments,Third Party,School Music Service,,09/02/2024,23/02/2024,1060,,REDACTED PERSONAL DATA
"Facilities, Fleet & Decarbonisation",Transport Department,Communities & Place,Transport,Transport,Direct Transport Costs,Tyres And Tubes,,15/01/2024,08/02/2024,639.92,,Malvern Tyres (Wholesale) Ltd
"Facilities, Fleet & Decarbonisation",Transport Department,Communities & Place,Transport,Transport,Direct Transport Costs,Tyres And Tubes,,16/01/2024,08/02/2024,379.18,,Malvern Tyres (Wholesale) Ltd
"Facilities, Fleet & Decarbonisation",Transport Department,Communities & Place,Transport,Transport,Direct Transport Costs,Tyres And Tubes,,16/01/2024,08/02/2024,514.54,,Malvern Tyres (Wholesale) Ltd
"Facilities, Fleet & Decarbonisation",Transport Department,Communities & Place,Transport,Transport,Direct Transport Costs,Spare Parts,,31/01/2024,08/02/2024,89.92,,Fast Fluid Power Ltd
Schools Total,SCHGRP3 � School Group 3 � Pupil Capacity 315-500,MCC Schools,Overmonnow Primary School,Employees,Direct Employee Expenses,Agency Staff,,14/02/2024,23/02/2024,383.1,,Suppleo Recruitment Ltd
Schools Total,SCHGRP3 � School Group 3 � Pupil Capacity 315-500,MCC Schools,Overmonnow Primary School,Employees,Direct Employee Expenses,Agency Staff,,14/02/2024,23/02/2024,-509.83,,Suppleo Recruitment Ltd
"Facilities, Fleet & Decarbonisation",Transport Department,Communities & Place,Transport,Transport,Direct Transport Costs,Tyres And Tubes,,17/01/2024,08/02/2024,166.86,,Malvern Tyres (Wholesale) Ltd
"Facilities, Fleet & Decarbonisation",Transport Department,Communities & Place,Transport,Transport,Direct Transport Costs,Tyres And Tubes,,03/02/2024,08/02/2024,63.9,,"Exhaust, Tyres & Batteries (Worcester) Ltd"
"Facilities, Fleet & Decarbonisation",Transport Department,Communities & Place,Transport,Transport,Direct Transport Costs,Tyres And Tubes,,02/02/2024,08/02/2024,560,,"Exhaust, Tyres & Batteries (Worcester) Ltd"
"Facilities, Fleet & Decarbonisation",Transport Department,Communities & Place,Transport,Transport,Direct Transport Costs,Spare Parts,,05/02/2024,08/02/2024,211.77,,Motorcare
"Facilities, Fleet & Decarbonisation",Transport Department,Communities & Place,Transport,Transport,Direct Transport Costs,Spare Parts,,05/02/2024,08/02/2024,411.2,,Euro Commercials (South Wales) L
"Facilities, Fleet & Decarbonisation",Home to School Transport Dept,Communities & Place,Special Educational Needs,Transport,Direct Transport Costs,Petrol,,07/02/2024,08/02/2024,149.4,,REDACTED PERSONAL DATA
Neighbourhood Services,Highways,Communities & Place,Street Lighting,Third Party Payments,Third Party,Maintenance Contracts,,02/02/2024,08/02/2024,3837.5,,Enerveo Ltd
Neighbourhood Services,Highways,Communities & Place,Street Lighting,Third Party Payments,Third Party,Maintenance Contracts,,05/02/2024,08/02/2024,176.83,,Enerveo Ltd
Neighbourhood Services,Highways,Communities & Place,Street Lighting,Third Party Payments,Third Party,Maintenance Contracts,,05/02/2024,08/02/2024,63.18,,Enerveo Ltd
Neighbourhood Services,Highways,Communities & Place,Street Lighting,Third Party Payments,Third Party,Maintenance Contracts,,05/02/2024,08/02/2024,176.83,,Enerveo Ltd
Neighbourhood Services,Highways,Communities & Place,Street Lighting,Third Party Payments,Third Party,Maintenance Contracts,,05/02/2024,08/02/2024,176.83,,Enerveo Ltd
Adult Services,Community Care Team,Social Care and Health,Abergavenny Adult Team,Third Party Payments,Third Party,Personal Care.,,04/02/2024,08/02/2024,3069,,Spectrum (Aldermore Bank)
Adult Services,Community Care Team,Social Care and Health,Monmouth Adult Team,Third Party Payments,Third Party,Personal Care.,,05/02/2024,08/02/2024,3623.36,,Kemble at home
"Facilities, Fleet & Decarbonisation",Home to School Transport Dept,Communities & Place,Special Educational Needs,Transport,Contract Hire and Operating Leases,PTU Vehicle Contracts,,13/02/2024,14/02/2024,3512.25,,Queenie's Private Hire
"Facilities, Fleet & Decarbonisation",Home to School Transport Dept,Communities & Place,Special Educational Needs,Transport,Contract Hire and Operating Leases,PTU Vehicle Contracts,,13/02/2024,14/02/2024,2677.5,,Seren Executive Travel
"Facilities, Fleet & Decarbonisation",Home to School Transport Dept,Communities & Place,Special Educational Needs,Transport,Contract Hire and Operating Leases,PTU Vehicle Contracts,,13/02/2024,14/02/2024,2835,,Tidley Taxis
Adult Services,Community Care Team,Social Care and Health,Monmouth Adult Team,Third Party Payments,Third Party,Personal Care.,,12/02/2024,15/02/2024,2167.2,,Helping Hands
Adult Services,Community Care Team,Social Care and Health,Monmouth Adult Team,Third Party Payments,Third Party,Personal Care.,,12/02/2024,15/02/2024,3136,,Helping Hands
Standards,Early Years,Children & Young People,Flying Start Grant,Supplies & Services,Services,Child Minding Fees,,13/02/2024,15/02/2024,75,,REDACTED PERSONAL DATA
Capital Division,Capital Dept,Capital,Capital Programme,Third Party Payments,Third Party,General Contracts,,10/01/2024,07/02/2024,728,,CP Contracts
"Facilities, Fleet & Decarbonisation",Transport Department,Communities & Place,Transport,Transport,Direct Transport Costs,Spare Parts,,31/01/2024,08/02/2024,997.82,,Euro Commercials (South Wales) L
"Facilities, Fleet & Decarbonisation",Transport Department,Communities & Place,Transport,Transport,Direct Transport Costs,Spare Parts,,01/02/2024,08/02/2024,11.15,,Euro Commercials (South Wales) L
"Facilities, Fleet & Decarbonisation",Transport Department,Communities & Place,Transport,Transport,Direct Transport Costs,Spare Parts,,01/02/2024,08/02/2024,232.2,,Euro Commercials (South Wales) L
"Facilities, Fleet & Decarbonisation",Transport Department,Communities & Place,Transport,Transport,Direct Transport Costs,Spare Parts,,31/01/2024,08/02/2024,-70,,Mon & Border Motor Factors Ltd
"Facilities, Fleet & Decarbonisation",Transport Department,Communities & Place,Transport,Transport,Direct Transport Costs,Spare Parts,,01/02/2024,09/02/2024,132.66,,Glenside Commercials Ltd
"Facilities, Fleet & Decarbonisation",Transport Department,Communities & Place,Transport,Transport,Direct Transport Costs,Tyres And Tubes,,18/01/2024,08/02/2024,514.54,,Malvern Tyres (Wholesale) Ltd
"Facilities, Fleet & Decarbonisation",Transport Department,Communities & Place,Transport,Transport,Direct Transport Costs,Tyres And Tubes,,24/01/2024,08/02/2024,141.68,,Malvern Tyres (Wholesale) Ltd
"Facilities, Fleet & Decarbonisation",Transport Department,Communities & Place,Transport,Transport,Direct Transport Costs,Tyres And Tubes,,02/01/2024,08/02/2024,379.18,,Malvern Tyres (Wholesale) Ltd
"Facilities, Fleet & Decarbonisation",Transport Department,Communities & Place,Transport,Transport,Direct Transport Costs,Tyres And Tubes,,02/01/2024,08/02/2024,514.54,,Malvern Tyres (Wholesale) Ltd
"Facilities, Fleet & Decarbonisation",Transport Department,Communities & Place,Transport,Transport,Direct Transport Costs,Tyres And Tubes,,30/01/2024,08/02/2024,21.95,,"Exhaust, Tyres & Batteries (Worcester) Ltd"
"Facilities, Fleet & Decarbonisation",Transport Department,Communities & Place,Transport,Transport,Direct Transport Costs,Tyres And Tubes,,30/01/2024,08/02/2024,103.43,,"Exhaust, Tyres & Batteries (Worcester) Ltd"
"Facilities, Fleet & Decarbonisation",Transport Department,Communities & Place,Transport,Transport,Direct Transport Costs,Tyres And Tubes,,04/01/2024,08/02/2024,447.68,,Malvern Tyres (Wholesale) Ltd
"Facilities, Fleet & Decarbonisation",Transport Department,Communities & Place,Transport,Transport,Direct Transport Costs,Tyres And Tubes,,04/01/2024,08/02/2024,639.92,,Malvern Tyres (Wholesale) Ltd
"Facilities, Fleet & Decarbonisation",Transport Department,Communities & Place,Transport,Transport,Direct Transport Costs,Tyres And Tubes,,10/01/2024,08/02/2024,267.76,,Malvern Tyres (Wholesale) Ltd
"Facilities, Fleet & Decarbonisation",Transport Department,Communities & Place,Transport,Transport,Direct Transport Costs,Tyres And Tubes,,12/01/2024,08/02/2024,252.56,,Malvern Tyres (Wholesale) Ltd
"Facilities, Fleet & Decarbonisation",Transport Department,Communities & Place,Transport,Transport,Direct Transport Costs,Spare Parts,,01/02/2024,08/02/2024,459,,Mon & Border Motor Factors Ltd
"Facilities, Fleet & Decarbonisation",Transport Department,Communities & Place,Transport,Transport,Direct Transport Costs,Spare Parts,,31/01/2024,08/02/2024,605.26,,Dennis Eagle Limited
"Facilities, Fleet & Decarbonisation",Transport Department,Communities & Place,Transport,Transport,Direct Transport Costs,Vehicle Collision Damage Costs,,03/01/2024,08/02/2024,131.25,,Malvern Tyres (Wholesale) Ltd
"Facilities, Fleet & Decarbonisation",Transport Department,Communities & Place,Transport,Transport,Direct Transport Costs,Vehicle Collision Damage Costs,,31/01/2024,08/02/2024,128.43,,"Exhaust, Tyres & Batteries (Worcester) Ltd"
"Facilities, Fleet & Decarbonisation",Home to School Transport Dept,Communities & Place,Special Educational Needs,Transport,Contract Hire and Operating Leases,PTU Vehicle Contracts,,13/02/2024,14/02/2024,1811.25,,A & T Taxis
"Facilities, Fleet & Decarbonisation",Home to School Transport Dept,Communities & Place,Special Educational Needs,Transport,Contract Hire and Operating Leases,PTU Vehicle Contracts,,13/02/2024,14/02/2024,3780,,Abergavenny Taxis Ltd
"Policy, Scrutiny & Customer Service",Ukraine,Chief Executive's Unit,Ukraine Support,Transport,Contract Hire and Operating Leases,PTU Vehicle Contracts,,13/02/2024,14/02/2024,1320,,A & T Taxis
Neighbourhood Services,Highways,Communities & Place,Task Orders,Transport,Direct Transport Costs,Transportation of Supplies,,01/02/2024,23/02/2024,75,,Geo Pollution Technologies (UK) Ltd T/A Natural Solutions Environmental Management Services
Schools Total,School Group 2 � Pupil Capacity 144-314,MCC Schools,Dewstow Primary School,Employees,Direct Employee Expenses,Agency Staff,,04/02/2024,12/02/2024,214.43,,New Directions Education Ltd
Schools Total,School Group 2 � Pupil Capacity 144-314,MCC Schools,Dewstow Primary School,Employees,Direct Employee Expenses,Agency Staff,,04/02/2024,12/02/2024,214.43,,New Directions Education Ltd
Schools Total,School Group 2 � Pupil Capacity 144-314,MCC Schools,Dewstow Primary School,Employees,Direct Employee Expenses,Agency Staff,,04/02/2024,12/02/2024,118.56,,New Directions Education Ltd
Schools Total,School Group 2 � Pupil Capacity 144-314,MCC Schools,Dewstow Primary School,Employees,Direct Employee Expenses,Agency Staff,,04/02/2024,12/02/2024,118.56,,New Directions Education Ltd
Schools Total,School Group 2 � Pupil Capacity 144-314,MCC Schools,Dewstow Primary School,Employees,Direct Employee Expenses,Agency Staff,,04/02/2024,12/02/2024,118.56,,New Directions Education Ltd
Schools Total,School Group 2 � Pupil Capacity 144-314,MCC Schools,Dewstow Primary School,Employees,Direct Employee Expenses,Agency Staff,,04/02/2024,12/02/2024,118.56,,New Directions Education Ltd
Schools Total,School Group 2 � Pupil Capacity 144-314,MCC Schools,Dewstow Primary School,Employees,Direct Employee Expenses,Agency Staff,,04/02/2024,12/02/2024,118.56,,New Directions Education Ltd
Adult Services,Community Care Team,Social Care and Health,Monmouth Adult Team,Third Party Payments,Third Party,Personal Care.,,12/02/2024,14/02/2024,1052.8,,Helping Hands
Adult Services,Community Care Team,Social Care and Health,Chepstow Adult Team,Third Party Payments,Third Party,Personal Care.,,12/02/2024,14/02/2024,554.4,,Helping Hands
Adult Services,Community Care Team,Social Care and Health,Chepstow Adult Team,Third Party Payments,Third Party,Personal Care.,,12/02/2024,14/02/2024,224,,Helping Hands
Schools Total,School Group 1 � Pupil Capacity 1-143,MCC Schools,Llanvihangel Crucorney Primary School,Employees,Direct Employee Expenses,Agency Staff,,11/02/2024,28/02/2024,130.76,,New Directions Education Ltd
Schools Total,School Group 1 � Pupil Capacity 1-143,MCC Schools,Llanvihangel Crucorney Primary School,Employees,Direct Employee Expenses,Agency Staff,,11/02/2024,28/02/2024,81.82,,New Directions Education Ltd
Schools Total,School Group 1 � Pupil Capacity 1-143,MCC Schools,Llanvihangel Crucorney Primary School,Employees,Direct Employee Expenses,Agency Staff,,11/02/2024,28/02/2024,81.82,,New Directions Education Ltd
Schools Total,School Group 2 � Pupil Capacity 144-314,MCC Schools,Shirenewton Primary School,Supplies & Services,Services,Residential Trips,,06/02/2024,26/02/2024,120,,REDACTED PERSONAL DATA
Schools Total,School Group 2 � Pupil Capacity 144-314,MCC Schools,Shirenewton Primary School,Supplies & Services,Services,Residential Trips,,06/02/2024,26/02/2024,360,,REDACTED PERSONAL DATA
Children Services,Children Services Teams,Social Care and Health,Disabled Children,Third Party Payments,Third Party,Personal Care.,,23/02/2024,26/02/2024,7537.61,,REDACTED PERSONAL DATA
Children Services,Children Services Teams,Social Care and Health,Disabled Children,Third Party Payments,Third Party,Personal Care.,,23/02/2024,26/02/2024,4581.24,,REDACTED PERSONAL DATA
Adult Services,Community Care Team,Social Care and Health,Abergavenny Adult Team,Third Party Payments,Third Party,Personal Care.,,23/02/2024,26/02/2024,2528.49,,REDACTED PERSONAL DATA
Schools Total,School Group 1 � Pupil Capacity 1-143,MCC Schools,Ysgol Gymraeg Y Ffin,Supplies & Services,Services,Residential Trips,,31/01/2024,28/02/2024,2352,,Globerow Ltd
Schools Total,School Group 2 � Pupil Capacity 144-314,MCC Schools,St Mary�s RC Primary School (VA),Employees,Direct Employee Expenses,Agency Staff,,02/02/2024,28/02/2024,300,,Forest Sports Education
Schools Total,School Group 2 � Pupil Capacity 144-314,MCC Schools,Our Lady & St Michael's (OLSM) RC Primary School (VA),Employees,Direct Employee Expenses,Agency Staff,,23/01/2024,28/02/2024,1169.98,,TeacherActive
Capital Division,Capital Dept,Capital,Capital Programme,Third Party Payments,Third Party,General Contracts,,18/12/2023,28/02/2024,5027.75,,WSP UK Limited
Schools Total,School Group 7 � Pupil Capacity 501-1800,MCC Schools,Chepstow School,Third Party Payments,Third Party,General Contracts,,31/01/2024,28/02/2024,53,,PW Commercial Company Ltd (Printwaste Recycling)
Schools Total,School Group 2 � Pupil Capacity 144-314,MCC Schools,Ysgol Gymraeg Y Fenni,Employees,Direct Employee Expenses,Agency Staff,,07/02/2024,21/02/2024,875.76,,Teaching Personnel
Adult Services,Community Care Team,Social Care and Health,Support for Users & Carers,Third Party Payments,Third Party,Third party payments NOT relating to goods or services,,19/10/2023,21/02/2024,10000,,Bridges Community Centre
Schools Total,School Group 2 � Pupil Capacity 144-314,MCC Schools,Raglan CiW Primary School (VC),Supplies & Services,Services,Residential Trips,,06/02/2024,21/02/2024,60,,National Museums & Galleries of Wales Enterprises Ltd
Standards,Early Years,Children & Young People,Flying Start Grant,Supplies & Services,Services,Child Minding Fees,,19/02/2024,21/02/2024,150,,Abergavenny Nursery
Schools Total,SCHGRP3 � School Group 3 � Pupil Capacity 315-500,MCC Schools,Overmonnow Primary School,Employees,Direct Employee Expenses,Agency Staff,,14/02/2024,21/02/2024,115,,Back Office Support Services Ltd (Education Supply Pool)
Schools Total,Schools,MCC Schools,Pupil Referral Unit,Employees,Direct Employee Expenses,Agency Staff,,12/02/2024,21/02/2024,1663.14,,Apollo Teaching Services LTD
Schools Total,Schools,MCC Schools,Pupil Referral Unit,Employees,Direct Employee Expenses,Agency Staff,,14/02/2024,21/02/2024,1061.79,,Back Office Support Services Ltd (Education Supply Pool)
Schools Total,School Group 1 � Pupil Capacity 1-143,MCC Schools,Llanvihangel Crucorney Primary School,Employees,Direct Employee Expenses,Agency Staff,,04/02/2024,26/02/2024,81.82,,New Directions Education Ltd
Schools Total,School Group 1 � Pupil Capacity 1-143,MCC Schools,Llanvihangel Crucorney Primary School,Employees,Direct Employee Expenses,Agency Staff,,04/02/2024,26/02/2024,81.82,,New Directions Education Ltd
Capital Division,Capital Dept,Capital,Capital Programme,Supplies & Services,"Equipment, Furniture and Materials",Materials & Consumables.,,22/02/2024,26/02/2024,250,,Wildwood Ecology Limited
Schools Total,School Group 2 � Pupil Capacity 144-314,MCC Schools,Ysgol Gymraeg Y Fenni,Employees,Direct Employee Expenses,Agency Staff,,14/02/2024,21/02/2024,1094.7,,Teaching Personnel
Adult Services,Community Care Team,Social Care and Health,Monmouth Adult Team,Third Party Payments,Third Party,Personal Care.,,12/02/2024,14/02/2024,750.4,,Helping Hands
"Enterprise, Housing & Community Animation",Community & Partnerships Development,Communities & Place,Supporting People: Management,Third Party Payments,Third Party,Third party payments NOT relating to goods or services,,09/02/2024,14/02/2024,160650,,Pobl Care & Support
Countryside & Culture,Countryside,MonLife Directorate,Offas dyke,Third Party Payments,Third Party,General Contracts,,01/01/2024,14/02/2024,750,,RWH Constructability Ltd
Adult Services,Community Care Team,Social Care and Health,Monmouth Adult Team,Third Party Payments,Third Party,Personal Care.,,08/02/2024,14/02/2024,9150.44,,Drive Ltd
Adult Services,Community Care Team,Social Care and Health,Monmouth Adult Team,Third Party Payments,Third Party,Personal Care.,,08/02/2024,14/02/2024,7402.78,,Drive Ltd
Adult Services,Community Care Team,Social Care and Health,Monmouth Adult Team,Third Party Payments,Third Party,Personal Care.,,08/02/2024,14/02/2024,4827.9,,Drive Ltd
Adult Services,Community Care Team,Social Care and Health,Monmouth Adult Team,Third Party Payments,Third Party,Personal Care.,,08/02/2024,14/02/2024,643.72,,Drive Ltd
Adult Services,Community Care Team,Social Care and Health,Monmouth Adult Team,Third Party Payments,Third Party,Personal Care.,,08/02/2024,14/02/2024,3663.44,,Drive Ltd
Adult Services,Community Care Team,Social Care and Health,Monmouth Adult Team,Third Party Payments,Third Party,Personal Care.,,30/01/2024,14/02/2024,3663.43,,Drive Ltd
Adult Services,Community Care Team,Social Care and Health,Monmouth Adult Team,Third Party Payments,Third Party,Personal Care.,,30/01/2024,14/02/2024,9150.44,,Drive Ltd
Adult Services,Community Care Team,Social Care and Health,Monmouth Adult Team,Third Party Payments,Third Party,Personal Care.,,30/01/2024,14/02/2024,7402.78,,Drive Ltd
Schools Total,School Group 2 � Pupil Capacity 144-314,MCC Schools,Dewstow Primary School,Employees,Direct Employee Expenses,Agency Staff,,04/02/2024,12/02/2024,214.43,,New Directions Education Ltd
Schools Total,School Group 2 � Pupil Capacity 144-314,MCC Schools,Dewstow Primary School,Employees,Direct Employee Expenses,Agency Staff,,04/02/2024,12/02/2024,214.43,,New Directions Education Ltd
Schools Total,School Group 2 � Pupil Capacity 144-314,MCC Schools,Dewstow Primary School,Employees,Direct Employee Expenses,Agency Staff,,04/02/2024,12/02/2024,214.43,,New Directions Education Ltd
Schools Total,School Group 2 � Pupil Capacity 144-314,MCC Schools,Dewstow Primary School,Employees,Direct Employee Expenses,Agency Staff,,04/02/2024,12/02/2024,214.43,,New Directions Education Ltd
Schools Total,School Group 2 � Pupil Capacity 144-314,MCC Schools,Dewstow Primary School,Employees,Direct Employee Expenses,Agency Staff,,04/02/2024,12/02/2024,214.43,,New Directions Education Ltd
Adult Services,Community Care Team,Social Care and Health,Monmouth Adult Team,Employees,Direct Employee Expenses,Agency Staff,,07/02/2024,26/02/2024,-20,,Piers Meadows Recruitment Limited
Adult Services,Community Care Team,Social Care and Health,Monmouth Adult Team,Employees,Direct Employee Expenses,Agency Staff,,07/02/2024,26/02/2024,20,,Piers Meadows Recruitment Limited
Adult Services,Community Care Team,Social Care and Health,Monmouth Adult Team,Employees,Direct Employee Expenses,Agency Staff,,07/02/2024,26/02/2024,1111.61,,Piers Meadows Recruitment Limited
Adult Services,INTEGRATED CARE FUND,Social Care and Health,Intermediate Care Fund,Employees,Direct Employee Expenses,Agency Staff,,14/02/2024,29/02/2024,1513.66,,Liquid Personnel
Neighbourhood Services,Highways,Communities & Place,Stores,Current Assets,Inventories,Stock Received Suspense,,29/11/2023,13/02/2024,391.9,,Industrial Rugbi Supplies
Neighbourhood Services,Highways,Communities & Place,Stores,Current Assets,Inventories,Stock Received Suspense,,16/11/2023,13/02/2024,350,,Industrial Rugbi Supplies
#N/A,#N/A,#N/A,#N/A,Current Liabilities,Bank Overdraft,Barclays Main Cash Book,,09/02/2024,09/02/2024,92159.55,,Edwards Coaches Ltd
#N/A,#N/A,#N/A,#N/A,Current Liabilities,Bank Overdraft,Barclays Main Cash Book,,09/02/2024,09/02/2024,46.62,,Marten Walsh Cherer Ltd
#N/A,#N/A,#N/A,#N/A,Current Liabilities,Bank Overdraft,Barclays Main Cash Book,,09/02/2024,09/02/2024,50000,,Harris Coaches
#N/A,#N/A,#N/A,#N/A,Current Liabilities,Bank Overdraft,Barclays Main Cash Book,,09/02/2024,09/02/2024,8605.86,,Thomas of Rhondda
#N/A,#N/A,#N/A,#N/A,Current Liabilities,Bank Overdraft,Barclays Main Cash Book,,09/02/2024,09/02/2024,8605.86,,Thomas of Rhondda
#N/A,#N/A,#N/A,#N/A,Current Liabilities,Bank Overdraft,Barclays Main Cash Book,,09/02/2024,09/02/2024,8605.86,,Thomas of Rhondda
#N/A,#N/A,#N/A,#N/A,Current Liabilities,Bank Overdraft,Barclays Main Cash Book,,09/02/2024,09/02/2024,8605.86,,Thomas of Rhondda
#N/A,#N/A,#N/A,#N/A,Current Liabilities,Bank Overdraft,Barclays Main Cash Book,,09/02/2024,09/02/2024,500000,,Newport Transport Ltd
#N/A,#N/A,#N/A,#N/A,Current Liabilities,Bank Overdraft,Barclays Main Cash Book,,09/02/2024,09/02/2024,500000,,Newport Transport Ltd
#N/A,#N/A,#N/A,#N/A,Current Liabilities,Bank Overdraft,Barclays Main Cash Book,,09/02/2024,09/02/2024,50000,,Harris Coaches
"Commercial, Corporate & landlord Services",Property Services & Facilities Management,Resources,Reactive Maintenance,Premises,"Repairs, Alterations & Maintenance of Buildings",Building Improvements / Maintenance,,25/01/2024,08/02/2024,46,,A.J Quinn Building Contractors Ltd
"Commercial, Corporate & landlord Services",Property Services & Facilities Management,Resources,Reactive Maintenance,Premises,"Repairs, Alterations & Maintenance of Buildings",Building Improvements / Maintenance,,23/01/2024,08/02/2024,369.66,,A.J Quinn Building Contractors Ltd
Children Services,Children Services Teams,Social Care and Health,Family Support and Protection Team - South,Employees,Direct Employee Expenses,Agency Staff,,23/01/2024,02/02/2024,64,,NonStop Recruitment Ltd.
Children Services,Children Services Teams,Social Care and Health,Family Support and Protection Team - South,Employees,Direct Employee Expenses,Agency Staff,,23/01/2024,02/02/2024,1290,,NonStop Recruitment Ltd.
Children Services,Children Services Teams,Social Care and Health,Family Support and Protection Team - South,Employees,Direct Employee Expenses,Agency Staff,,26/01/2024,02/02/2024,1706.81,,Hoop
"Commercial, Corporate & landlord Services",Property Services & Facilities Management,Resources,External Clients,Premises,"Repairs, Alterations & Maintenance of Buildings",Building Improvements / Maintenance,,31/01/2024,29/02/2024,7603.39,,EFS Systems (UK) Ltd
"Commercial, Corporate & landlord Services",Property Services & Facilities Management,Resources,Reactive Maintenance,Premises,"Repairs, Alterations & Maintenance of Buildings",Building Improvements / Maintenance,,31/01/2024,02/02/2024,478.82,,Hightech Water Services
"Commercial, Corporate & landlord Services",Property Services & Facilities Management,Resources,Reactive Maintenance,Premises,"Repairs, Alterations & Maintenance of Buildings",Building Improvements / Maintenance,,29/01/2024,02/02/2024,508,,Ambassador Fire & Security LTD
Schools Total,School Group 7 � Pupil Capacity 501-1800,MCC Schools,King Henry 3-19 School,Employees,Indirect Employee Expenses,Replacement,,25/01/2024,02/02/2024,280.02,,Prospero Teaching
"Commercial, Corporate & landlord Services",Property Services & Facilities Management,Resources,External Clients,Premises,"Repairs, Alterations & Maintenance of Buildings",Building Improvements / Maintenance,,29/11/2023,05/02/2024,185,,Hightech Water Services
"Commercial, Corporate & landlord Services",Property Services & Facilities Management,Resources,External Clients,Premises,"Repairs, Alterations & Maintenance of Buildings",Building Improvements / Maintenance,,30/11/2023,05/02/2024,835.5,,Hightech Water Services
"Commercial, Corporate & landlord Services",Property Services & Facilities Management,Resources,Reactive Maintenance,Premises,"Repairs, Alterations & Maintenance of Buildings",Building Improvements / Maintenance,,25/01/2024,08/02/2024,34.5,,A.J Quinn Building Contractors Ltd
Children Services,Children Services Teams,Social Care and Health,Family Support and Protection Team - South,Employees,Direct Employee Expenses,Agency Staff,,30/01/2024,02/02/2024,1462,,NonStop Recruitment Ltd.
Children Services,Children Services Teams,Social Care and Health,Family Support and Protection Team - South,Employees,Direct Employee Expenses,Agency Staff,,30/01/2024,02/02/2024,106.5,,NonStop Recruitment Ltd.
Schools Total,School Group 7 � Pupil Capacity 501-1800,MCC Schools,King Henry 3-19 School,Employees,Indirect Employee Expenses,Replacement,,25/01/2024,02/02/2024,145,,Prospero Teaching
Schools Total,School Group 2 � Pupil Capacity 144-314,MCC Schools,Dewstow Primary School,Employees,Direct Employee Expenses,Agency Staff,,04/02/2024,12/02/2024,214.43,,New Directions Education Ltd
Schools Total,School Group 2 � Pupil Capacity 144-314,MCC Schools,Dewstow Primary School,Employees,Direct Employee Expenses,Agency Staff,,04/02/2024,12/02/2024,214.43,,New Directions Education Ltd
Schools Total,School Group 2 � Pupil Capacity 144-314,MCC Schools,Kymin View Primary School,Employees,Direct Employee Expenses,Agency Staff,,31/01/2024,12/02/2024,1359,,Suppleo Recruitment Ltd
Schools Total,School Group 1 � Pupil Capacity 1-143,MCC Schools,Llandogo Primary School,Employees,Direct Employee Expenses,Agency Staff,,31/01/2024,12/02/2024,378,,Suppleo Recruitment Ltd
Schools Total,School Group 1 � Pupil Capacity 1-143,MCC Schools,Llandogo Primary School,Employees,Direct Employee Expenses,Agency Staff,,01/02/2024,12/02/2024,236,,Prospero Teaching
Schools Total,School Group 2 � Pupil Capacity 144-314,MCC Schools,Llantilio Pertholey CiW Primary School (VC),Employees,Direct Employee Expenses,Agency Staff,,06/02/2024,12/02/2024,2212.65,,TeacherActive
Schools Total,School Group 2 � Pupil Capacity 144-314,MCC Schools,Our Lady & St Michael's (OLSM) RC Primary School (VA),Employees,Direct Employee Expenses,Agency Staff,,16/01/2024,05/02/2024,1272.65,,TeacherActive
Schools Total,School Group 7 � Pupil Capacity 501-1800,MCC Schools,Chepstow School,Supplies & Services,Services,Residential Trips,,23/01/2024,05/02/2024,780,,Pretty Miss
"Facilities, Fleet & Decarbonisation",Home to School Transport Dept,Communities & Place,Special Educational Needs,Transport,Contract Hire and Operating Leases,PTU Vehicle Contracts,,13/02/2024,14/02/2024,2535.75,,Avenue Taxis
"Facilities, Fleet & Decarbonisation",Transport Department,Communities & Place,Transport,Transport,Direct Transport Costs,Vehicle Collision Damage Costs,,05/02/2024,09/02/2024,395,,Spot on mobile repairs
"Facilities, Fleet & Decarbonisation",Transport Department,Communities & Place,Transport,Transport,Direct Transport Costs,Vehicle Collision Damage Costs,,12/01/2024,09/02/2024,975,,Spot on mobile repairs
Schools Total,SCHGRP3 � School Group 3 � Pupil Capacity 315-500,MCC Schools,Overmonnow Primary School,Employees,Direct Employee Expenses,Agency Staff,,07/02/2024,09/02/2024,1256.9,,Teaching Personnel
"Facilities, Fleet & Decarbonisation",Transport Department,Communities & Place,Transport,Transport,Direct Transport Costs,Vehicle Collision Damage Costs,,05/02/2024,09/02/2024,980,,Spot on mobile repairs
Schools Total,SCHGRP3 � School Group 3 � Pupil Capacity 315-500,MCC Schools,Overmonnow Primary School,Employees,Direct Employee Expenses,Agency Staff,,06/02/2024,09/02/2024,1187.79,,TeacherActive
Capital Division,Capital Dept,Capital,Capital Programme,Third Party Payments,Third Party,General Contracts,,24/01/2024,09/02/2024,4900,,WSP UK Limited
Schools Total,School Group 7 � Pupil Capacity 501-1800,MCC Schools,Chepstow School,Third Party Payments,Third Party,General Contracts,,30/11/2023,05/02/2024,62.1,,PW Commercial Company Ltd (Printwaste Recycling)
Schools Total,SCHGRP3 � School Group 3 � Pupil Capacity 315-500,MCC Schools,Undy Primary School,Supplies & Services,Services,Residential Trips,,01/12/2023,05/02/2024,3360,,Newport Live
Schools Total,School Group 2 � Pupil Capacity 144-314,MCC Schools,Dewstow Primary School,Employees,Direct Employee Expenses,Agency Staff,,04/02/2024,12/02/2024,214.43,,New Directions Education Ltd
Schools Total,School Group 2 � Pupil Capacity 144-314,MCC Schools,Dewstow Primary School,Employees,Direct Employee Expenses,Agency Staff,,04/02/2024,12/02/2024,214.43,,New Directions Education Ltd
Schools Total,School Group 2 � Pupil Capacity 144-314,MCC Schools,Dewstow Primary School,Employees,Direct Employee Expenses,Agency Staff,,04/02/2024,12/02/2024,214.43,,New Directions Education Ltd
Schools Total,School Group 2 � Pupil Capacity 144-314,MCC Schools,Dewstow Primary School,Employees,Direct Employee Expenses,Agency Staff,,04/02/2024,12/02/2024,214.43,,New Directions Education Ltd
Schools Total,School Group 2 � Pupil Capacity 144-314,MCC Schools,Dewstow Primary School,Employees,Direct Employee Expenses,Agency Staff,,04/02/2024,12/02/2024,214.43,,New Directions Education Ltd
Schools Total,School Group 2 � Pupil Capacity 144-314,MCC Schools,Dewstow Primary School,Employees,Direct Employee Expenses,Agency Staff,,04/02/2024,12/02/2024,214.43,,New Directions Education Ltd
Schools Total,School Group 2 � Pupil Capacity 144-314,MCC Schools,Cross Ash Primary School,Employees,Direct Employee Expenses,Agency Staff,,06/02/2024,12/02/2024,1560.66,,TeacherActive
Adult Services,Community Care Team,Social Care and Health,Monmouth Adult Team,Third Party Payments,Third Party,Personal Care.,,30/01/2024,14/02/2024,4827.9,,Drive Ltd
Adult Services,Community Care Team,Social Care and Health,Monmouth Adult Team,Third Party Payments,Third Party,Personal Care.,,30/01/2024,14/02/2024,643.72,,Drive Ltd
Adult Services,Community Care Team,Social Care and Health,Monmouth Adult Team,Third Party Payments,Third Party,Personal Care.,,30/01/2024,14/02/2024,7724.64,,Drive Ltd
Adult Services,Community Care Team,Social Care and Health,Abergavenny Adult Team,Third Party Payments,Third Party,Personal Care.,,13/02/2024,14/02/2024,1651.01,,Allied Healthcare Services Limited
Adult Services,Community Care Team,Social Care and Health,Abergavenny Adult Team,Third Party Payments,Third Party,Personal Care.,,13/02/2024,14/02/2024,907.66,,Allied Healthcare Services Limited
Adult Services,Community Care Team,Social Care and Health,Abergavenny Adult Team,Third Party Payments,Third Party,Personal Care.,,13/02/2024,14/02/2024,379.15,,Allied Healthcare Services Limited
Adult Services,Community Care Team,Social Care and Health,Abergavenny Adult Team,Third Party Payments,Third Party,Personal Care.,,13/02/2024,14/02/2024,152.58,,Allied Healthcare Services Limited
Schools Total,School Group 7 � Pupil Capacity 501-1800,MCC Schools,Monmouth Comprehensive,Employees,Direct Employee Expenses,Agency Staff,,14/02/2024,21/02/2024,668.79,,Hays Specialist Recruitment Ltd
Schools Total,Schools,MCC Schools,Pupil Referral Unit,Employees,Direct Employee Expenses,Agency Staff,,14/02/2024,21/02/2024,1045.59,,Back Office Support Services Ltd (Education Supply Pool)
Schools Total,Schools,MCC Schools,Pupil Referral Unit,Employees,Direct Employee Expenses,Agency Staff,,14/02/2024,21/02/2024,846.96,,Back Office Support Services Ltd (Education Supply Pool)
Schools Total,Schools,MCC Schools,Pupil Referral Unit,Employees,Direct Employee Expenses,Agency Staff,,14/02/2024,21/02/2024,1039.99,,Back Office Support Services Ltd (Education Supply Pool)
Schools Total,Schools,MCC Schools,Pupil Referral Unit,Employees,Direct Employee Expenses,Agency Staff,,14/02/2024,21/02/2024,3655.04,,Axcis Education Recruitment
Schools Total,Schools,MCC Schools,Pupil Referral Unit,Employees,Direct Employee Expenses,Agency Staff,,14/02/2024,21/02/2024,738.75,,Back Office Support Services Ltd (Education Supply Pool)
Schools Total,School Group 2 � Pupil Capacity 144-314,MCC Schools,Llantilio Pertholey CiW Primary School (VC),Employees,Direct Employee Expenses,Agency Staff,,08/02/2024,28/02/2024,371.35,,Prospero Teaching
Schools Total,School Group 2 � Pupil Capacity 144-314,MCC Schools,St Mary�s RC Primary School (VA),Employees,Direct Employee Expenses,Agency Staff,,07/02/2024,28/02/2024,3965.5,,Teaching 4 Wales Ltd
Schools Total,School Group 2 � Pupil Capacity 144-314,MCC Schools,St Mary�s RC Primary School (VA),Employees,Direct Employee Expenses,Agency Staff,,14/02/2024,28/02/2024,3290,,Teaching 4 Wales Ltd
Schools Total,SCHGRP3 � School Group 3 � Pupil Capacity 315-500,MCC Schools,The Dell Primary School,Employees,Direct Employee Expenses,Agency Staff,,17/01/2024,28/02/2024,514.12,,Suppleo Recruitment Ltd
Children Services,Children Services Teams,Social Care and Health,Family Support and Protection Team - South,Supplies & Services,Services,Private Nursery Fees,,01/03/2024,28/02/2024,513.19,,Puddle Ducks
Schools Total,School Group 2 � Pupil Capacity 144-314,MCC Schools,Llantilio Pertholey CiW Primary School (VC),Employees,Direct Employee Expenses,Agency Staff,,13/02/2024,28/02/2024,1401.56,,TeacherActive
Neighbourhood Services,Highways,Communities & Place,Structures Maintenance,Transport,Direct Transport Costs,Transportation of Supplies,,22/11/2023,28/02/2024,130,,Robert Price Ltd
Children Services,Children Services Teams,Social Care and Health,Disabled Children,Third Party Payments,Third Party,Personal Care.,,09/02/2024,12/02/2024,377.99,,REDACTED PERSONAL DATA
Adult Services,Community Care Team,Social Care and Health,Monmouth Adult Team,Third Party Payments,Third Party,Personal Care.,,09/02/2024,12/02/2024,853.43,,REDACTED PERSONAL DATA
Schools Total,School Group 2 � Pupil Capacity 144-314,MCC Schools,Goytre Fawr Primary School,Employees,Direct Employee Expenses,Agency Staff,,04/02/2024,12/02/2024,214.43,,New Directions Education Ltd
Schools Total,School Group 2 � Pupil Capacity 144-314,MCC Schools,Goytre Fawr Primary School,Employees,Direct Employee Expenses,Agency Staff,,04/02/2024,12/02/2024,123.55,,New Directions Education Ltd
Schools Total,School Group 7 � Pupil Capacity 501-1800,MCC Schools,King Henry 3-19 School,Employees,Direct Employee Expenses,Agency Staff,,04/02/2024,12/02/2024,142.02,,New Directions Education Ltd
Schools Total,School Group 7 � Pupil Capacity 501-1800,MCC Schools,King Henry 3-19 School,Employees,Direct Employee Expenses,Agency Staff,,04/02/2024,12/02/2024,142.02,,New Directions Education Ltd
Schools Total,School Group 7 � Pupil Capacity 501-1800,MCC Schools,King Henry 3-19 School,Employees,Direct Employee Expenses,Agency Staff,,04/02/2024,12/02/2024,142.02,,New Directions Education Ltd
Schools Total,School Group 7 � Pupil Capacity 501-1800,MCC Schools,King Henry 3-19 School,Employees,Direct Employee Expenses,Agency Staff,,04/02/2024,12/02/2024,240.9,,New Directions Education Ltd
Schools Total,School Group 2 � Pupil Capacity 144-314,MCC Schools,Dewstow Primary School,Employees,Direct Employee Expenses,Agency Staff,,04/02/2024,12/02/2024,214.43,,New Directions Education Ltd
Schools Total,SCHGRP3 � School Group 3 � Pupil Capacity 315-500,MCC Schools,Magor CiW Primary School (VA),Employees,Direct Employee Expenses,Agency Staff,,31/01/2024,12/02/2024,524.8,,Teaching 4 Wales Ltd
Capital Division,Capital Dept,Capital,Capital Programme,Third Party Payments,Third Party,General Contracts,,26/09/2023,12/02/2024,418.37,,Enerveo Ltd
Capital Division,Capital Dept,Capital,Capital Programme,Supplies & Services,"Equipment, Furniture and Materials",Materials & Consumables.,,29/01/2024,05/02/2024,1750,,All Tree Services Ltd
"Enterprise, Housing & Community Animation",Community & Partnerships Development,Communities & Place,Supporting People: Management,Third Party Payments,Third Party,Third party payments NOT relating to goods or services,,12/02/2024,14/02/2024,3906.69,,Care & Repair Monmouthshire & Torfaen Ltd
"Enterprise, Housing & Community Animation",Community & Partnerships Development,Communities & Place,Supporting People: Management,Third Party Payments,Third Party,Third party payments NOT relating to goods or services,,12/02/2024,14/02/2024,8683.77,,Care & Repair Monmouthshire & Torfaen Ltd
Schools Total,SCHGRP3 � School Group 3 � Pupil Capacity 315-500,MCC Schools,Magor CiW Primary School (VA),Employees,Direct Employee Expenses,Agency Staff,,31/01/2024,12/02/2024,585.2,,Axcis Education Recruitment
Neighbourhood Services,Highways,Communities & Place,External Contracts,Transport,Direct Transport Costs,Vechicles Repairs and Maintenance,,22/09/2023,12/02/2024,300.95,,Wales and West Truck and Bus
Children Services,Children Services Teams,Social Care and Health,Disabled Children,Third Party Payments,Third Party,Personal Care.,,09/02/2024,12/02/2024,3842.51,,REDACTED PERSONAL DATA
Adult Services,Day Centres,Social Care and Health,My Day,Supplies & Services,Services,Assistance To Clients,,03/01/2024,12/02/2024,1625,,The Celtic Manor Resort
"Policy, Scrutiny & Customer Service",Ukraine,Chief Executive's Unit,Ukraine Support,Transport,Contract Hire and Operating Leases,PTU Vehicle Contracts,,13/02/2024,14/02/2024,2971.43,,C and P Transport
"Facilities, Fleet & Decarbonisation",Home to School Transport Dept,Communities & Place,Special Educational Needs,Transport,Contract Hire and Operating Leases,PTU Vehicle Contracts,,13/02/2024,14/02/2024,20600.51,,C and P Transport
"Facilities, Fleet & Decarbonisation",Home to School Transport Dept,Communities & Place,Special Educational Needs,Transport,Contract Hire and Operating Leases,PTU Vehicle Contracts,,13/02/2024,14/02/2024,5962.32,,CDS Hire Limited
"Facilities, Fleet & Decarbonisation",Home to School Transport Dept,Communities & Place,Special Educational Needs,Transport,Contract Hire and Operating Leases,PTU Vehicle Contracts,,13/02/2024,14/02/2024,270,,Celtic Minibuses Ltd
Schools Total,Schools,MCC Schools,Pupil Referral Unit,Third Party Payments,Third Party,Placement Fees,,07/12/2023,09/02/2024,63,,SMUGGLERS LIVERY AND EQUESTRIAN
Schools Total,School Group 7 � Pupil Capacity 501-1800,MCC Schools,Chepstow School,Supplies & Services,"Equipment, Furniture and Materials",Provisions.,,31/01/2024,07/02/2024,17.06,,Hope Education Ltd
Schools Total,School Group 7 � Pupil Capacity 501-1800,MCC Schools,Chepstow School,Supplies & Services,"Equipment, Furniture and Materials",Provisions.,,31/01/2024,07/02/2024,21.49,,Hope Education Ltd
Schools Total,School Group 7 � Pupil Capacity 501-1800,MCC Schools,Chepstow School,Supplies & Services,"Equipment, Furniture and Materials",Provisions.,,31/01/2024,07/02/2024,4.23,,Hope Education Ltd
Schools Total,School Group 7 � Pupil Capacity 501-1800,MCC Schools,Chepstow School,Supplies & Services,"Equipment, Furniture and Materials",Provisions.,,31/01/2024,07/02/2024,8.32,,Amazon Payments UK Limited
Schools Total,School Group 7 � Pupil Capacity 501-1800,MCC Schools,Chepstow School,Supplies & Services,"Equipment, Furniture and Materials",Provisions.,,31/01/2024,07/02/2024,9.26,,Scientific Laboratory Supplies Ltd
Children Services,Children Services Other,Social Care and Health,External Placements - CLA,Third Party Payments,Third Party,Fostering/Adoption Allowances,,31/01/2024,09/02/2024,3342.82,,Compass Fostering West Limited
Schools Total,School Group 7 � Pupil Capacity 501-1800,MCC Schools,Monmouth Comprehensive,Third Party Payments,Third Party,School Meal Service,,15/07/2023,14/02/2024,1834.56,,Culligan (UK) Limited
Children Services,Children Services Other,Social Care and Health,External Placements - CLA,Third Party Payments,Third Party,Fostering/Adoption Allowances,,31/01/2024,09/02/2024,3797.5,,National Fostering Agency
Children Services,Children Services Other,Social Care and Health,External Placements - CLA,Third Party Payments,Third Party,Fostering/Adoption Allowances,,31/01/2024,09/02/2024,3956.53,,Compass Fostering Wales Limited
Children Services,Children Services Other,Social Care and Health,External Placements - CLA,Third Party Payments,Third Party,Fostering/Adoption Allowances,,31/01/2024,09/02/2024,3956.53,,Compass Fostering Wales Limited
Children Services,Children Services Other,Social Care and Health,External Placements - CLA,Third Party Payments,Third Party,Fostering/Adoption Allowances,,15/12/2023,09/02/2024,3816.41,,Action For Children
Children Services,Children Services Other,Social Care and Health,External Placements - CLA,Third Party Payments,Third Party,Fostering/Adoption Allowances,,30/11/2023,09/02/2024,6102.3,,Compass Fostering West Limited
Schools Total,School Group 7 � Pupil Capacity 501-1800,MCC Schools,Chepstow School,Supplies & Services,"Equipment, Furniture and Materials",Provisions.,,25/01/2024,09/02/2024,630,,Devon Purchasing Limited
Children Services,Children Services Other,Social Care and Health,External Placements - CLA,Third Party Payments,Third Party,Fostering/Adoption Allowances,,01/02/2024,09/02/2024,3976.48,,Foster Care Associates Limited (FCA)
Children Services,Children Services Other,Social Care and Health,External Placements - CLA,Third Party Payments,Third Party,Fostering/Adoption Allowances,,31/01/2024,09/02/2024,3783.55,,Compass Fostering Wales Limited
Adult Services,Community Care Team,Social Care and Health,Chepstow Adult Team,Current Assets,Short Term Debtors,Income Suspense Account - Residential Debtors,,25/01/2024,01/02/2024,175.4,,Francis & Co
Schools Total,School Group 7 � Pupil Capacity 501-1800,MCC Schools,Monmouth Comprehensive,Third Party Payments,Third Party,School Meal Service,,13/02/2024,26/02/2024,13015.21,,Aramark Plc
Children Services,Children Services Other,Social Care and Health,External Placements - CLA,Third Party Payments,Third Party,Fostering/Adoption Allowances,,01/02/2024,09/02/2024,3857,,Foster Care Associates Limited (FCA)
"Facilities, Fleet & Decarbonisation",Transport Department,Communities & Place,Transport,Transport,Contract Hire and Operating Leases,Vehicle Leases,,05/01/2024,01/02/2024,4121.02,,TP Leasing Limited
"Facilities, Fleet & Decarbonisation",Transport Department,Communities & Place,Transport,Transport,Contract Hire and Operating Leases,Vehicle Leases,,05/01/2024,01/02/2024,4121.02,,TP Leasing Limited
"Facilities, Fleet & Decarbonisation",Transport Department,Communities & Place,Transport,Transport,Contract Hire and Operating Leases,Vehicle Leases,,05/01/2024,01/02/2024,4121.02,,TP Leasing Limited
"Facilities, Fleet & Decarbonisation",Transport Department,Communities & Place,Transport,Transport,Contract Hire and Operating Leases,Vehicle Leases,,05/01/2024,01/02/2024,4121.02,,TP Leasing Limited
"Facilities, Fleet & Decarbonisation",Transport Department,Communities & Place,Transport,Transport,Contract Hire and Operating Leases,Vehicle Leases,,05/01/2024,01/02/2024,4121.02,,TP Leasing Limited
"Facilities, Fleet & Decarbonisation",Transport Department,Communities & Place,Transport,Transport,Contract Hire and Operating Leases,Vehicle Leases,,05/01/2024,01/02/2024,4121.01,,TP Leasing Limited
"Facilities, Fleet & Decarbonisation",Transport Department,Communities & Place,Transport,Transport,Contract Hire and Operating Leases,Vehicle Leases,,12/01/2024,01/02/2024,381.73,,JCB Finance (Leasing) Ltd
"Facilities, Fleet & Decarbonisation",Transport Department,Communities & Place,Transport,Transport,Contract Hire and Operating Leases,Vehicle Leases,,12/01/2024,01/02/2024,381.73,,JCB Finance (Leasing) Ltd
"Facilities, Fleet & Decarbonisation",Transport Department,Communities & Place,Transport,Transport,Contract Hire and Operating Leases,Vehicle Leases,,12/01/2024,01/02/2024,1908.65,,JCB Finance (Leasing) Ltd
Schools Total,School Group 7 � Pupil Capacity 501-1800,MCC Schools,Chepstow School,Supplies & Services,"Equipment, Furniture and Materials",Provisions.,,14/02/2024,27/02/2024,59.94,,Better Equipped Educational Supplies
Children Services,Children Services Other,Social Care and Health,External Placements - CLA,Third Party Payments,Third Party,Fostering/Adoption Allowances,,01/02/2024,27/02/2024,3560.57,,Family Fostering Partners
Children Services,Children Services Other,Social Care and Health,External Placements - CLA,Third Party Payments,Third Party,Fostering/Adoption Allowances,,01/02/2024,09/02/2024,2210,,Foster Care Associates Limited (FCA)
"Leisure, Youth & Outdoor Adventure",Youth & Education,MonLife Directorate,Gilwern,Supplies & Services,"Equipment, Furniture and Materials",Provisions.,,20/02/2024,28/02/2024,-188.73,,Castell Howell Foods Ltd
Schools Total,School Group 7 � Pupil Capacity 501-1800,MCC Schools,Chepstow School,Supplies & Services,"Equipment, Furniture and Materials",Provisions.,,02/02/2024,15/02/2024,250,,South East Wales Schools Athletics Association
Schools Total,School Group 2 � Pupil Capacity 144-314,MCC Schools,Thornwell Primary School,Supplies & Services,"Printing, Stationery and General Office Expenses",Stationery,,17/01/2024,07/02/2024,5.82,,Amazon Payments UK Limited
Schools Total,School Group 2 � Pupil Capacity 144-314,MCC Schools,Castle Park Primary School,Supplies & Services,"Printing, Stationery and General Office Expenses",Photocopying.,,06/02/2024,08/02/2024,110.86,,Sharp Business Systems UK plc
Schools Total,School Group 2 � Pupil Capacity 144-314,MCC Schools,Archbishop Rowan Williams CiW Primary School (VA),Supplies & Services,"Printing, Stationery and General Office Expenses",Photocopying.,,09/12/2023,05/02/2024,967.37,,PEAC UK Finance
Schools Total,School Group 2 � Pupil Capacity 144-314,MCC Schools,Ysgol Gymraeg Y Fenni,Supplies & Services,"Printing, Stationery and General Office Expenses",Photocopying.,,29/01/2024,21/02/2024,213.15,,Blue Sky Digital Solutions ltd
Schools Total,School Group 7 � Pupil Capacity 501-1800,MCC Schools,Monmouth Comprehensive,Supplies & Services,"Printing, Stationery and General Office Expenses",Stationery,,15/02/2024,26/02/2024,1500,,skylark adventures Ltd
Schools Total,School Group 2 � Pupil Capacity 144-314,MCC Schools,Kymin View Primary School,Supplies & Services,"Printing, Stationery and General Office Expenses",Stationery,,05/02/2024,12/02/2024,6.09,,Hope Education Ltd
Schools Total,School Group 2 � Pupil Capacity 144-314,MCC Schools,Kymin View Primary School,Supplies & Services,"Printing, Stationery and General Office Expenses",Stationery,,05/02/2024,12/02/2024,8.37,,Hope Education Ltd
Schools Total,School Group 2 � Pupil Capacity 144-314,MCC Schools,Kymin View Primary School,Supplies & Services,"Printing, Stationery and General Office Expenses",Stationery,,05/02/2024,12/02/2024,8.76,,Hope Education Ltd
Schools Total,School Group 2 � Pupil Capacity 144-314,MCC Schools,Kymin View Primary School,Supplies & Services,"Printing, Stationery and General Office Expenses",Stationery,,05/02/2024,12/02/2024,7.3,,Hope Education Ltd
Schools Total,School Group 2 � Pupil Capacity 144-314,MCC Schools,Kymin View Primary School,Supplies & Services,"Printing, Stationery and General Office Expenses",Stationery,,05/02/2024,12/02/2024,14.99,,Hope Education Ltd
Schools Total,School Group 2 � Pupil Capacity 144-314,MCC Schools,Kymin View Primary School,Supplies & Services,"Printing, Stationery and General Office Expenses",Stationery,,05/02/2024,12/02/2024,7.54,,Hope Education Ltd
Schools Total,School Group 2 � Pupil Capacity 144-314,MCC Schools,Kymin View Primary School,Supplies & Services,"Printing, Stationery and General Office Expenses",Stationery,,05/02/2024,12/02/2024,9.66,,Hope Education Ltd
Schools Total,School Group 2 � Pupil Capacity 144-314,MCC Schools,Kymin View Primary School,Supplies & Services,"Printing, Stationery and General Office Expenses",Stationery,,05/02/2024,12/02/2024,5.09,,Hope Education Ltd
Schools Total,School Group 2 � Pupil Capacity 144-314,MCC Schools,Cross Ash Primary School,Supplies & Services,"Printing, Stationery and General Office Expenses",Photocopying.,,13/02/2024,21/02/2024,57.54,,Konica Minolta Bus. Solutions (UK) Ltd
Schools Total,School Group 2 � Pupil Capacity 144-314,MCC Schools,Cross Ash Primary School,Supplies & Services,"Printing, Stationery and General Office Expenses",Photocopying.,,13/02/2024,21/02/2024,78.78,,Konica Minolta Bus. Solutions (UK) Ltd
Schools Total,School Group 7 � Pupil Capacity 501-1800,MCC Schools,Monmouth Comprehensive,Supplies & Services,"Printing, Stationery and General Office Expenses",Stationery,,22/02/2024,28/02/2024,19.08,,Screwfix Trade UK
Schools Total,School Group 2 � Pupil Capacity 144-314,MCC Schools,Kymin View Primary School,Supplies & Services,"Printing, Stationery and General Office Expenses",Stationery,,05/02/2024,12/02/2024,11.04,,Hope Education Ltd
Schools Total,School Group 2 � Pupil Capacity 144-314,MCC Schools,Kymin View Primary School,Supplies & Services,"Printing, Stationery and General Office Expenses",Stationery,,05/02/2024,12/02/2024,42.38,,Hope Education Ltd
Schools Total,School Group 2 � Pupil Capacity 144-314,MCC Schools,Kymin View Primary School,Supplies & Services,"Printing, Stationery and General Office Expenses",Stationery,,05/02/2024,12/02/2024,12.05,,Hope Education Ltd
Schools Total,School Group 2 � Pupil Capacity 144-314,MCC Schools,Kymin View Primary School,Supplies & Services,"Printing, Stationery and General Office Expenses",Stationery,,05/02/2024,12/02/2024,3.16,,Hope Education Ltd
Schools Total,School Group 2 � Pupil Capacity 144-314,MCC Schools,Kymin View Primary School,Supplies & Services,"Printing, Stationery and General Office Expenses",Stationery,,05/02/2024,12/02/2024,6.56,,Hope Education Ltd
Schools Total,School Group 2 � Pupil Capacity 144-314,MCC Schools,Kymin View Primary School,Supplies & Services,"Printing, Stationery and General Office Expenses",Stationery,,05/02/2024,12/02/2024,27.96,,Hope Education Ltd
Schools Total,School Group 2 � Pupil Capacity 144-314,MCC Schools,Kymin View Primary School,Supplies & Services,"Printing, Stationery and General Office Expenses",Stationery,,05/02/2024,12/02/2024,1.54,,Hope Education Ltd
Schools Total,School Group 2 � Pupil Capacity 144-314,MCC Schools,Kymin View Primary School,Supplies & Services,"Printing, Stationery and General Office Expenses",Stationery,,05/02/2024,12/02/2024,41.79,,Hope Education Ltd
Schools Total,School Group 2 � Pupil Capacity 144-314,MCC Schools,Kymin View Primary School,Supplies & Services,"Printing, Stationery and General Office Expenses",Stationery,,05/02/2024,12/02/2024,6.75,,Hope Education Ltd
Schools Total,School Group 2 � Pupil Capacity 144-314,MCC Schools,Kymin View Primary School,Supplies & Services,"Printing, Stationery and General Office Expenses",Stationery,,05/02/2024,12/02/2024,11.37,,Hope Education Ltd
Schools Total,School Group 2 � Pupil Capacity 144-314,MCC Schools,Kymin View Primary School,Supplies & Services,"Printing, Stationery and General Office Expenses",Stationery,,05/02/2024,12/02/2024,13.39,,Hope Education Ltd
Schools Total,School Group 2 � Pupil Capacity 144-314,MCC Schools,Kymin View Primary School,Supplies & Services,"Printing, Stationery and General Office Expenses",Stationery,,05/02/2024,12/02/2024,4.01,,Hope Education Ltd
Schools Total,School Group 2 � Pupil Capacity 144-314,MCC Schools,Kymin View Primary School,Supplies & Services,"Printing, Stationery and General Office Expenses",Stationery,,05/02/2024,12/02/2024,19.96,,Hope Education Ltd
Schools Total,School Group 2 � Pupil Capacity 144-314,MCC Schools,Llantilio Pertholey CiW Primary School (VC),Supplies & Services,"Printing, Stationery and General Office Expenses",Photocopying.,,07/02/2024,12/02/2024,378.71,,Konica Minolta Bus. Solutions (UK) Ltd
Schools Total,School Group 2 � Pupil Capacity 144-314,MCC Schools,Llanfoist Fawr Primary School,Supplies & Services,"Printing, Stationery and General Office Expenses",Stationery,,29/01/2024,08/02/2024,22,,Blue Sky Digital Solutions ltd
Schools Total,School Group 2 � Pupil Capacity 144-314,MCC Schools,Dewstow Primary School,Supplies & Services,"Printing, Stationery and General Office Expenses",Photocopying.,,31/01/2024,08/02/2024,265.14,,Blue Sky Digital Solutions ltd
Schools Total,School Group 2 � Pupil Capacity 144-314,MCC Schools,Our Lady & St Michael's (OLSM) RC Primary School (VA),Supplies & Services,"Printing, Stationery and General Office Expenses",Photocopying.,,13/12/2023,08/02/2024,489.63,,Konica Minolta Bus. Solutions (UK) Ltd
"Facilities, Fleet & Decarbonisation",Home to School Transport Dept,Communities & Place,Special Educational Needs,Transport,Contract Hire and Operating Leases,PTU Vehicle Contracts,,13/02/2024,14/02/2024,3448.93,,Corbin's Cars
"Facilities, Fleet & Decarbonisation",Home to School Transport Dept,Communities & Place,Special Educational Needs,Transport,Contract Hire and Operating Leases,PTU Vehicle Contracts,,13/02/2024,14/02/2024,4870,,G & H Minibus
"Facilities, Fleet & Decarbonisation",Home to School Transport Dept,Communities & Place,Special Educational Needs,Transport,Contract Hire and Operating Leases,PTU Vehicle Contracts,,13/02/2024,14/02/2024,4925.25,,Jay's Taxis
"Facilities, Fleet & Decarbonisation",Home to School Transport Dept,Communities & Place,Special Educational Needs,Transport,Contract Hire and Operating Leases,PTU Vehicle Contracts,,13/02/2024,14/02/2024,2348.5,,Jems Taxi
"Facilities, Fleet & Decarbonisation",Home to School Transport Dept,Communities & Place,Special Educational Needs,Transport,Contract Hire and Operating Leases,PTU Vehicle Contracts,,13/02/2024,14/02/2024,20799.96,,K & M Taxis Executive Hire Ltd
"Facilities, Fleet & Decarbonisation",Home to School Transport Dept,Communities & Place,Special Educational Needs,Transport,Contract Hire and Operating Leases,PTU Vehicle Contracts,,13/02/2024,14/02/2024,2362.5,,Lainey's Taxis
Schools Total,School Group 7 � Pupil Capacity 501-1800,MCC Schools,King Henry 3-19 School,Employees,Direct Employee Expenses,Agency Staff,,04/02/2024,12/02/2024,240.9,,New Directions Education Ltd
Schools Total,School Group 7 � Pupil Capacity 501-1800,MCC Schools,King Henry 3-19 School,Employees,Direct Employee Expenses,Agency Staff,,04/02/2024,12/02/2024,240.9,,New Directions Education Ltd
Schools Total,School Group 7 � Pupil Capacity 501-1800,MCC Schools,King Henry 3-19 School,Employees,Direct Employee Expenses,Agency Staff,,04/02/2024,12/02/2024,240.9,,New Directions Education Ltd
Schools Total,School Group 7 � Pupil Capacity 501-1800,MCC Schools,King Henry 3-19 School,Employees,Direct Employee Expenses,Agency Staff,,04/02/2024,12/02/2024,240.9,,New Directions Education Ltd
Schools Total,School Group 7 � Pupil Capacity 501-1800,MCC Schools,King Henry 3-19 School,Employees,Direct Employee Expenses,Agency Staff,,04/02/2024,12/02/2024,226,,New Directions Education Ltd
Schools Total,School Group 7 � Pupil Capacity 501-1800,MCC Schools,King Henry 3-19 School,Employees,Direct Employee Expenses,Agency Staff,,04/02/2024,12/02/2024,226,,New Directions Education Ltd
Schools Total,School Group 7 � Pupil Capacity 501-1800,MCC Schools,King Henry 3-19 School,Employees,Direct Employee Expenses,Agency Staff,,04/02/2024,12/02/2024,226,,New Directions Education Ltd
Schools Total,School Group 7 � Pupil Capacity 501-1800,MCC Schools,Monmouth Comprehensive,Supplies & Services,Services,Residential Trips,,23/01/2024,12/02/2024,3300,,Prosceneium Limited
Adult Services,Community Care Team,Social Care and Health,Abergavenny Adult Team,Third Party Payments,Third Party,Personal Care.,,13/02/2024,14/02/2024,365.37,,Allied Healthcare Services Limited
Schools Total,Schools,MCC Schools,Pupil Referral Unit,Employees,Direct Employee Expenses,Agency Staff,,07/02/2024,19/02/2024,1088,,Back Office Support Services Ltd (Education Supply Pool)
Adult Services,Community Care Team,Social Care and Health,Abergavenny Adult Team,Third Party Payments,Third Party,Personal Care.,,27/02/2024,29/02/2024,866.14,,REDACTED PERSONAL DATA
Adult Services,Community Care Team,Social Care and Health,Abergavenny Adult Team,Third Party Payments,Third Party,Personal Care.,,27/02/2024,29/02/2024,1762.54,,REDACTED PERSONAL DATA
Adult Services,Community Care Team,Social Care and Health,Monmouth Adult Team,Third Party Payments,Third Party,Personal Care.,,27/02/2024,29/02/2024,6169.07,,REDACTED PERSONAL DATA
Adult Services,Community Care Team,Social Care and Health,Monmouth Adult Team,Third Party Payments,Third Party,Personal Care.,,27/02/2024,29/02/2024,180,,REDACTED PERSONAL DATA
Adult Services,Community Care Team,Social Care and Health,Monmouth Adult Team,Third Party Payments,Third Party,Personal Care.,,27/02/2024,29/02/2024,3021.43,,REDACTED PERSONAL DATA
Adult Services,Community Care Team,Social Care and Health,Monmouth Adult Team,Third Party Payments,Third Party,Personal Care.,,27/02/2024,29/02/2024,15314.53,,REDACTED PERSONAL DATA
Adult Services,Community Care Team,Social Care and Health,Chepstow Adult Team,Third Party Payments,Third Party,Personal Care.,,27/02/2024,29/02/2024,3711.99,,REDACTED PERSONAL DATA
Adult Services,Community Care Team,Social Care and Health,Chepstow Adult Team,Third Party Payments,Third Party,Personal Care.,,27/02/2024,29/02/2024,248.06,,REDACTED PERSONAL DATA
Adult Services,Community Care Team,Social Care and Health,Abergavenny Adult Team,Third Party Payments,Third Party,Personal Care.,,13/02/2024,14/02/2024,3025.65,,Allied Healthcare Services Limited
Adult Services,Community Care Team,Social Care and Health,Abergavenny Adult Team,Third Party Payments,Third Party,Personal Care.,,13/02/2024,14/02/2024,3235.13,,Allied Healthcare Services Limited
Schools Total,School Group 7 � Pupil Capacity 501-1800,MCC Schools,King Henry 3-19 School,Employees,Direct Employee Expenses,Agency Staff,,04/02/2024,12/02/2024,226,,New Directions Education Ltd
Schools Total,School Group 7 � Pupil Capacity 501-1800,MCC Schools,King Henry 3-19 School,Employees,Direct Employee Expenses,Agency Staff,,04/02/2024,12/02/2024,142.02,,New Directions Education Ltd
Schools Total,School Group 7 � Pupil Capacity 501-1800,MCC Schools,King Henry 3-19 School,Employees,Direct Employee Expenses,Agency Staff,,04/02/2024,12/02/2024,142.02,,New Directions Education Ltd
Schools Total,School Group 7 � Pupil Capacity 501-1800,MCC Schools,King Henry 3-19 School,Employees,Direct Employee Expenses,Agency Staff,,04/02/2024,12/02/2024,142.02,,New Directions Education Ltd
Schools Total,School Group 7 � Pupil Capacity 501-1800,MCC Schools,King Henry 3-19 School,Employees,Direct Employee Expenses,Agency Staff,,04/02/2024,12/02/2024,58.14,,New Directions Education Ltd
Children Services,Supporting Children & Young People Service,Social Care and Health,Achieving Change Together Team (ACCT),Supplies & Services,Services,Training Charges,,18/04/2023,15/02/2024,495,,Family Rights Group
"Facilities, Fleet & Decarbonisation",Catering Services,Communities & Place,Schools Catering,Supplies & Services,Services,Training Charges,,13/11/2023,15/02/2024,630,,Coleg Gwent
Neighbourhood Services,Highways,Communities & Place,Overhead - SWTRA / External,Supplies & Services,Services,Training Charges,,31/01/2024,28/02/2024,70,,Lantra
SCH Support,Grant Schemes SHS,Social Care and Health,Training,Supplies & Services,Services,Training Charges,,23/02/2024,28/02/2024,915.63,,Newport City Council
Neighbourhood Services,Waste and Street Services,Communities & Place,Refuse & Cleansing Operations,Supplies & Services,Services,Training Charges,,31/01/2024,28/02/2024,35,,Lantra
"Facilities, Fleet & Decarbonisation",Regional Transport,Communities & Place,Ramp Up Scheme � BSSG,Supplies & Services,Grants and Subscriptions,Grants Payable,,08/02/2024,08/02/2024,789.32,,Accessible Caring Transport (ACT)
Neighbourhood Services,Waste and Street Services,Communities & Place,Refuse & Cleansing Operations,Supplies & Services,Services,Training Charges,,12/02/2024,14/02/2024,62.5,,Heads Of The Valley Training Con
Neighbourhood Services,Waste and Street Services,Communities & Place,Refuse & Cleansing Operations,Supplies & Services,Services,Training Charges,,26/02/2024,28/02/2024,240,,Heads Of The Valley Training Con
Neighbourhood Services,Highways,Communities & Place,Overhead - Mon Highways,Supplies & Services,Services,Training Charges,,26/02/2024,28/02/2024,80,,Heads Of The Valley Training Con
SCH Support,Grant Schemes SHS,Social Care and Health,Training,Supplies & Services,Services,Training Charges,,23/02/2024,28/02/2024,105,,Blaenau Gwent County Borough Council
"Facilities, Fleet & Decarbonisation",Transport Department,Communities & Place,Transport,Supplies & Services,Services,Training Charges,,26/02/2024,28/02/2024,80,,Heads Of The Valley Training Con
Neighbourhood Services,Highways,Communities & Place,Overhead - SWTRA / External,Supplies & Services,Services,Training Charges,,15/12/2023,21/02/2024,45,,Lantra
SCH Support,Grant Schemes SHS,Social Care and Health,Training,Supplies & Services,Services,Training Charges,,23/02/2024,28/02/2024,950,,Newport City Council
Schools Total,School Group 2 � Pupil Capacity 144-314,MCC Schools,Gilwern Primary School,Supplies & Services,Services,Training Charges,,31/01/2024,12/02/2024,800,,Helen Bowen Education Consultancy Ltd
"Enterprise, Housing & Community Animation",Business Growth & Enterprise,Communities & Place,Infuse � East Wales,Supplies & Services,Grants and Subscriptions,Grants Payable,,02/02/2024,12/02/2024,14540.81,,Cardiff University
Schools Total,School Group 2 � Pupil Capacity 144-314,MCC Schools,Thornwell Primary School,Supplies & Services,Services,Training Charges,,17/01/2024,13/03/2024,300,,Positive Behaviour Team Ltd.
"Enterprise, Housing & Community Animation",Business Growth & Enterprise,Communities & Place,CELT Shared Prosperity Fund - Adult,Supplies & Services,Services,Assistance To Clients,,06/02/2024,12/02/2024,1400,,Mind Matters Monmouth Limited
SCH Support,Grant Schemes SHS,Social Care and Health,Training,Supplies & Services,Services,Training Charges,,19/01/2024,27/02/2024,1500,,REDACTED PERSONAL DATA
"Facilities, Fleet & Decarbonisation",Regional Transport,Communities & Place,Bus Services Support Grant,Supplies & Services,Grants and Subscriptions,Grants Payable,,08/02/2024,08/02/2024,2638.59,,Accessible Caring Transport (ACT)
"Facilities, Fleet & Decarbonisation",Regional Transport,Communities & Place,Bus Services Support Grant,Supplies & Services,Grants and Subscriptions,Grants Payable,,08/02/2024,08/02/2024,2267.73,,Bridgend County Borough Council
"Facilities, Fleet & Decarbonisation",Regional Transport,Communities & Place,Bus Services Support Grant,Supplies & Services,Grants and Subscriptions,Grants Payable,,08/02/2024,08/02/2024,2682.41,,Bridgend Community Transport Ltd
"Facilities, Fleet & Decarbonisation",Regional Transport,Communities & Place,Bus Services Support Grant,Supplies & Services,Grants and Subscriptions,Grants Payable,,08/02/2024,08/02/2024,3967.85,,Caerphilly CBC
"Facilities, Fleet & Decarbonisation",Regional Transport,Communities & Place,Bus Services Support Grant,Supplies & Services,Grants and Subscriptions,Grants Payable,,08/02/2024,08/02/2024,978.46,,Caerphilly CBC
"Facilities, Fleet & Decarbonisation",Regional Transport,Communities & Place,Bus Services Support Grant,Supplies & Services,Grants and Subscriptions,Grants Payable,,08/02/2024,08/02/2024,142.69,,REDACTED PERSONAL DATA
"Facilities, Fleet & Decarbonisation",Regional Transport,Communities & Place,Bus Services Support Grant,Supplies & Services,Grants and Subscriptions,Grants Payable,,08/02/2024,08/02/2024,113.77,,East Vale Community Transport
"Facilities, Fleet & Decarbonisation",Regional Transport,Communities & Place,Bus Services Support Grant,Supplies & Services,Grants and Subscriptions,Grants Payable,,08/02/2024,08/02/2024,1564.87,,Newport City Council
"Facilities, Fleet & Decarbonisation",Regional Transport,Communities & Place,Bus Services Support Grant,Supplies & Services,Grants and Subscriptions,Grants Payable,,08/02/2024,08/02/2024,1963.92,,Torfaen Community Transport
"Facilities, Fleet & Decarbonisation",Regional Transport,Communities & Place,Bus Services Support Grant,Supplies & Services,Grants and Subscriptions,Grants Payable,,08/02/2024,08/02/2024,2825.05,,Travol Community Transport
"Facilities, Fleet & Decarbonisation",Regional Transport,Communities & Place,Bus Services Support Grant,Supplies & Services,Grants and Subscriptions,Grants Payable,,08/02/2024,08/02/2024,2163.65,,Vale Of Glamorgan Council
"Facilities, Fleet & Decarbonisation",Regional Transport,Communities & Place,Bus Services Support Grant,Supplies & Services,Grants and Subscriptions,Grants Payable,,08/02/2024,08/02/2024,779.62,,Voluntary Emergency Service Transport
"Facilities, Fleet & Decarbonisation",Regional Transport,Communities & Place,Bus Services Support Grant,Supplies & Services,Grants and Subscriptions,Grants Payable,,08/02/2024,08/02/2024,572.81,,Village and Valleys
"Facilities, Fleet & Decarbonisation",Regional Transport,Communities & Place,Ramp Up Scheme � BSSG,Supplies & Services,Grants and Subscriptions,Grants Payable,,08/02/2024,08/02/2024,97898.33,,Varteg Motors Ltd
Schools Total,School Group 7 � Pupil Capacity 501-1800,MCC Schools,King Henry 3-19 School,Employees,Direct Employee Expenses,Agency Staff,,04/02/2024,12/02/2024,58.14,,New Directions Education Ltd
Schools Total,School Group 7 � Pupil Capacity 501-1800,MCC Schools,King Henry 3-19 School,Employees,Direct Employee Expenses,Agency Staff,,04/02/2024,12/02/2024,58.14,,New Directions Education Ltd
"Facilities, Fleet & Decarbonisation",Transport Department,Communities & Place,Transport,Transport,Direct Transport Costs,Tyres And Tubes,,25/01/2024,05/02/2024,1380,,"Exhaust, Tyres & Batteries (Worcester) Ltd"
"Facilities, Fleet & Decarbonisation",Transport Department,Communities & Place,Transport,Transport,Direct Transport Costs,Spare Parts,,30/01/2024,05/02/2024,31,,Euro Commercials (South Wales) L
"Facilities, Fleet & Decarbonisation",Transport Department,Communities & Place,Transport,Transport,Direct Transport Costs,Spare Parts,,30/01/2024,05/02/2024,29.26,,Euro Commercials (South Wales) L
"Facilities, Fleet & Decarbonisation",Transport Department,Communities & Place,Transport,Transport,Direct Transport Costs,Spare Parts,,30/01/2024,05/02/2024,455.7,,Euro Commercials (South Wales) L
"Facilities, Fleet & Decarbonisation",Transport Department,Communities & Place,Transport,Transport,Direct Transport Costs,Spare Parts,,30/01/2024,05/02/2024,192.95,,Euro Commercials (South Wales) L
Neighbourhood Services,Waste and Street Services,Communities & Place,Refuse & Cleansing Operations,Third Party Payments,Third Party,General Contracts,,01/02/2024,15/02/2024,13912.08,,JPK Trade Supplies Ltd
Neighbourhood Services,Waste and Street Services,Communities & Place,Refuse & Cleansing Operations,Third Party Payments,Third Party,General Contracts,,01/02/2024,15/02/2024,4442.4,,JPK Trade Supplies Ltd
Children Services,Children Services Teams,Social Care and Health,Long Term Support Team,Supplies & Services,Services,Private Nursery Fees,,31/01/2024,15/02/2024,360,,The Rainbow Tree Wales
"Facilities, Fleet & Decarbonisation",Home to School Transport Dept,Communities & Place,Special Educational Needs,Transport,Contract Hire and Operating Leases,PTU Vehicle Contracts,,13/02/2024,14/02/2024,1360,,Maniver Hussain Ali LTD
"Facilities, Fleet & Decarbonisation",Home to School Transport Dept,Communities & Place,Special Educational Needs,Transport,Contract Hire and Operating Leases,PTU Vehicle Contracts,,13/02/2024,14/02/2024,5960.59,,Murrays Minibus Hire
"Facilities, Fleet & Decarbonisation",Home to School Transport Dept,Communities & Place,Special Educational Needs,Transport,Contract Hire and Operating Leases,PTU Vehicle Contracts,,13/02/2024,14/02/2024,2866.5,,Oscars Taxis
"Facilities, Fleet & Decarbonisation",Home to School Transport Dept,Communities & Place,Special Educational Needs,Transport,Contract Hire and Operating Leases,PTU Vehicle Contracts,,13/02/2024,14/02/2024,4173.75,,RST TAXIS
"Facilities, Fleet & Decarbonisation",Home to School Transport Dept,Communities & Place,Special Educational Needs,Transport,Contract Hire and Operating Leases,PTU Vehicle Contracts,,13/02/2024,14/02/2024,5324,,Usk Cabs
"Facilities, Fleet & Decarbonisation",Home to School Transport Dept,Communities & Place,Special Educational Needs,Transport,Contract Hire and Operating Leases,PTU Vehicle Contracts,,13/02/2024,14/02/2024,27290.88,,Zahid Limited
"Facilities, Fleet & Decarbonisation",Home to School Transport Dept,Communities & Place,Special Educational Needs,Transport,Contract Hire and Operating Leases,PTU Vehicle Contracts,,13/02/2024,14/02/2024,6613.68,,Gwent Travel Solutions Ltd
"Facilities, Fleet & Decarbonisation",Transport Department,Communities & Place,Transport,Transport,Direct Transport Costs,Spare Parts,,31/01/2024,05/02/2024,63.64,,Euro Commercials (South Wales) L
Schools Total,School Group 2 � Pupil Capacity 144-314,MCC Schools,Kymin View Primary School,Employees,Direct Employee Expenses,Agency Staff,,04/02/2024,12/02/2024,214.43,,New Directions Education Ltd
Schools Total,School Group 2 � Pupil Capacity 144-314,MCC Schools,Kymin View Primary School,Employees,Direct Employee Expenses,Agency Staff,,04/02/2024,12/02/2024,214.43,,New Directions Education Ltd
Schools Total,School Group 2 � Pupil Capacity 144-314,MCC Schools,Kymin View Primary School,Employees,Direct Employee Expenses,Agency Staff,,04/02/2024,12/02/2024,214.43,,New Directions Education Ltd
Schools Total,School Group 2 � Pupil Capacity 144-314,MCC Schools,Kymin View Primary School,Employees,Direct Employee Expenses,Agency Staff,,04/02/2024,12/02/2024,214.43,,New Directions Education Ltd
Schools Total,School Group 7 � Pupil Capacity 501-1800,MCC Schools,King Henry 3-19 School,Employees,Direct Employee Expenses,Agency Staff,,04/02/2024,12/02/2024,58.14,,New Directions Education Ltd
Schools Total,School Group 7 � Pupil Capacity 501-1800,MCC Schools,King Henry 3-19 School,Employees,Direct Employee Expenses,Agency Staff,,04/02/2024,12/02/2024,215.6,,New Directions Education Ltd
Schools Total,School Group 7 � Pupil Capacity 501-1800,MCC Schools,King Henry 3-19 School,Employees,Direct Employee Expenses,Agency Staff,,04/02/2024,12/02/2024,215.6,,New Directions Education Ltd
Adult Services,Community Care Team,Social Care and Health,Abergavenny Adult Team,Third Party Payments,Third Party,Personal Care.,,13/02/2024,14/02/2024,1707.8,,Allied Healthcare Services Limited
Adult Services,Community Care Team,Social Care and Health,Abergavenny Adult Team,Third Party Payments,Third Party,Personal Care.,,13/02/2024,14/02/2024,309.84,,Allied Healthcare Services Limited
Adult Services,Community Care Team,Social Care and Health,Abergavenny Adult Team,Third Party Payments,Third Party,Personal Care.,,27/02/2024,29/02/2024,1156.59,,REDACTED PERSONAL DATA
Adult Services,Community Care Team,Social Care and Health,Chepstow Adult Team,Third Party Payments,Third Party,Personal Care.,,27/02/2024,29/02/2024,1400.19,,REDACTED PERSONAL DATA
Adult Services,Community Care Team,Social Care and Health,Monmouth Adult Team,Third Party Payments,Third Party,Personal Care.,,27/02/2024,29/02/2024,383.79,,REDACTED PERSONAL DATA
Adult Services,Community Care Team,Social Care and Health,Monmouth Adult Team,Third Party Payments,Third Party,Personal Care.,,27/02/2024,29/02/2024,1923.09,,REDACTED PERSONAL DATA
"Facilities, Fleet & Decarbonisation",Home to School Transport Dept,Communities & Place,Home To School Transport,Transport,Direct Transport Costs,Vechicles Repairs and Maintenance,,23/02/2024,29/02/2024,39.2,,Mon & Border Motor Factors Ltd
"Facilities, Fleet & Decarbonisation",Regional Transport,Communities & Place,Ramp Up Scheme � BSSG,Supplies & Services,Grants and Subscriptions,Grants Payable,,08/02/2024,08/02/2024,701028.37,,Cardiff Bus
"Facilities, Fleet & Decarbonisation",Regional Transport,Communities & Place,Ramp Up Scheme � BSSG,Supplies & Services,Grants and Subscriptions,Grants Payable,,08/02/2024,08/02/2024,9759.47,,Edwards Coaches Ltd
"Facilities, Fleet & Decarbonisation",Regional Transport,Communities & Place,Ramp Up Scheme � BSSG,Supplies & Services,Grants and Subscriptions,Grants Payable,,08/02/2024,08/02/2024,164608.68,,First Cymru Buses Ltd
"Facilities, Fleet & Decarbonisation",Regional Transport,Communities & Place,Ramp Up Scheme � BSSG,Supplies & Services,Grants and Subscriptions,Grants Payable,,08/02/2024,08/02/2024,70837.72,,Harris Coaches
"Facilities, Fleet & Decarbonisation",Regional Transport,Communities & Place,Ramp Up Scheme � BSSG,Supplies & Services,Grants and Subscriptions,Grants Payable,,08/02/2024,08/02/2024,9340,,Henley's Bus Service Ltd
Standards,Additional Learning Needs,Children & Young People,Psychology Service,Supplies & Services,Services,Training Charges,,23/01/2024,05/02/2024,2700,,REDACTED PERSONAL DATA
Corporate (COL),Insurance,Corporate Costs & Levies,Insurance: Public Liability,Supplies & Services,Miscellaneous Expenses,Insurance Settlement Expenditure(Direct),,01/09/2023,06/02/2024,3394.5,,Dolmans Solicitors
Corporate (COL),Insurance,Corporate Costs & Levies,Insurance: Public Liability,Supplies & Services,Miscellaneous Expenses,Insurance Settlement Expenditure(Direct),,01/09/2023,06/02/2024,-3394.5,,Dolmans Solicitors
Adult Services,Direct Care,Social Care and Health,Care at Home,Supplies & Services,Services,Training Charges,,01/02/2024,06/02/2024,1520,,Whitecliff Off Road Driving Centre Ltd
"Leisure, Youth & Outdoor Adventure",Youth & Education,MonLife Directorate,Gilwern,Supplies & Services,Services,Training Charges,,30/01/2024,06/02/2024,585,,Helix Operations Ltd
"Facilities, Fleet & Decarbonisation",Catering Services,Communities & Place,Schools Catering,Supplies & Services,Services,Training Charges,,11/12/2023,19/02/2024,840,,Coleg Gwent
Adult Services,Direct Care Residential,Social Care and Health,Mardy Park,Supplies & Services,"Clothes, Uniform and Laundry",Clothing And Uniforms,,19/02/2024,26/02/2024,123.23,,Nisbets
"Facilities, Fleet & Decarbonisation",Regional Transport,Communities & Place,Ramp Up Scheme � BSSG,Supplies & Services,Grants and Subscriptions,Grants Payable,,21/02/2024,22/02/2024,61059.99,,Caerphilly CBC
"Facilities, Fleet & Decarbonisation",Regional Transport,Communities & Place,Ramp Up Scheme � BSSG,Supplies & Services,Grants and Subscriptions,Grants Payable,,21/02/2024,22/02/2024,1107.5,,Peter's Minibus Hire
"Facilities, Fleet & Decarbonisation",Regional Transport,Communities & Place,Ramp Up Scheme � BSSG,Supplies & Services,Grants and Subscriptions,Grants Payable,,21/02/2024,22/02/2024,308841.63,,New Adventure Travel
"Facilities, Fleet & Decarbonisation",Regional Transport,Communities & Place,Ramp Up Scheme � BSSG,Supplies & Services,Grants and Subscriptions,Grants Payable,,21/02/2024,22/02/2024,87166.28,,Henley's Bus Service Ltd
"Facilities, Fleet & Decarbonisation",Regional Transport,Communities & Place,Ramp Up Scheme � BSSG,Supplies & Services,Grants and Subscriptions,Grants Payable,,21/02/2024,22/02/2024,146077.56,,Varteg Motors Ltd
"Facilities, Fleet & Decarbonisation",Regional Transport,Communities & Place,Ramp Up Scheme � BSSG,Supplies & Services,Grants and Subscriptions,Grants Payable,,09/02/2024,09/02/2024,-8605.86,,Thomas of Rhondda
"Facilities, Fleet & Decarbonisation",Regional Transport,Communities & Place,Ramp Up Scheme � BSSG,Supplies & Services,Grants and Subscriptions,Grants Payable,,09/02/2024,09/02/2024,-8605.86,,Thomas of Rhondda
"Facilities, Fleet & Decarbonisation",Regional Transport,Communities & Place,Ramp Up Scheme � BSSG,Supplies & Services,Grants and Subscriptions,Grants Payable,,09/02/2024,09/02/2024,-8605.86,,Thomas of Rhondda
"Facilities, Fleet & Decarbonisation",Regional Transport,Communities & Place,Ramp Up Scheme � BSSG,Supplies & Services,Grants and Subscriptions,Grants Payable,,09/02/2024,09/02/2024,-92159.55,,Edwards Coaches Ltd
"Facilities, Fleet & Decarbonisation",Regional Transport,Communities & Place,Bus Services Support Grant,Supplies & Services,Grants and Subscriptions,Grants Payable,,08/02/2024,08/02/2024,128179.25,,Cardiff Bus
"Facilities, Fleet & Decarbonisation",Regional Transport,Communities & Place,Bus Services Support Grant,Supplies & Services,Grants and Subscriptions,Grants Payable,,08/02/2024,08/02/2024,12927,,Edwards Coaches Ltd
"Facilities, Fleet & Decarbonisation",Regional Transport,Communities & Place,Bus Services Support Grant,Supplies & Services,Grants and Subscriptions,Grants Payable,,08/02/2024,08/02/2024,46192.64,,First Cymru Buses Ltd
"Facilities, Fleet & Decarbonisation",Regional Transport,Communities & Place,Bus Services Support Grant,Supplies & Services,Grants and Subscriptions,Grants Payable,,08/02/2024,08/02/2024,14886.71,,Harris Coaches
"Facilities, Fleet & Decarbonisation",Regional Transport,Communities & Place,Bus Services Support Grant,Supplies & Services,Grants and Subscriptions,Grants Payable,,08/02/2024,08/02/2024,815.72,,Henley's Bus Service Ltd
"Facilities, Fleet & Decarbonisation",Regional Transport,Communities & Place,Bus Services Support Grant,Supplies & Services,Grants and Subscriptions,Grants Payable,,08/02/2024,08/02/2024,1548.99,,Keepings Coaches
"Facilities, Fleet & Decarbonisation",Regional Transport,Communities & Place,Bus Services Support Grant,Supplies & Services,Grants and Subscriptions,Grants Payable,,08/02/2024,08/02/2024,47846.06,,Newport Transport Ltd
"Facilities, Fleet & Decarbonisation",Regional Transport,Communities & Place,Bus Services Support Grant,Supplies & Services,Grants and Subscriptions,Grants Payable,,08/02/2024,08/02/2024,17897.82,,Varteg Motors Ltd
"Facilities, Fleet & Decarbonisation",Regional Transport,Communities & Place,Bus Services Support Grant,Supplies & Services,Grants and Subscriptions,Grants Payable,,08/02/2024,08/02/2024,799.92,,Peyton Travel Ltd
"Facilities, Fleet & Decarbonisation",Regional Transport,Communities & Place,Bus Services Support Grant,Supplies & Services,Grants and Subscriptions,Grants Payable,,08/02/2024,08/02/2024,247540.25,,Stagecoach Services Ltd
"Facilities, Fleet & Decarbonisation",Regional Transport,Communities & Place,Bus Services Support Grant,Supplies & Services,Grants and Subscriptions,Grants Payable,,08/02/2024,08/02/2024,507.64,,Stagecoach Services Ltd
"Facilities, Fleet & Decarbonisation",Home to School Transport Dept,Communities & Place,Home To School Transport,Transport,Direct Transport Costs,Vechicles Repairs and Maintenance,,14/02/2024,29/02/2024,270,,Bulwark Bus & Coach Eng. Ltd
Adult Services,Community Care Team,Social Care and Health,Monmouth Adult Team,Third Party Payments,Third Party,Personal Care.,,28/02/2024,29/02/2024,80.85,,REDACTED PERSONAL DATA
Adult Services,Commissioning Strategy,Social Care and Health,Commissioning Strategy,Third Party Payments,Third Party,General Contracts,,27/02/2024,29/02/2024,37162,,Mind Monmouthshire
Countryside & Culture,Countryside,MonLife Directorate,WG Access Grant,Third Party Payments,Third Party,General Contracts,,27/02/2024,29/02/2024,4734.8,,David Evans Agricultural Ltd
Schools Total,School Group 2 � Pupil Capacity 144-314,MCC Schools,Llantilio Pertholey CiW Primary School (VC),Employees,Direct Employee Expenses,Agency Staff,,27/02/2024,29/02/2024,1289.25,,TeacherActive
Schools Total,SCHGRP3 � School Group 3 � Pupil Capacity 315-500,MCC Schools,Magor CiW Primary School (VA),Employees,Direct Employee Expenses,Agency Staff,,14/02/2024,26/02/2024,468.16,,Axcis Education Recruitment
Schools Total,School Group 2 � Pupil Capacity 144-314,MCC Schools,Dewstow Primary School,Supplies & Services,Services,Residential Trips,,15/01/2024,26/02/2024,332.5,,Techniquest
Schools Total,School Group 2 � Pupil Capacity 144-314,MCC Schools,Rogiet Primary School,Supplies & Services,Services,Residential Trips,,06/02/2024,26/02/2024,60,,National Museums & Galleries of Wales Enterprises Ltd
Neighbourhood Services,Highways,Communities & Place,Street Lighting,Third Party Payments,Third Party,Maintenance Contracts,,23/02/2024,26/02/2024,1193.12,,Centregreat Ltd
Corporate (COL),Corporate (COL),Corporate Costs & Levies,Precepts and Levies,Third Party Payments,Third Party,Joint Financing.,,22/01/2024,26/02/2024,35148.55,,Newport City Council
Adult Services,Community Care Team,Social Care and Health,Monnow Vale,Third Party Payments,Third Party,Third party payments NOT relating to goods or services,,27/03/2023,26/02/2024,41731,,Aneurin Bevan Local Health Board
Neighbourhood Services,Highways,Communities & Place,Winter maintenance,Supplies & Services,"Equipment, Furniture and Materials",Repairs & Maintenance.,,07/12/2023,26/02/2024,9806.83,,Vaisala
Schools Total,Schools,MCC Schools,Pupil Referral Unit,Employees,Direct Employee Expenses,Agency Staff,,07/02/2024,19/02/2024,416,,Back Office Support Services Ltd (Education Supply Pool)
Schools Total,Schools,MCC Schools,Pupil Referral Unit,Employees,Direct Employee Expenses,Agency Staff,,07/02/2024,19/02/2024,1065.24,,Back Office Support Services Ltd (Education Supply Pool)
Schools Total,Schools,MCC Schools,Pupil Referral Unit,Employees,Direct Employee Expenses,Agency Staff,,07/02/2024,19/02/2024,1045.59,,Back Office Support Services Ltd (Education Supply Pool)
"Facilities, Fleet & Decarbonisation",Home to School Transport Dept,Communities & Place,Home To School Transport,Transport,Direct Transport Costs,Vechicles Repairs and Maintenance,,09/02/2024,13/02/2024,195,,Bulwark Bus & Coach Eng. Ltd
Adult Services,Community Care Team,Social Care and Health,Abergavenny Adult Team,Third Party Payments,Third Party,Personal Care.,,13/02/2024,14/02/2024,2585.14,,Allied Healthcare Services Limited
Adult Services,Community Care Team,Social Care and Health,Abergavenny Adult Team,Third Party Payments,Third Party,Personal Care.,,13/02/2024,14/02/2024,2072.33,,Allied Healthcare Services Limited
Adult Services,Community Care Team,Social Care and Health,Abergavenny Adult Team,Third Party Payments,Third Party,Personal Care.,,13/02/2024,14/02/2024,764.36,,Allied Healthcare Services Limited
Adult Services,Community Care Team,Social Care and Health,Abergavenny Adult Team,Third Party Payments,Third Party,Personal Care.,,13/02/2024,14/02/2024,944.62,,Allied Healthcare Services Limited
Adult Services,Community Care Team,Social Care and Health,Abergavenny Adult Team,Third Party Payments,Third Party,Personal Care.,,13/02/2024,14/02/2024,550.34,,Allied Healthcare Services Limited
"Facilities, Fleet & Decarbonisation",Home to School Transport Dept,Communities & Place,Home To School Transport,Transport,Direct Transport Costs,Vechicles Repairs and Maintenance,,09/02/2024,13/02/2024,280,,Bulwark Bus & Coach Eng. Ltd
"Facilities, Fleet & Decarbonisation",Home to School Transport Dept,Communities & Place,Home To School Transport,Transport,Direct Transport Costs,Vechicles Repairs and Maintenance,,09/02/2024,13/02/2024,195,,Bulwark Bus & Coach Eng. Ltd
Adult Services,Community Care Team,Social Care and Health,Abergavenny Adult Team,Third Party Payments,Third Party,Personal Care.,,12/02/2024,13/02/2024,508.8,,My Care My Home Ltd
Adult Services,Community Care Team,Social Care and Health,Abergavenny Adult Team,Third Party Payments,Third Party,Personal Care.,,12/02/2024,13/02/2024,620.1,,My Care My Home Ltd
Schools Total,School Group 7 � Pupil Capacity 501-1800,MCC Schools,Monmouth Comprehensive,Supplies & Services,Services,Residential Trips,,06/02/2024,08/02/2024,3485.46,,Stage Lighting Services
Standards,Early Years,Children & Young People,Flying Start Grant,Supplies & Services,Services,Child Minding Fees,,01/02/2024,08/02/2024,300,,REDACTED PERSONAL DATA
Standards,Early Years,Children & Young People,Flying Start Grant,Supplies & Services,Services,Child Minding Fees,,17/01/2024,08/02/2024,660,,Abergavenny Nursery
"Facilities, Fleet & Decarbonisation",Home to School Transport Dept,Communities & Place,Home To School Transport,Transport,Direct Transport Costs,Vechicles Repairs and Maintenance,,06/02/2024,08/02/2024,195,,Bulwark Bus & Coach Eng. Ltd
"Facilities, Fleet & Decarbonisation",Home to School Transport Dept,Communities & Place,Home To School Transport,Transport,Direct Transport Costs,Vechicles Repairs and Maintenance,,06/02/2024,08/02/2024,260,,Bulwark Bus & Coach Eng. Ltd
"Facilities, Fleet & Decarbonisation",Home to School Transport Dept,Communities & Place,Home To School Transport,Transport,Direct Transport Costs,Vechicles Repairs and Maintenance,,06/02/2024,08/02/2024,455,,Bulwark Bus & Coach Eng. Ltd
"Facilities, Fleet & Decarbonisation",Home to School Transport Dept,Communities & Place,Passenger Transport � Service 65,Transport,Direct Transport Costs,Vechicles Repairs and Maintenance,,05/02/2024,08/02/2024,77.76,,Euro Commercials (South Wales) L
Schools Total,School Group 2 � Pupil Capacity 144-314,MCC Schools,Llanfoist Fawr Primary School,Employees,Direct Employee Expenses,Agency Staff,,04/02/2024,12/02/2024,111.21,,New Directions Education Ltd
Schools Total,School Group 2 � Pupil Capacity 144-314,MCC Schools,Llanfoist Fawr Primary School,Employees,Direct Employee Expenses,Agency Staff,,04/02/2024,12/02/2024,111.21,,New Directions Education Ltd
Schools Total,School Group 2 � Pupil Capacity 144-314,MCC Schools,Llanfoist Fawr Primary School,Employees,Direct Employee Expenses,Agency Staff,,04/02/2024,12/02/2024,111.21,,New Directions Education Ltd
Schools Total,School Group 2 � Pupil Capacity 144-314,MCC Schools,Llanfoist Fawr Primary School,Employees,Direct Employee Expenses,Agency Staff,,04/02/2024,12/02/2024,111.21,,New Directions Education Ltd
Schools Total,School Group 2 � Pupil Capacity 144-314,MCC Schools,Llanfoist Fawr Primary School,Employees,Direct Employee Expenses,Agency Staff,,04/02/2024,12/02/2024,111.21,,New Directions Education Ltd
Schools Total,School Group 2 � Pupil Capacity 144-314,MCC Schools,Llanfoist Fawr Primary School,Employees,Direct Employee Expenses,Agency Staff,,04/02/2024,12/02/2024,123.55,,New Directions Education Ltd
Schools Total,School Group 2 � Pupil Capacity 144-314,MCC Schools,Llanfoist Fawr Primary School,Employees,Direct Employee Expenses,Agency Staff,,04/02/2024,12/02/2024,214.43,,New Directions Education Ltd
Capital Division,Capital Dept,Capital,Capital Programme,Third Party Payments,Third Party,General Contracts,,06/02/2024,08/02/2024,9807,,Ibex Technical Access Ltd
Schools Total,School Group 7 � Pupil Capacity 501-1800,MCC Schools,Monmouth Comprehensive,Employees,Direct Employee Expenses,Agency Staff,,31/01/2024,08/02/2024,912.8,,Teaching Personnel
Schools Total,School Group 7 � Pupil Capacity 501-1800,MCC Schools,Monmouth Comprehensive,Employees,Direct Employee Expenses,Agency Staff,,31/01/2024,08/02/2024,652,,Teaching Personnel
Schools Total,School Group 7 � Pupil Capacity 501-1800,MCC Schools,Monmouth Comprehensive,Employees,Direct Employee Expenses,Agency Staff,,31/01/2024,08/02/2024,668.79,,Hays Specialist Recruitment Ltd
Schools Total,School Group 7 � Pupil Capacity 501-1800,MCC Schools,Monmouth Comprehensive,Employees,Direct Employee Expenses,Agency Staff,,28/01/2024,08/02/2024,592.8,,New Directions Education Ltd
Schools Total,School Group 7 � Pupil Capacity 501-1800,MCC Schools,Monmouth Comprehensive,Employees,Direct Employee Expenses,Agency Staff,,30/01/2024,08/02/2024,1549.13,,TeacherActive
Schools Total,SCHGRP3 � School Group 3 � Pupil Capacity 315-500,MCC Schools,Magor CiW Primary School (VA),Employees,Direct Employee Expenses,Agency Staff,,11/10/2023,08/02/2024,351.12,,Axcis Education Recruitment
Schools Total,School Group 2 � Pupil Capacity 144-314,MCC Schools,Dewstow Primary School,Employees,Direct Employee Expenses,Agency Staff,,22/11/2023,08/02/2024,4232.88,,Teaching Personnel
"Facilities, Fleet & Decarbonisation",Home to School Transport Dept,Communities & Place,Home To School Transport,Transport,Direct Transport Costs,Vechicles Repairs and Maintenance,,05/02/2024,08/02/2024,2040.84,,Howells Training
"Facilities, Fleet & Decarbonisation",Home to School Transport Dept,Communities & Place,Home To School Transport,Transport,Direct Transport Costs,Vechicles Repairs and Maintenance,,31/01/2024,08/02/2024,1725,,Btac Bristol Ltd
Schools Total,School Group 2 � Pupil Capacity 144-314,MCC Schools,Llanfoist Fawr Primary School,Employees,Direct Employee Expenses,Agency Staff,,04/02/2024,12/02/2024,214.43,,New Directions Education Ltd
Schools Total,School Group 2 � Pupil Capacity 144-314,MCC Schools,Llanfoist Fawr Primary School,Employees,Direct Employee Expenses,Agency Staff,,04/02/2024,12/02/2024,214.43,,New Directions Education Ltd
Schools Total,School Group 2 � Pupil Capacity 144-314,MCC Schools,Llanfoist Fawr Primary School,Employees,Direct Employee Expenses,Agency Staff,,04/02/2024,12/02/2024,118.56,,New Directions Education Ltd
Schools Total,School Group 2 � Pupil Capacity 144-314,MCC Schools,Llanfoist Fawr Primary School,Employees,Direct Employee Expenses,Agency Staff,,04/02/2024,12/02/2024,214.43,,New Directions Education Ltd
Schools Total,School Group 2 � Pupil Capacity 144-314,MCC Schools,Llanfoist Fawr Primary School,Employees,Direct Employee Expenses,Agency Staff,,04/02/2024,12/02/2024,214.43,,New Directions Education Ltd
Schools Total,School Group 2 � Pupil Capacity 144-314,MCC Schools,Pembroke Primary School,Employees,Direct Employee Expenses,Agency Staff,,04/02/2024,12/02/2024,214.43,,New Directions Education Ltd
Schools Total,School Group 2 � Pupil Capacity 144-314,MCC Schools,Pembroke Primary School,Employees,Direct Employee Expenses,Agency Staff,,04/02/2024,12/02/2024,214.43,,New Directions Education Ltd
Schools Total,School Group 2 � Pupil Capacity 144-314,MCC Schools,Pembroke Primary School,Employees,Direct Employee Expenses,Agency Staff,,04/02/2024,12/02/2024,214.43,,New Directions Education Ltd
Schools Total,SCHGRP3 � School Group 3 � Pupil Capacity 315-500,MCC Schools,The Dell Primary School,Employees,Direct Employee Expenses,Agency Staff,,04/02/2024,12/02/2024,214.43,,New Directions Education Ltd
Schools Total,SCHGRP3 � School Group 3 � Pupil Capacity 315-500,MCC Schools,The Dell Primary School,Employees,Direct Employee Expenses,Agency Staff,,04/02/2024,12/02/2024,214.43,,New Directions Education Ltd
Schools Total,SCHGRP3 � School Group 3 � Pupil Capacity 315-500,MCC Schools,The Dell Primary School,Employees,Direct Employee Expenses,Agency Staff,,04/02/2024,12/02/2024,214.43,,New Directions Education Ltd
Schools Total,SCHGRP3 � School Group 3 � Pupil Capacity 315-500,MCC Schools,The Dell Primary School,Employees,Direct Employee Expenses,Agency Staff,,04/02/2024,12/02/2024,214.43,,New Directions Education Ltd
Schools Total,SCHGRP3 � School Group 3 � Pupil Capacity 315-500,MCC Schools,The Dell Primary School,Employees,Direct Employee Expenses,Agency Staff,,04/02/2024,12/02/2024,214.43,,New Directions Education Ltd
Schools Total,SCHGRP3 � School Group 3 � Pupil Capacity 315-500,MCC Schools,Magor CiW Primary School (VA),Employees,Direct Employee Expenses,Agency Staff,,17/01/2024,05/02/2024,724.22,,Teaching 4 Wales Ltd
"Facilities, Fleet & Decarbonisation",Transport Department,Communities & Place,Transport,Transport,Direct Transport Costs,Tyres And Tubes,,15/01/2024,05/02/2024,128.96,,Malvern Tyres (Wholesale) Ltd
"Facilities, Fleet & Decarbonisation",Transport Department,Communities & Place,Transport,Transport,Direct Transport Costs,Tyres And Tubes,,19/01/2024,05/02/2024,126.28,,Malvern Tyres (Wholesale) Ltd
"Facilities, Fleet & Decarbonisation",Transport Department,Communities & Place,Transport,Transport,Direct Transport Costs,Tyres And Tubes,,22/01/2024,05/02/2024,225.6,,Malvern Tyres (Wholesale) Ltd
Adult Services,Community Care Team,Social Care and Health,Abergavenny Adult Team,Third Party Payments,Third Party,Personal Care.,,05/02/2024,06/02/2024,1208.2,,Abicare Services Ltd
Adult Services,Community Care Team,Social Care and Health,Abergavenny Adult Team,Third Party Payments,Third Party,Personal Care.,,05/02/2024,06/02/2024,1931,,Abicare Services Ltd
Adult Services,Community Care Team,Social Care and Health,Abergavenny Adult Team,Third Party Payments,Third Party,Personal Care.,,05/02/2024,06/02/2024,4034.4,,Abicare Services Ltd
Adult Services,Community Care Team,Social Care and Health,Abergavenny Adult Team,Third Party Payments,Third Party,Personal Care.,,05/02/2024,06/02/2024,3623.76,,Abicare Services Ltd
Adult Services,Community Care Team,Social Care and Health,Abergavenny Adult Team,Third Party Payments,Third Party,Personal Care.,,05/02/2024,06/02/2024,3926.72,,Abicare Services Ltd
Adult Services,Community Care Team,Social Care and Health,Abergavenny Adult Team,Third Party Payments,Third Party,Personal Care.,,05/02/2024,06/02/2024,2114.56,,Abicare Services Ltd
Adult Services,Community Care Team,Social Care and Health,Abergavenny Adult Team,Third Party Payments,Third Party,Personal Care.,,05/02/2024,06/02/2024,1947.18,,Abicare Services Ltd
Adult Services,Community Care Team,Social Care and Health,Abergavenny Adult Team,Third Party Payments,Third Party,Personal Care.,,05/02/2024,06/02/2024,1057.28,,Abicare Services Ltd
Adult Services,Community Care Team,Social Care and Health,Abergavenny Adult Team,Third Party Payments,Third Party,Personal Care.,,05/02/2024,06/02/2024,2114.56,,Abicare Services Ltd
Adult Services,Community Care Team,Social Care and Health,Abergavenny Adult Team,Third Party Payments,Third Party,Personal Care.,,05/02/2024,06/02/2024,4908.4,,Abicare Services Ltd
Adult Services,Community Care Team,Social Care and Health,Abergavenny Adult Team,Third Party Payments,Third Party,Personal Care.,,05/02/2024,06/02/2024,906.08,,Abicare Services Ltd
Adult Services,Community Care Team,Social Care and Health,Abergavenny Adult Team,Third Party Payments,Third Party,Personal Care.,,05/02/2024,06/02/2024,1931,,Abicare Services Ltd
Adult Services,Community Care Team,Social Care and Health,Abergavenny Adult Team,Third Party Payments,Third Party,Personal Care.,,05/02/2024,06/02/2024,3926.72,,Abicare Services Ltd
Adult Services,Community Care Team,Social Care and Health,Abergavenny Adult Team,Third Party Payments,Third Party,Personal Care.,,05/02/2024,06/02/2024,1067.88,,Abicare Services Ltd
Adult Services,Community Care Team,Social Care and Health,Abergavenny Adult Team,Third Party Payments,Third Party,Personal Care.,,05/02/2024,06/02/2024,453.1,,Abicare Services Ltd
Adult Services,Community Care Team,Social Care and Health,Abergavenny Adult Team,Third Party Payments,Third Party,Personal Care.,,05/02/2024,06/02/2024,1122.03,,Abicare Services Ltd
Adult Services,Community Care Team,Social Care and Health,Monmouth Adult Team,Third Party Payments,Third Party,Personal Care.,,05/02/2024,06/02/2024,1078.8,,Abicare Services Ltd
Schools Total,School Group 2 � Pupil Capacity 144-314,MCC Schools,Castle Park Primary School,Employees,Direct Employee Expenses,Agency Staff,,17/01/2024,26/02/2024,1353.84,,Teaching 4 Wales Ltd
Schools Total,School Group 2 � Pupil Capacity 144-314,MCC Schools,Castle Park Primary School,Employees,Direct Employee Expenses,Agency Staff,,24/01/2024,26/02/2024,1763.26,,Teaching 4 Wales Ltd
Schools Total,SCHGRP3 � School Group 3 � Pupil Capacity 315-500,MCC Schools,Magor CiW Primary School (VA),Employees,Direct Employee Expenses,Agency Staff,,24/01/2024,05/02/2024,524.8,,Teaching 4 Wales Ltd
"Facilities, Fleet & Decarbonisation",Transport Department,Communities & Place,Transport,Transport,Direct Transport Costs,Spare Parts,,31/01/2024,05/02/2024,122.74,,Motorcare
